Workbook

Sheet 名簿・一覧表
B1: 名簿 | D1: =IF(AU1="","",AU1) -> ２６通信陸上大阪大会 | I1: 名簿が出来上がったら、これをクリック | S1: 黄色のセルには、入力しないでください。 | AO1: 一覧表 | AU1: ２６通信陸上大阪大会 | BO1: 1 | BP1: 制限記録を突破すると出場できる種目 | BX1: 種目名 | CB1: 一覧表より | CE1: 名簿 | CF1: エントリー | CI1: マクロからの張付け、１００３行まで。 | CM1: セルを動かすな！ | CT1: A | CU1: B | CV1: ＡとＢが | CW1: 人数＝ | CX1: =SUM(CE4:CE203) -> 0 | CY1: 名簿から出場している生徒だけ表示 | DC1: 数字の1000番台は、第1種目 | DG1: CXからの | DK1: 名簿の種目、学年を、種目、ネに変換するための表 | DQ1: CZ列を | DW1: DF列の | DY1: index | DZ1: index | EA1: 2 | EB1: 4 | EC1: 6 | ED1: 8 | EE1: 9 | EF1: 10 | EK1: 出場日計算 | EM1: 男子 | ET1: 出場日計算 | EV1: 女子
B2: NO | C2: 性 | D2: 個人番号 | E2: 団体番号 | F2: 選 手 氏 名 | G2: 団体名 | H2: 学 | I2: 個人種目コード | M2: リレー | N2: 個人種目記録 | R2: リレー | S2: 氏名カナ | T2: 氏名英字(生年) | U2: ①の資格を記録した大会 | Y2: ②の資格を記録した大会 | AC2: ③の級を記録した大会 | AF2: リレーの資格を記録した大会 | AO2: 種目 | AP2: 男 子 | AZ2: 種目 | BA2: 女 子 | BP2: 男子 | BT2: 女子 | BX2: AS列､BD列に種目名 | BZ2: countif | CB2: 性種ネ | CC2: C | CD2: 性種ネC | CE2: してる選手 | CF2: してる選手 | CG2: NO | CH2: 性 | CI2: 個人番号 | CJ2: 学校番号 | CK2: 選 手 名 | CL2: 学校名 | CM2: 学 | CN2: 個人 | CO2: 個人 | CP2: 級 | CQ2: 大会名 | CT2: 種目 | CU2: 種目 | CV2: 一致しない | CW2: 単なる | DA2: 種目 | DB2: 記録 | DC2: 級 | DD2: 大会名 | DE2: 性種学 | DF2: CV列から | DG2: index | DL2: 男子 | DM2: 男子 | DN2: 男子 | DO2: 一人に | DQ2: 上に詰める | DW2: CS列からの | DY2: これで | DZ2: これで | EH2: 種目の | EO2: 級選手の種目コード | EX2: 級選手の種目コード
H3: 年 | I3: ① | J3: ② | K3: ③ | L3: ④ | M3: ｺｰﾄﾞ | N3: ① | O3: ② | P3: ③ | Q3: ④ | R3: 記録 | S3: (例) ｽﾀﾞ ﾏｻｷ | T3: (例) SUDA Masaki(04) | U3: 資格 | V3: 月 | W3: 日 | X3: 大会名 | Y3: 資格 | Z3: 月 | AA3: 日 | AB3: 大会名 | AC3: 級 | AD3: 月 | AE3: 日 | AF3: 大会名 | AG3: 級 | AH3: 月 | AI3: 日 | AJ3: 大会名 | AO3: コード | AP3: 学 年 | AS3: 区分 | AT3: 種目 | AU3: 個人ＮＯ | AV3: 選手氏名 | AW3: 学 | AX3: 級 | AY3: 大会 | AZ3: コード | BA3: 学 年 | BD3: 区分 | BE3: 種目 | BF3: 個人ＮＯ | BG3: 選手氏名 | BH3: 学 | BI3: 級 | BJ3: 大会 | BL3: 種目 | BM3: ｺｰﾄﾞNO | BP3: 種目ｺｰﾄﾞ | BR3: 学年 | BT3: 種目ｺｰﾄﾞ | BV3: 学年 | BX3: 男子 | BY3: 女子 | CB3: 男子 | CE3: だけ数字 | CF3: の人数 | CM3: 年 | CN3: ｺｰﾄﾞ | CO3: 記録 | CS3: 性N | CT3: 出場数 | CU3: ｴﾝﾄﾘｰ数 | CV3: と「１」 | CW3: 数字 | CX3: BV列NO | CY3: 男女 | CZ3: 学年 | DF3: MATCH | DG3: 性種ネ | DH3: countif | DI3: 性種学C | DL3: 性種年 | DM3: ネ | DN3: 性種ネ | DO3: しぼる | DR3: match | DT3: index | DU3: countif | DV3: 性種ネC | DW3: countif | DX3: match | DY3: NOが入る | DZ3: NOが入る | EG3: 種目コード | EH3: MATCH | EK3: 出場して いるか | EL3: 個人か | EM3: 4種競技か | EN3: リレーか | EO3: 個人か | EP3: 4種競技か | ET3: 出場して いるか | EU3: 個人か | EV3: 4種競技か | EW3: リレーか | EX3: 個人か | EY3: 4種競技か
B4: 1 | AF4: 男431 | AM4: 《出場資格欄の入力》2種目1級突破者…「１」・強化部推薦者…「２」・参加資格記録突破者…「３」 | AO4: 1 | AP4: 1 | AS4: １年 | AT4: =IF(AO4="","",IF(AX4="",INDEX($BL$4:$BL$58,BX4,1),EI4)) -> １００ｍ | AU4: =EA4 ->  | AV4: =EB4 ->  | AW4: =EC4 ->  | AX4: =IF(OR(AV4="",MOD(AO4,10)<>9),"",INT(AO4/10)&"級") ->  | AY4: =EF4 ->  | AZ4: 1 | BA4: 1 | BD4: １年 | BE4: =IF(AZ4="","",IF(BI4="",INDEX($BL$4:$BL$58,BY4,1),EI52)) -> １００ｍ | BF4: =EA52 ->  | BG4: =EB52 ->  | BI4: =IF(OR(BG4="",MOD(AZ4,10)<>9),"",INT(AZ4/10)&"級") ->  | BJ4: =EF52 ->  | BL4: １００ｍ | BM4: 1 | BP4: 1 | BS4: 3 | BT4: 1 | BW4: 3 | BX4: =MATCH(AO4,$BM$4:$BM$58,0) -> 1 | BY4: =MATCH(AZ4,$BM$4:$BM$58,0) -> 1 | BZ4: =IF(AU4="","",10000+AU4) ->  | CB4: =100000+AO4*10+AP4+AQ4+AR4*2 -> 100011 | CC4: =COUNTIF($CB$4:CB4,CB4) -> 1 | CD4: =IF(AO4="","",CB4*10+CC4) -> 1000111 | CE4: =IF(SUM(I4:M4)=0,"",1) ->  | CF4: =IF(CE4="","",SUM($CE$4:CE4)) ->  | CG4: 1 | CR4: =IF(CN4="",0,IF(CP4="",CN4,CP4*10+9)) -> 0 | CS4: =C4*10000+D4 -> 0 | CT4: =COUNTIF($BZ$4:$BZ$100,CS4) -> 0 | CU4: =COUNT(CN4,CN204,CN404,CN604,CN804) -> 0 | CV4: =IF(CT4=CU4,0,1) -> 0 | CW4: 1001 | CX4: =IF(CG4>$CX$1,"",MATCH(CG4,$CF$4:$CF$203,0)) ->  | CY4: =INDEX($CH$4:$CH$1003,$CX4,1) ->  | CZ4: =INDEX($CM$4:$CM$1003,$CX4,1) ->  | DA4: =IF($I$204=1,0,INDEX($CN$4:$CR$1003,$CX4,5)) ->  | DB4: =INDEX($CN$4:$CQ$1003,$CX4,2) ->  | DC4: =IF($U$204=1,0,INDEX($CN$4:$CQ$1003,$CX4,3)) ->  | DD4: =IF($U$204=1,0,INDEX($CN$4:$CQ$1003,$CX4,4)) ->  | DE4: =CY4*100000+DA4*10+CZ4 ->  | DF4: =MATCH(DE4,$DL$4:$DL$291,0) ->  | DG4: =INDEX($DN$4:$DN$291,DF4,1) ->  | DH4: =COUNTIF($DG$4:DG4,DG4) -> 1 | DI4: =DG4*100+DH4 ->  | DK4: 1年 | DL4: =100000+$AO4*10+AP4 -> 100011 | DM4: =IF(MOD(DL4,10)=0,"",MOD(DL4,10)+MOD(DL5,10)+MOD(DL6,10)*2) -> 1 | DN4: =IF(DM4=0,"",ROUNDDOWN(DL4,-1)+DM4) -> 100011 | DO4: =IF(DN4<>"",DN4,IF(DN5<>"",DN5,IF(DN6<>"",DN6,""))) -> 100011 | DP4: =IF(DO4="","",COUNT($DO$4:DO4)) -> 1 | DR4: =MATCH(B4,$DP$4:$DP$291,0) -> 1 | DS4: 男子 | DT4: =DO4 -> 100011 | DU4: =COUNTIF($DT$4:DT4,DT4) -> 1 | DV4: =IF(DT4="","",DT4*100+DU4) -> 10001101 | DW4: =COUNTIF($DI$4:$DI$483,DV4) -> 0 | DX4: =MATCH(DV4,$DI$4:$DI$483,0) ->  | DY4: =INDEX($CX$4:$CX$483,DX4,1) ->  | DZ4: =MOD(INDEX($CX$4:$CX$483,DX4,1),200) ->  | EA4: =IF($DW4=0,"",INDEX($CH$4:$CQ$1003,$DZ4,EA$1)) ->  | EE4: =IF($DW4=0,"",INDEX($CH$4:$CQ$1003,$DY4,EE$1)) ->  | EG4: =INDEX($CN$4:$CN$1003,DY4,1) ->  | EH4: =MATCH(EG4,$BM$4:$BM$55,0) ->  | EI4: =IF(EB4="","",INDEX($BL$4:$BL$55,EH4)) ->  | EK4: =IF(EB4="",0,1) -> 0 | EL4: =IF(MOD(AO4,10)=9,0,IF(OR(AND(0<AO4,AO4<400),AND(499<AO4,AO4<900)),1,0))*EK4 -> 0 | EM4: =IF(AO4=901,1,0)*EK4 -> 0 | EN4: =IF(AND(399<MOD(AO4,1000),MOD(AO4,1000)<500,MOD(AO4,10)=1),1,0)*EK4 -> 0 | EO4: =IF(EB4<>"",IF(MOD(AO4,10)=9,IF(OR(AND(0<EG4,EG4<400),AND(499<EG4,EG4<900)),1,0),0),0)*EK4 -> 0 | EP4: =IF(AND(EB4<>"",MOD(AO4,10)=9),IF(EG4=901,1,0),0)*EK4 -> 0 | ET4: =IF(EB52="",0,1) -> 0 | EU4: =IF(MOD(AZ4,10)=9,0,IF(OR(AND(0<AZ4,AZ4<400),AND(499<AZ4,AZ4<900)),1,0))*ET4 -> 0 | EV4: =IF(AZ4=901,1,0)*ET4 -> 0 | EW4: =IF(AND(399<MOD(AZ4,1000),MOD(AZ4,1000)<500,MOD(AZ4,10)=1),1,0)*ET4 -> 0 | EX4: =IF(EB52<>"",IF(MOD(AZ4,10)=9,IF(OR(AND(0<EG52,EG52<400),AND(499<EG52,EG52<900)),1,0),0),0)*ET4 -> 0 | EY4: =IF(AND(EB52<>"",MOD(AZ4,10)=9),IF(EG52=901,1,0),0)*ET4 -> 0
B5: 2 | AF5: 男1431 | AO5: 19 | AP5: 1 | AQ5: 2 | AR5: 3 | AS5: 1,2,3年 | AU5: =EA5 ->  | AZ5: 19 | BA5: 1 | BB5: 2 | BC5: 3 | BD5: 1,2,3年 | BF5: =EA53 ->  | BJ5: =EF53 ->  | BL5: ２００ｍ | BM5: 2 | BP5: 1 | BR5: 2 | BT5: 1 | BV5: 2 | BX5: =MATCH(AO5,$BM$4:$BM$58,0) -> 53 | BY5: =MATCH(AZ5,$BM$4:$BM$58,0) -> 53 | BZ5: =IF(AU5="","",10000+AU5) ->  | CB5: 100199 | CC5: =COUNTIF($CB$4:CB5,CB5) -> 1 | CD5: 1001991 | CF5: =IF(CE5="","",SUM($CE$4:CE5)) ->  | CG5: 2 | CR5: =IF(CN5="",0,IF(CP5="",CN5,CP5*10+9)) -> 0 | CS5: =C5*10000+D5 -> 0 | CT5: 0 | CU5: =COUNT(CN5,CN205,CN405,CN605,CN805) -> 0 | CV5: =IF(CT5=CU5,0,1) -> 0 | CW5: 1002 | CX5: =IF(CG5>$CX$1,"",MATCH(CG5,$CF$4:$CF$203,0)) ->  | DA5: =IF($I$204=1,0,INDEX($CN$4:$CR$1003,$CX5,5)) ->  | DC5: =IF($U$204=1,0,INDEX($CN$4:$CQ$1003,$CX5,3)) ->  | DD5: =IF($U$204=1,0,INDEX($CN$4:$CQ$1003,$CX5,4)) ->  | DE5: =CY5*100000+DA5*10+CZ5 ->  | DF5: =MATCH(DE5,$DL$4:$DL$291,0) ->  | DG5: =INDEX($DN$4:$DN$291,DF5,1) ->  | DH5: =COUNTIF($DG$4:DG5,DG5) -> 2 | DI5: =DG5*100+DH5 ->  | DK5: 2年 | DL5: =100000+$AO4*10+AQ4 -> 100010 | DM5: =IF(MOD(DL5,10)=0,"",MOD(DL4,10)+MOD(DL5,10)+MOD(DL6,10)*2) ->  | DN5: =IF(DM5="","",ROUNDDOWN(DL5,-1)+DM5) ->  | DP5: =IF(DO5="","",COUNT($DO$4:DO5)) ->  | DR5: 4 | DS5: ⇩ | DT5: =DO7 -> 100199 | DU5: =COUNTIF($DT$4:DT5,DT5) -> 1 | DV5: =IF(DT5="","",DT5*100+DU5) -> 10019901 | DW5: =COUNTIF($DI$4:$DI$483,DV5) -> 0 | DX5: =MATCH(DV5,$DI$4:$DI$483,0) ->  | DY5: =INDEX($CX$4:$CX$483,DX5,1) ->  | DZ5: =MOD(INDEX($CX$4:$CX$483,DX5,1),200) ->  | EH5: =MATCH(EG5,$BM$4:$BM$55,0) ->  | EK5: 0 | EL5: 0 | EM5: 0 | EN5: =IF(AND(399<MOD(AO5,1000),MOD(AO5,1000)<500,MOD(AO5,10)=1),1,0)*EK5 -> 0 | EO5: 0 | EP5: 0 | ET5: 0 | EU5: 0 | EV5: 0 | EW5: 0 | EX5: 0 | EY5: 0
B6: 3 | AF6: 男2431 | AO6: 19 | AP6: 1 | AQ6: 2 | AR6: 3 | AS6: 1,2,3年 | AZ6: 19 | BA6: 1 | BB6: 2 | BC6: 3 | BD6: 1,2,3年 | BF6: =EA54 ->  | BL6: ４００ｍ | BM6: 4 | BP6: 1 | BQ6: 1 | BT6: 1 | BU6: 1 | BX6: 53 | BY6: 53 | CB6: 100199 | CC6: =COUNTIF($CB$4:CB6,CB6) -> 2 | CD6: 1001992 | CF6: =IF(CE6="","",SUM($CE$4:CE6)) ->  | CG6: 3 | CR6: 0 | CS6: 0 | CT6: 0 | CU6: 0 | CV6: 0 | CW6: 1003 | DH6: =COUNTIF($DG$4:DG6,DG6) -> 3 | DK6: 3年 | DL6: =100000+$AO4*10+AR4 -> 100010 | DM6: =IF(MOD(DL6,10)=0,"",MOD(DL4,10)+MOD(DL5,10)+MOD(DL6,10)*2) ->  | DN6: =IF(DM6="","",ROUNDDOWN(DL6,-1)+DM6) ->  | DP6: =IF(DO6="","",COUNT($DO$4:DO6)) ->  | DR6: 7 | DT6: =DO10 -> 100199 | DU6: =COUNTIF($DT$4:DT6,DT6) -> 2 | DV6: 10019902 | DW6: 0 | EI6: =IF(EB6="","",INDEX($BL$4:$BL$55,EH6)) ->  | EK6: 0 | EL6: 0 | EM6: 0 | EN6: 0 | EO6: 0 | EP6: 0 | ET6: 0 | EU6: 0 | EV6: 0 | EW6: 0 | EX6: 0 | EY6: 0
B7: 4 | AF7: 女431 | AO7: 29 | AP7: 1 | AQ7: 2 | AR7: 3 | AS7: 1,2,3年 | AZ7: 29 | BA7: 1 | BB7: 2 | BC7: 3 | BD7: 1,2,3年 | BF7: =EA55 ->  | BL7: ８００ｍ | BM7: 8 | BP7: 2 | BQ7: 1 | BR7: 2 | BS7: 3 | BT7: 2 | BU7: 1 | BV7: 2 | BW7: 3 | BX7: 54 | BY7: 54 | CB7: 100299 | CC7: =COUNTIF($CB$4:CB7,CB7) -> 1 | CD7: 1002991 | CF7: =IF(CE7="","",SUM($CE$4:CE7)) ->  | CG7: 4 | CR7: 0 | CS7: 0 | CT7: 0 | CU7: 0 | CV7: 0 | CW7: 1004 | DH7: =COUNTIF($DG$4:DG7,DG7) -> 4 | DK7: 1年 | DL7: =100000+$AO5*10+AP5 -> 100191 | DM7: =IF(MOD(DL7,10)=0,"",MOD(DL7,10)+MOD(DL8,10)+MOD(DL9,10)*2) -> 9 | DN7: =IF(DM7="","",ROUNDDOWN(DL7,-1)+DM7) -> 100199 | DO7: =IF(DN7<>"",DN7,IF(DN8<>"",DN8,IF(DN9<>"",DN9,""))) -> 100199 | DP7: =IF(DO7="","",COUNT($DO$4:DO7)) -> 2 | DR7: 10 | DT7: =DO13 -> 100299 | DU7: =COUNTIF($DT$4:DT7,DT7) -> 1 | DV7: 10029901 | DW7: 0 | EI7: =IF(EB7="","",INDEX($BL$4:$BL$55,EH7)) ->  | EK7: 0 | EL7: 0 | EM7: 0 | EN7: 0 | EO7: 0 | EP7: 0 | ET7: 0 | EU7: 0 | EV7: 0 | EW7: 0 | EX7: 0 | EY7: 0
B8: 5 | AF8: 女1431 | AO8: 29 | AP8: 1 | AQ8: 2 | AR8: 3 | AS8: 1,2,3年 | AZ8: 29 | BA8: 1 | BB8: 2 | BC8: 3 | BD8: 1,2,3年 | BF8: =EA56 ->  | BL8: １５００ｍ | BM8: 15 | BP8: 4 | BQ8: 1 | BR8: 2 | BS8: 2 | BT8: 8 | BU8: 1 | BX8: 54 | BY8: 54 | CB8: 100299 | CC8: =COUNTIF($CB$4:CB8,CB8) -> 2 | CD8: 1002992 | CF8: =IF(CE8="","",SUM($CE$4:CE8)) ->  | CG8: 5 | CR8: 0 | CS8: 0 | CT8: 0 | CU8: 0 | CV8: 0 | CW8: 1005 | DH8: =COUNTIF($DG$4:DG8,DG8) -> 5 | DK8: 2年 | DL8: =100000+$AO5*10+AQ5 -> 100192 | DM8: =IF(MOD(DL8,10)=0,"",MOD(DL7,10)+MOD(DL8,10)+MOD(DL9,10)*2) -> 9 | DN8: 100199 | DP8: =IF(DO8="","",COUNT($DO$4:DO8)) ->  | DR8: 13 | DT8: =DO16 -> 100299 | DU8: =COUNTIF($DT$4:DT8,DT8) -> 2 | DV8: 10029902 | DW8: 0 | EK8: 0 | EL8: 0 | EM8: 0 | EN8: 0 | EO8: 0 | EP8: 0 | ET8: 0 | EU8: 0 | EV8: 0 | EW8: 0 | EX8: 0 | EY8: 0
B9: 6 | AF9: 女2431 | AO9: 39 | AP9: 1 | AQ9: 2 | AR9: 3 | AS9: 1,2,3年 | AZ9: 39 | BA9: 1 | BB9: 2 | BC9: 3 | BD9: 1,2,3年 | BF9: =EA57 ->  | BL9: ３０００ｍ | BM9: 30 | BP9: 8 | BQ9: 1 | BR9: 2 | BS9: 2 | BT9: 8 | BV9: 2 | BW9: 3 | BX9: 55 | BY9: 55 | CB9: 100399 | CC9: =COUNTIF($CB$4:CB9,CB9) -> 1 | CD9: 1003991 | CF9: =IF(CE9="","",SUM($CE$4:CE9)) ->  | CG9: 6 | CR9: 0 | CS9: 0 | CT9: 0 | CU9: 0 | CV9: 0 | CW9: 1006 | DH9: =COUNTIF($DG$4:DG9,DG9) -> 6 | DK9: 3年 | DL9: =100000+$AO5*10+AR5 -> 100193 | DM9: =IF(MOD(DL9,10)=0,"",MOD(DL7,10)+MOD(DL8,10)+MOD(DL9,10)*2) -> 9 | DN9: 100199 | DP9: =IF(DO9="","",COUNT($DO$4:DO9)) ->  | DR9: 16 | DT9: =DO19 -> 100399 | DU9: =COUNTIF($DT$4:DT9,DT9) -> 1 | DV9: 10039901 | DW9: 0 | EK9: 0 | EL9: 0 | EM9: 0 | EN9: 0 | EO9: 0 | EP9: 0 | ET9: 0 | EU9: 0 | EV9: 0 | EW9: 0 | EX9: 0 | EY9: 0
B10: 7 | AO10: 39 | AP10: 1 | AQ10: 2 | AR10: 3 | AS10: 1,2,3年 | AZ10: 39 | BA10: 1 | BB10: 2 | BC10: 3 | BD10: 1,2,3年 | BF10: =EA58 ->  | BL10: ５０００ｍ | BM10: 50 | BP10: 15 | BQ10: 1 | BT10: 15 | BU10: 1 | BV10: 2 | BW10: 3 | BX10: 55 | BY10: 55 | CB10: 100399 | CC10: =COUNTIF($CB$4:CB10,CB10) -> 2 | CD10: 1003992 | CF10: =IF(CE10="","",SUM($CE$4:CE10)) ->  | CG10: 7 | CR10: 0 | CS10: 0 | CT10: 0 | CU10: 0 | CV10: 0 | CW10: 1007 | DH10: =COUNTIF($DG$4:DG10,DG10) -> 7 | DK10: 1年 | DL10: =100000+$AO6*10+AP6 -> 100191 | DM10: =IF(MOD(DL10,10)=0,"",MOD(DL10,10)+MOD(DL11,10)+MOD(DL12,10)*2) -> 9 | DN10: 100199 | DO10: =IF(DN10<>"",DN10,IF(DN11<>"",DN11,IF(DN12<>"",DN12,""))) -> 100199 | DP10: =IF(DO10="","",COUNT($DO$4:DO10)) -> 3 | DR10: 19 | DT10: =DO22 -> 100399 | DU10: =COUNTIF($DT$4:DT10,DT10) -> 2 | DV10: 10039902 | DW10: 0 | EK10: 0 | EL10: 0 | EM10: 0 | EN10: 0 | EO10: 0 | EP10: 0 | ET10: 0 | EU10: 0 | EV10: 0 | EW10: 0 | EX10: 0 | EY10: 0
B11: 8 | AO11: 39 | AP11: 1 | AQ11: 2 | AR11: 3 | AS11: 1,2,3年 | AZ11: 39 | BA11: 1 | BB11: 2 | BC11: 3 | BD11: 1,2,3年 | BF11: =EA59 ->  | BL11: ８０ｍＨ | BM11: 80 | BP11: 15 | BR11: 2 | BS11: 3 | BT11: 100 | BU11: 1 | BV11: 2 | BW11: 3 | BX11: 55 | BY11: 55 | CB11: 100399 | CC11: =COUNTIF($CB$4:CB11,CB11) -> 3 | CD11: 1003993 | CF11: =IF(CE11="","",SUM($CE$4:CE11)) ->  | CG11: 8 | CR11: 0 | CS11: 0 | CT11: 0 | CU11: 0 | CV11: 0 | CW11: 1008 | DH11: =COUNTIF($DG$4:DG11,DG11) -> 8 | DK11: 2年 | DL11: =100000+$AO6*10+AQ6 -> 100192 | DM11: =IF(MOD(DL11,10)=0,"",MOD(DL10,10)+MOD(DL11,10)+MOD(DL12,10)*2) -> 9 | DN11: 100199 | DP11: =IF(DO11="","",COUNT($DO$4:DO11)) ->  | DR11: 22 | DT11: =DO25 -> 100399 | DU11: =COUNTIF($DT$4:DT11,DT11) -> 3 | DV11: 10039903 | DW11: 0 | EK11: 0 | EL11: 0 | EM11: 0 | EN11: 0 | EO11: 0 | EP11: 0 | ET11: 0 | EU11: 0 | EV11: 0 | EW11: 0 | EX11: 0 | EY11: 0
B12: 9 | AO12: 39 | AP12: 1 | AQ12: 2 | AR12: 3 | AS12: 1,2,3年 | AZ12: 39 | BA12: 1 | BB12: 2 | BC12: 3 | BD12: 1,2,3年 | BF12: =EA60 ->  | BL12: 100mH(0.762m) | BM12: 100 | BP12: 30 | BQ12: 1 | BR12: 2 | BS12: 3 | BT12: 501 | BU12: 1 | BV12: 2 | BW12: 3 | BX12: 55 | BY12: 55 | CB12: 100399 | CC12: =COUNTIF($CB$4:CB12,CB12) -> 4 | CD12: 1003994 | CF12: =IF(CE12="","",SUM($CE$4:CE12)) ->  | CG12: 9 | CR12: 0 | CS12: 0 | CT12: 0 | CU12: 0 | CV12: 0 | CW12: 1009 | DH12: =COUNTIF($DG$4:DG12,DG12) -> 9 | DK12: 3年 | DL12: =100000+$AO6*10+AR6 -> 100193 | DM12: =IF(MOD(DL12,10)=0,"",MOD(DL10,10)+MOD(DL11,10)+MOD(DL12,10)*2) -> 9 | DN12: 100199 | DP12: =IF(DO12="","",COUNT($DO$4:DO12)) ->  | DR12: 25 | DT12: =DO28 -> 100399 | DU12: =COUNTIF($DT$4:DT12,DT12) -> 4 | DV12: 10039904 | DW12: 0 | EK12: 0 | EL12: 0 | EM12: 0 | EN12: 0 | EO12: 0 | EP12: 0 | ET12: 0 | EU12: 0 | EV12: 0 | EW12: 0 | EX12: 0 | EY12: 0
B13: 10 | AO13: 39 | AP13: 1 | AQ13: 2 | AR13: 3 | AS13: 1,2,3年 | AZ13: 39 | BA13: 1 | BB13: 2 | BC13: 3 | BD13: 1,2,3年 | BF13: =EA61 ->  | BL13: 110mH(0.914m) | BM13: 110 | BP13: 110 | BQ13: 1 | BR13: 2 | BS13: 3 | BT13: 502 | BU13: 1 | BV13: 2 | BW13: 3 | BX13: 55 | BY13: 55 | CB13: 100399 | CC13: =COUNTIF($CB$4:CB13,CB13) -> 5 | CD13: 1003995 | CF13: =IF(CE13="","",SUM($CE$4:CE13)) ->  | CG13: 10 | CR13: 0 | CS13: 0 | CT13: 0 | CU13: 0 | CV13: 0 | CW13: 1010 | DH13: =COUNTIF($DG$4:DG13,DG13) -> 10 | DK13: 1年 | DL13: =100000+$AO7*10+AP7 -> 100291 | DM13: =IF(MOD(DL13,10)=0,"",MOD(DL13,10)+MOD(DL14,10)+MOD(DL15,10)*2) -> 9 | DN13: 100299 | DO13: =IF(DN13<>"",DN13,IF(DN14<>"",DN14,IF(DN15<>"",DN15,""))) -> 100299 | DP13: =IF(DO13="","",COUNT($DO$4:DO13)) -> 4 | DR13: 28 | DT13: =DO31 -> 100399 | DU13: =COUNTIF($DT$4:DT13,DT13) -> 5 | DV13: 10039905 | DW13: 0 | EK13: 0 | EL13: 0 | EM13: 0 | EN13: 0 | EO13: 0 | EP13: 0 | ET13: 0 | EU13: 0 | EV13: 0 | EW13: 0 | EX13: 0 | EY13: 0
B14: 11 | AO14: 39 | AP14: 1 | AQ14: 2 | AR14: 3 | AS14: 1,2,3年 | AZ14: 39 | BA14: 1 | BB14: 2 | BC14: 3 | BD14: 1,2,3年 | BF14: =EA62 ->  | BL14: 共通4×100mAﾁｰﾑ | BP14: 501 | BQ14: 1 | BR14: 2 | BS14: 3 | BT14: 503 | BU14: 1 | BV14: 2 | BW14: 3 | BX14: 55 | BY14: 55 | CB14: 100399 | CC14: =COUNTIF($CB$4:CB14,CB14) -> 6 | CD14: 1003996 | CF14: =IF(CE14="","",SUM($CE$4:CE14)) ->  | CG14: 11 | CR14: 0 | CS14: 0 | CT14: 0 | CU14: 0 | CV14: 0 | CW14: 1011 | DH14: =COUNTIF($DG$4:DG14,DG14) -> 11 | DK14: 2年 | DL14: =100000+$AO7*10+AQ7 -> 100292 | DM14: =IF(MOD(DL14,10)=0,"",MOD(DL13,10)+MOD(DL14,10)+MOD(DL15,10)*2) -> 9 | DN14: 100299 | DP14: =IF(DO14="","",COUNT($DO$4:DO14)) ->  | DR14: 31 | DT14: =DO34 -> 100399 | DU14: =COUNTIF($DT$4:DT14,DT14) -> 6 | DV14: 10039906 | DW14: 0 | EK14: 0 | EL14: 0 | EM14: 0 | EN14: 0 | EO14: 0 | EP14: 0 | ET14: 0 | EU14: 0 | EV14: 0 | EW14: 0 | EX14: 0 | EY14: 0
B15: 12 | AO15: 39 | AP15: 1 | AQ15: 2 | AR15: 3 | AS15: 1,2,3年 | AZ15: 39 | BA15: 1 | BB15: 2 | BC15: 3 | BD15: 1,2,3年 | BF15: =EA63 ->  | BL15: 共通400mA① | BM15: 431 | BP15: 502 | BQ15: 1 | BR15: 2 | BS15: 3 | BT15: 627 | BU15: 1 | BV15: 2 | BW15: 3 | BX15: 55 | BY15: 55 | CB15: 100399 | CC15: =COUNTIF($CB$4:CB15,CB15) -> 7 | CD15: 1003997 | CF15: =IF(CE15="","",SUM($CE$4:CE15)) ->  | CG15: 12 | CR15: 0 | CS15: 0 | CT15: 0 | CU15: 0 | CV15: 0 | CW15: 1012 | DH15: =COUNTIF($DG$4:DG15,DG15) -> 12 | DK15: 3年 | DL15: =100000+$AO7*10+AR7 -> 100293 | DM15: =IF(MOD(DL15,10)=0,"",MOD(DL13,10)+MOD(DL14,10)+MOD(DL15,10)*2) -> 9 | DN15: 100299 | DP15: =IF(DO15="","",COUNT($DO$4:DO15)) ->  | DR15: 34 | DT15: =DO37 -> 100399 | DU15: =COUNTIF($DT$4:DT15,DT15) -> 7 | DV15: 10039907 | DW15: 0 | EK15: 0 | EL15: 0 | EM15: 0 | EN15: 0 | EO15: 0 | EP15: 0 | ET15: 0 | EU15: 0 | EV15: 0 | EW15: 0 | EX15: 0 | EY15: 0
B16: 13 | AO16: 39 | AP16: 1 | AQ16: 2 | AR16: 3 | AS16: 1,2,3年 | AZ16: 39 | BA16: 1 | BB16: 2 | BC16: 3 | BD16: 1,2,3年 | BF16: =EA64 ->  | BL16: 共通400mA② | BM16: 432 | BP16: 503 | BQ16: 1 | BR16: 2 | BS16: 3 | BT16: 601 | BU16: 1 | BV16: 2 | BW16: 3 | BX16: 55 | BY16: 55 | CB16: 100399 | CC16: =COUNTIF($CB$4:CB16,CB16) -> 8 | CD16: 1003998 | CF16: =IF(CE16="","",SUM($CE$4:CE16)) ->  | CG16: 13 | CR16: 0 | CS16: =C16*10000+D16 -> 0 | CT16: =COUNTIF($BZ$4:$BZ$100,CS16) -> 0 | CU16: =COUNT(CN16,CN216,CN416,CN616,CN816) -> 0 | CV16: 0 | CW16: 1013 | DH16: =COUNTIF($DG$4:DG16,DG16) -> 13 | DK16: 1年 | DL16: =100000+$AO8*10+AP8 -> 100291 | DM16: =IF(MOD(DL16,10)=0,"",MOD(DL16,10)+MOD(DL17,10)+MOD(DL18,10)*2) -> 9 | DN16: 100299 | DO16: =IF(DN16<>"",DN16,IF(DN17<>"",DN17,IF(DN18<>"",DN18,""))) -> 100299 | DP16: =IF(DO16="","",COUNT($DO$4:DO16)) -> 5 | DR16: 37 | DT16: =DO40 -> 100399 | DU16: =COUNTIF($DT$4:DT16,DT16) -> 8 | DV16: 10039908 | DW16: 0 | EK16: 0 | EL16: 0 | EM16: 0 | EN16: 0 | EO16: 0 | EP16: 0 | ET16: 0 | EU16: 0 | EV16: 0 | EW16: 0 | EX16: 0 | EY16: 0
B17: 14 | AO17: 39 | AP17: 1 | AQ17: 2 | AR17: 3 | AS17: 1,2,3年 | AZ17: 39 | BA17: 1 | BB17: 2 | BC17: 3 | BD17: 1,2,3年 | BF17: =EA65 ->  | BL17: 共通400mA③ | BM17: 433 | BP17: 650 | BQ17: 1 | BR17: 2 | BS17: 3 | BT17: 901 | BU17: 1 | BV17: 2 | BW17: 3 | BX17: 55 | BY17: 55 | BZ17: =IF(AU17="","",10000+AU17) ->  | CB17: 100399 | CC17: =COUNTIF($CB$4:CB17,CB17) -> 9 | CD17: 1003999 | CF17: =IF(CE17="","",SUM($CE$4:CE17)) ->  | CG17: 14 | CR17: 0 | CS17: 0 | CT17: 0 | CU17: 0 | CV17: 0 | CW17: 1014 | DH17: =COUNTIF($DG$4:DG17,DG17) -> 14 | DK17: 2年 | DL17: =100000+$AO8*10+AQ8 -> 100292 | DM17: =IF(MOD(DL17,10)=0,"",MOD(DL16,10)+MOD(DL17,10)+MOD(DL18,10)*2) -> 9 | DN17: 100299 | DP17: =IF(DO17="","",COUNT($DO$4:DO17)) ->  | DR17: 40 | DT17: =DO43 -> 100399 | DU17: =COUNTIF($DT$4:DT17,DT17) -> 9 | DV17: 10039909 | DW17: 0 | EK17: 0 | EL17: 0 | EM17: 0 | EN17: 0 | EO17: 0 | EP17: 0 | ET17: 0 | EU17: 0 | EV17: 0 | EW17: 0 | EX17: 0 | EY17: 0
B18: 15 | AO18: 39 | AP18: 1 | AQ18: 2 | AR18: 3 | AS18: 1,2,3年 | AZ18: 39 | BA18: 1 | BB18: 2 | BC18: 3 | BD18: 1,2,3年 | BF18: =EA66 ->  | BL18: 共通400mA④ | BM18: 434 | BP18: 615 | BQ18: 1 | BR18: 2 | BS18: 3 | BX18: 55 | BY18: 55 | CB18: 100399 | CC18: =COUNTIF($CB$4:CB18,CB18) -> 10 | CD18: 1004000 | CF18: =IF(CE18="","",SUM($CE$4:CE18)) ->  | CG18: 15 | CR18: 0 | CS18: 0 | CT18: 0 | CU18: 0 | CV18: 0 | CW18: 1015 | DH18: =COUNTIF($DG$4:DG18,DG18) -> 15 | DK18: 3年 | DL18: =100000+$AO8*10+AR8 -> 100293 | DM18: =IF(MOD(DL18,10)=0,"",MOD(DL16,10)+MOD(DL17,10)+MOD(DL18,10)*2) -> 9 | DN18: 100299 | DP18: =IF(DO18="","",COUNT($DO$4:DO18)) ->  | DR18: 43 | DT18: =DO46 -> 100399 | DU18: =COUNTIF($DT$4:DT18,DT18) -> 10 | DV18: 10039910 | DW18: 0 | EK18: 0 | EL18: 0 | EM18: 0 | EN18: 0 | EO18: 0 | EP18: 0 | ET18: 0 | EU18: 0 | EV18: 0 | EW18: 0 | EX18: 0 | EY18: 0
B19: 16 | AO19: 39 | AP19: 1 | AQ19: 2 | AR19: 3 | AS19: 1,2,3年 | AZ19: 39 | BA19: 1 | BB19: 2 | BC19: 3 | BD19: 1,2,3年 | BF19: =EA67 ->  | BL19: 共通400mA補 | BM19: 435 | BP19: 901 | BQ19: 1 | BR19: 2 | BS19: 3 | BX19: 55 | BY19: 55 | CB19: 100399 | CC19: =COUNTIF($CB$4:CB19,CB19) -> 11 | CD19: 1004001 | CF19: =IF(CE19="","",SUM($CE$4:CE19)) ->  | CG19: 16 | CR19: 0 | CS19: 0 | CT19: 0 | CU19: 0 | CV19: 0 | CW19: 1016 | DH19: =COUNTIF($DG$4:DG19,DG19) -> 16 | DK19: 1年 | DL19: =100000+$AO9*10+AP9 -> 100391 | DM19: =IF(MOD(DL19,10)=0,"",MOD(DL19,10)+MOD(DL20,10)+MOD(DL21,10)*2) -> 9 | DN19: 100399 | DO19: =IF(DN19<>"",DN19,IF(DN20<>"",DN20,IF(DN21<>"",DN21,""))) -> 100399 | DP19: =IF(DO19="","",COUNT($DO$4:DO19)) -> 6 | DR19: 46 | DT19: =DO49 -> 100399 | DU19: =COUNTIF($DT$4:DT19,DT19) -> 11 | DV19: 10039911 | DW19: 0 | EK19: 0 | EL19: 0 | EM19: 0 | EN19: 0 | EO19: 0 | EP19: 0 | ET19: 0 | EU19: 0 | EV19: 0 | EW19: 0 | EX19: 0 | EY19: 0
B20: 17 | AO20: 39 | AP20: 1 | AQ20: 2 | AR20: 3 | AS20: 1,2,3年 | AZ20: 39 | BA20: 1 | BB20: 2 | BC20: 3 | BD20: 1,2,3年 | BF20: =EA68 ->  | BL20: 共通400mA補 | BM20: 436 | BX20: 55 | BY20: 55 | CB20: 100399 | CC20: =COUNTIF($CB$4:CB20,CB20) -> 12 | CD20: 1004002 | CF20: =IF(CE20="","",SUM($CE$4:CE20)) ->  | CG20: 17 | CR20: 0 | CS20: 0 | CT20: 0 | CU20: 0 | CV20: 0 | CW20: 1017 | DH20: =COUNTIF($DG$4:DG20,DG20) -> 17 | DK20: 2年 | DL20: =100000+$AO9*10+AQ9 -> 100392 | DM20: =IF(MOD(DL20,10)=0,"",MOD(DL19,10)+MOD(DL20,10)+MOD(DL21,10)*2) -> 9 | DN20: 100399 | DP20: =IF(DO20="","",COUNT($DO$4:DO20)) ->  | DR20: 49 | DT20: =DO52 -> 100399 | DU20: =COUNTIF($DT$4:DT20,DT20) -> 12 | DV20: 10039912 | DW20: 0 | EK20: 0 | EL20: 0 | EM20: 0 | EN20: 0 | EO20: 0 | EP20: 0 | ET20: 0 | EU20: 0 | EV20: 0 | EW20: 0 | EX20: 0 | EY20: 0
B21: 18 | AO21: 39 | AP21: 1 | AQ21: 2 | AR21: 3 | AS21: 1,2,3年 | AZ21: 39 | BA21: 1 | BB21: 2 | BC21: 3 | BD21: 1,2,3年 | BF21: =EA69 ->  | BL21: 共通4×100mBﾁｰﾑ | BX21: 55 | BY21: 55 | CB21: 100399 | CC21: =COUNTIF($CB$4:CB21,CB21) -> 13 | CD21: 1004003 | CF21: =IF(CE21="","",SUM($CE$4:CE21)) ->  | CG21: 18 | CR21: 0 | CS21: 0 | CT21: 0 | CU21: 0 | CV21: 0 | CW21: 1018 | DH21: =COUNTIF($DG$4:DG21,DG21) -> 18 | DK21: 3年 | DL21: =100000+$AO9*10+AR9 -> 100393 | DM21: =IF(MOD(DL21,10)=0,"",MOD(DL19,10)+MOD(DL20,10)+MOD(DL21,10)*2) -> 9 | DN21: 100399 | DP21: =IF(DO21="","",COUNT($DO$4:DO21)) ->  | DR21: 52 | DT21: =DO55 -> 100399 | DU21: =COUNTIF($DT$4:DT21,DT21) -> 13 | DV21: 10039913 | DW21: 0 | EK21: 0 | EL21: 0 | EM21: 0 | EN21: 0 | EO21: 0 | EP21: 0 | ET21: 0 | EU21: 0 | EV21: 0 | EW21: 0 | EX21: 0 | EY21: 0
B22: 19 | AO22: 39 | AP22: 1 | AQ22: 2 | AR22: 3 | AS22: 1,2,3年 | AZ22: 39 | BA22: 1 | BB22: 2 | BC22: 3 | BD22: 1,2,3年 | BF22: =EA70 ->  | BL22: 共通400mB① | BM22: 1431 | BX22: 55 | BY22: 55 | CB22: 100399 | CC22: =COUNTIF($CB$4:CB22,CB22) -> 14 | CD22: 1004004 | CF22: =IF(CE22="","",SUM($CE$4:CE22)) ->  | CG22: 19 | CR22: 0 | CS22: 0 | CT22: 0 | CU22: 0 | CV22: 0 | CW22: 1019 | DH22: =COUNTIF($DG$4:DG22,DG22) -> 19 | DK22: 1年 | DL22: =100000+$AO10*10+AP10 -> 100391 | DM22: =IF(MOD(DL22,10)=0,"",MOD(DL22,10)+MOD(DL23,10)+MOD(DL24,10)*2) -> 9 | DN22: 100399 | DO22: =IF(DN22<>"",DN22,IF(DN23<>"",DN23,IF(DN24<>"",DN24,""))) -> 100399 | DP22: =IF(DO22="","",COUNT($DO$4:DO22)) -> 7 | DR22: 55 | DT22: =DO58 -> 100399 | DU22: =COUNTIF($DT$4:DT22,DT22) -> 14 | DV22: 10039914 | DW22: 0 | EK22: 0 | EL22: 0 | EM22: 0 | EN22: 0 | EO22: 0 | EP22: 0 | ET22: 0 | EU22: 0 | EV22: 0 | EW22: 0 | EX22: 0 | EY22: 0
B23: 20 | AO23: 39 | AP23: 1 | AQ23: 2 | AR23: 3 | AS23: 1,2,3年 | AZ23: 39 | BA23: 1 | BB23: 2 | BC23: 3 | BD23: 1,2,3年 | BF23: =EA71 ->  | BL23: 共通400mB② | BM23: 1432 | BX23: 55 | BY23: 55 | CB23: 100399 | CC23: =COUNTIF($CB$4:CB23,CB23) -> 15 | CD23: 1004005 | CF23: =IF(CE23="","",SUM($CE$4:CE23)) ->  | CG23: 20 | CR23: 0 | CS23: 0 | CT23: 0 | CU23: 0 | CV23: 0 | CW23: 1020 | DH23: =COUNTIF($DG$4:DG23,DG23) -> 20 | DK23: 2年 | DL23: =100000+$AO10*10+AQ10 -> 100392 | DM23: =IF(MOD(DL23,10)=0,"",MOD(DL22,10)+MOD(DL23,10)+MOD(DL24,10)*2) -> 9 | DN23: 100399 | DP23: =IF(DO23="","",COUNT($DO$4:DO23)) ->  | DR23: 58 | DT23: =DO61 -> 100399 | DU23: =COUNTIF($DT$4:DT23,DT23) -> 15 | DV23: 10039915 | DW23: 0 | EK23: 0 | EL23: 0 | EM23: 0 | EN23: 0 | EO23: 0 | EP23: 0 | ET23: 0 | EU23: 0 | EV23: 0 | EW23: 0 | EX23: 0 | EY23: 0
B24: 21 | AO24: 39 | AP24: 1 | AQ24: 2 | AR24: 3 | AS24: 1,2,3年 | AZ24: 39 | BA24: 1 | BB24: 2 | BC24: 3 | BD24: 1,2,3年 | BF24: =EA72 ->  | BL24: 共通400mB③ | BM24: 1433 | BX24: 55 | BY24: 55 | CB24: 100399 | CC24: =COUNTIF($CB$4:CB24,CB24) -> 16 | CD24: 1004006 | CF24: =IF(CE24="","",SUM($CE$4:CE24)) ->  | CG24: 21 | CR24: 0 | CS24: 0 | CT24: 0 | CU24: 0 | CV24: 0 | CW24: 1021 | DH24: =COUNTIF($DG$4:DG24,DG24) -> 21 | DK24: 3年 | DL24: =100000+$AO10*10+AR10 -> 100393 | DM24: =IF(MOD(DL24,10)=0,"",MOD(DL22,10)+MOD(DL23,10)+MOD(DL24,10)*2) -> 9 | DN24: 100399 | DP24: =IF(DO24="","",COUNT($DO$4:DO24)) ->  | DR24: 61 | DT24: =DO64 -> 100399 | DU24: =COUNTIF($DT$4:DT24,DT24) -> 16 | DV24: 10039916 | DW24: 0 | EA24: =IF($DW24=0,"",INDEX($CH$4:$CQ$1003,$DZ24,EA$1)) ->  | EE24: =IF($DW24=0,"",INDEX($CH$4:$CQ$1003,$DY24,EE$1)) ->  | EK24: 0 | EL24: 0 | EM24: 0 | EN24: 0 | EO24: 0 | EP24: 0 | ET24: 0 | EU24: 0 | EV24: 0 | EW24: 0 | EX24: 0 | EY24: 0
B25: 22 | AO25: 39 | AP25: 1 | AQ25: 2 | AR25: 3 | AS25: 1,2,3年 | AZ25: 39 | BA25: 1 | BB25: 2 | BC25: 3 | BD25: 1,2,3年 | BF25: =EA73 ->  | BL25: 共通400mB④ | BM25: 1434 | BX25: 55 | BY25: 55 | CB25: 100399 | CC25: =COUNTIF($CB$4:CB25,CB25) -> 17 | CD25: 1004007 | CF25: =IF(CE25="","",SUM($CE$4:CE25)) ->  | CG25: 22 | CR25: 0 | CS25: 0 | CT25: 0 | CU25: 0 | CV25: 0 | CW25: 1022 | DH25: =COUNTIF($DG$4:DG25,DG25) -> 22 | DK25: 1年 | DL25: =100000+$AO11*10+AP11 -> 100391 | DM25: =IF(MOD(DL25,10)=0,"",MOD(DL25,10)+MOD(DL26,10)+MOD(DL27,10)*2) -> 9 | DN25: 100399 | DO25: =IF(DN25<>"",DN25,IF(DN26<>"",DN26,IF(DN27<>"",DN27,""))) -> 100399 | DP25: =IF(DO25="","",COUNT($DO$4:DO25)) -> 8 | DR25: 64 | DT25: =DO67 -> 100399 | DU25: =COUNTIF($DT$4:DT25,DT25) -> 17 | DV25: 10039917 | DW25: 0 | EK25: 0 | EL25: 0 | EM25: 0 | EN25: 0 | EO25: 0 | EP25: 0 | ET25: 0 | EU25: 0 | EV25: 0 | EW25: 0 | EX25: 0 | EY25: 0
B26: 23 | AO26: 39 | AP26: 1 | AQ26: 2 | AR26: 3 | AS26: 1,2,3年 | AZ26: 39 | BA26: 1 | BB26: 2 | BC26: 3 | BD26: 1,2,3年 | BF26: =EA74 ->  | BL26: 共通400mB補 | BM26: 1435 | BX26: 55 | BY26: 55 | CB26: 100399 | CC26: =COUNTIF($CB$4:CB26,CB26) -> 18 | CD26: 1004008 | CF26: =IF(CE26="","",SUM($CE$4:CE26)) ->  | CG26: 23 | CR26: 0 | CS26: 0 | CT26: 0 | CU26: 0 | CV26: 0 | CW26: 1023 | DH26: =COUNTIF($DG$4:DG26,DG26) -> 23 | DK26: 2年 | DL26: =100000+$AO11*10+AQ11 -> 100392 | DM26: =IF(MOD(DL26,10)=0,"",MOD(DL25,10)+MOD(DL26,10)+MOD(DL27,10)*2) -> 9 | DN26: 100399 | DP26: =IF(DO26="","",COUNT($DO$4:DO26)) ->  | DR26: 67 | DT26: =DO70 -> 100399 | DU26: =COUNTIF($DT$4:DT26,DT26) -> 18 | DV26: 10039918 | DW26: 0 | EK26: 0 | EL26: 0 | EM26: 0 | EN26: 0 | EO26: 0 | EP26: 0 | ET26: 0 | EU26: 0 | EV26: 0 | EW26: =IF(AND(399<MOD(AZ26,1000),MOD(AZ26,1000)<500,MOD(AZ26,10)=1),1,0)*ET26 -> 0 | EX26: 0 | EY26: 0
B27: 24 | AO27: 39 | AP27: 1 | AQ27: 2 | AR27: 3 | AS27: 1,2,3年 | AZ27: 39 | BA27: 1 | BB27: 2 | BC27: 3 | BD27: 1,2,3年 | BF27: =EA75 ->  | BL27: 共通400mB補 | BM27: 1436 | BX27: 55 | BY27: 55 | CB27: 100399 | CC27: =COUNTIF($CB$4:CB27,CB27) -> 19 | CD27: 1004009 | CF27: =IF(CE27="","",SUM($CE$4:CE27)) ->  | CG27: 24 | CR27: 0 | CS27: 0 | CT27: 0 | CU27: 0 | CV27: 0 | CW27: 1024 | DH27: =COUNTIF($DG$4:DG27,DG27) -> 24 | DK27: 3年 | DL27: =100000+$AO11*10+AR11 -> 100393 | DM27: =IF(MOD(DL27,10)=0,"",MOD(DL25,10)+MOD(DL26,10)+MOD(DL27,10)*2) -> 9 | DN27: 100399 | DP27: =IF(DO27="","",COUNT($DO$4:DO27)) ->  | DR27: 70 | DT27: =DO73 -> 100399 | DU27: =COUNTIF($DT$4:DT27,DT27) -> 19 | DV27: 10039919 | DW27: 0 | EK27: 0 | EL27: 0 | EM27: 0 | EN27: 0 | EO27: 0 | EP27: 0 | ET27: 0 | EU27: 0 | EV27: 0 | EW27: =IF(AND(399<MOD(AZ27,1000),MOD(AZ27,1000)<500,MOD(AZ27,10)=1),1,0)*ET27 -> 0 | EX27: 0 | EY27: 0
B28: 25 | AO28: 39 | AP28: 1 | AQ28: 2 | AR28: 3 | AS28: 1,2,3年 | AZ28: 39 | BA28: 1 | BB28: 2 | BC28: 3 | BD28: 1,2,3年 | BF28: =EA76 ->  | BL28: 共通4×100mCﾁｰﾑ | BX28: 55 | BY28: 55 | CB28: 100399 | CC28: =COUNTIF($CB$4:CB28,CB28) -> 20 | CD28: 1004010 | CF28: =IF(CE28="","",SUM($CE$4:CE28)) ->  | CG28: 25 | CR28: 0 | CS28: 0 | CT28: 0 | CU28: 0 | CV28: 0 | CW28: 1025 | DH28: =COUNTIF($DG$4:DG28,DG28) -> 25 | DK28: 1年 | DL28: =100000+$AO12*10+AP12 -> 100391 | DM28: =IF(MOD(DL28,10)=0,"",MOD(DL28,10)+MOD(DL29,10)+MOD(DL30,10)*2) -> 9 | DN28: 100399 | DO28: =IF(DN28<>"",DN28,IF(DN29<>"",DN29,IF(DN30<>"",DN30,""))) -> 100399 | DP28: =IF(DO28="","",COUNT($DO$4:DO28)) -> 9 | DR28: 73 | DT28: =DO76 -> 100399 | DU28: =COUNTIF($DT$4:DT28,DT28) -> 20 | DV28: 10039920 | DW28: 0 | EK28: 0 | EL28: 0 | EM28: 0 | EN28: 0 | EO28: 0 | EP28: 0 | ET28: 0 | EU28: 0 | EV28: 0 | EW28: 0 | EX28: 0 | EY28: 0
B29: 26 | AO29: 39 | AP29: 1 | AQ29: 2 | AR29: 3 | AS29: 1,2,3年 | AZ29: 39 | BA29: 1 | BB29: 2 | BC29: 3 | BD29: 1,2,3年 | BF29: =EA77 ->  | BL29: 共通400mC① | BM29: 2431 | BX29: 55 | BY29: 55 | CB29: 100399 | CC29: =COUNTIF($CB$4:CB29,CB29) -> 21 | CD29: 1004011 | CF29: =IF(CE29="","",SUM($CE$4:CE29)) ->  | CG29: 26 | CR29: 0 | CS29: 0 | CT29: 0 | CU29: 0 | CV29: 0 | CW29: 1026 | DH29: =COUNTIF($DG$4:DG29,DG29) -> 26 | DK29: 2年 | DL29: =100000+$AO12*10+AQ12 -> 100392 | DM29: =IF(MOD(DL29,10)=0,"",MOD(DL28,10)+MOD(DL29,10)+MOD(DL30,10)*2) -> 9 | DN29: 100399 | DP29: =IF(DO29="","",COUNT($DO$4:DO29)) ->  | DR29: 76 | DT29: =DO79 -> 100399 | DU29: =COUNTIF($DT$4:DT29,DT29) -> 21 | DV29: 10039921 | DW29: 0 | EK29: 0 | EL29: 0 | EM29: 0 | EN29: 0 | EO29: 0 | EP29: 0 | ET29: 0 | EU29: 0 | EV29: 0 | EW29: 0 | EX29: 0 | EY29: 0
B30: 27 | AO30: 39 | AP30: 1 | AQ30: 2 | AR30: 3 | AS30: 1,2,3年 | AZ30: 39 | BA30: 1 | BB30: 2 | BC30: 3 | BD30: 1,2,3年 | BF30: =EA78 ->  | BL30: 共通400mC② | BM30: 2432 | BX30: 55 | BY30: 55 | CB30: 100399 | CC30: =COUNTIF($CB$4:CB30,CB30) -> 22 | CD30: 1004012 | CF30: =IF(CE30="","",SUM($CE$4:CE30)) ->  | CG30: 27 | CR30: 0 | CS30: 0 | CT30: 0 | CU30: 0 | CV30: 0 | CW30: 1027 | DH30: =COUNTIF($DG$4:DG30,DG30) -> 27 | DK30: 3年 | DL30: =100000+$AO12*10+AR12 -> 100393 | DM30: =IF(MOD(DL30,10)=0,"",MOD(DL28,10)+MOD(DL29,10)+MOD(DL30,10)*2) -> 9 | DN30: 100399 | DP30: =IF(DO30="","",COUNT($DO$4:DO30)) ->  | DR30: 79 | DT30: =DO82 -> 100399 | DU30: =COUNTIF($DT$4:DT30,DT30) -> 22 | DV30: 10039922 | DW30: 0 | EK30: 0 | EL30: 0 | EM30: 0 | EN30: 0 | EO30: 0 | EP30: 0 | ET30: 0 | EU30: 0 | EV30: 0 | EW30: 0 | EX30: 0 | EY30: 0
B31: 28 | AO31: 39 | AP31: 1 | AQ31: 2 | AR31: 3 | AS31: 1,2,3年 | AZ31: 39 | BA31: 1 | BB31: 2 | BC31: 3 | BD31: 1,2,3年 | BF31: =EA79 ->  | BL31: 共通400mC③ | BM31: 2433 | BX31: 55 | BY31: 55 | CB31: 100399 | CC31: =COUNTIF($CB$4:CB31,CB31) -> 23 | CD31: 1004013 | CF31: =IF(CE31="","",SUM($CE$4:CE31)) ->  | CG31: 28 | CR31: 0 | CS31: 0 | CT31: 0 | CU31: 0 | CV31: 0 | CW31: 1028 | DH31: =COUNTIF($DG$4:DG31,DG31) -> 28 | DK31: 1年 | DL31: =100000+$AO13*10+AP13 -> 100391 | DM31: =IF(MOD(DL31,10)=0,"",MOD(DL31,10)+MOD(DL32,10)+MOD(DL33,10)*2) -> 9 | DN31: 100399 | DO31: =IF(DN31<>"",DN31,IF(DN32<>"",DN32,IF(DN33<>"",DN33,""))) -> 100399 | DP31: =IF(DO31="","",COUNT($DO$4:DO31)) -> 10 | DR31: 82 | DT31: =DO85 -> 100399 | DU31: =COUNTIF($DT$4:DT31,DT31) -> 23 | DV31: 10039923 | DW31: 0 | EK31: 0 | EL31: 0 | EM31: 0 | EN31: 0 | EO31: 0 | EP31: 0 | ET31: 0 | EU31: 0 | EV31: 0 | EW31: 0 | EX31: 0 | EY31: 0
B32: 29 | AO32: 39 | AP32: 1 | AQ32: 2 | AR32: 3 | AS32: 1,2,3年 | AZ32: 39 | BA32: 1 | BB32: 2 | BC32: 3 | BD32: 1,2,3年 | BF32: =EA80 ->  | BL32: 共通400mC④ | BM32: 2434 | BX32: 55 | BY32: 55 | CB32: 100399 | CC32: =COUNTIF($CB$4:CB32,CB32) -> 24 | CD32: 1004014 | CF32: =IF(CE32="","",SUM($CE$4:CE32)) ->  | CG32: 29 | CR32: 0 | CS32: 0 | CT32: 0 | CU32: 0 | CV32: 0 | CW32: 1029 | DH32: =COUNTIF($DG$4:DG32,DG32) -> 29 | DK32: 2年 | DL32: =100000+$AO13*10+AQ13 -> 100392 | DM32: =IF(MOD(DL32,10)=0,"",MOD(DL31,10)+MOD(DL32,10)+MOD(DL33,10)*2) -> 9 | DN32: 100399 | DP32: =IF(DO32="","",COUNT($DO$4:DO32)) ->  | DR32: 85 | DT32: =DO88 -> 100399 | DU32: =COUNTIF($DT$4:DT32,DT32) -> 24 | DV32: 10039924 | DW32: 0 | EK32: 0 | EL32: 0 | EM32: 0 | EN32: 0 | EO32: 0 | EP32: 0 | ET32: 0 | EU32: 0 | EV32: 0 | EW32: 0 | EX32: 0 | EY32: 0
B33: 30 | AO33: 39 | AP33: 1 | AQ33: 2 | AR33: 3 | AS33: 1,2,3年 | AZ33: 39 | BA33: 1 | BB33: 2 | BC33: 3 | BD33: 1,2,3年 | BF33: =EA81 ->  | BL33: 共通400mC補 | BM33: 2435 | BX33: 55 | BY33: 55 | CB33: 100399 | CC33: =COUNTIF($CB$4:CB33,CB33) -> 25 | CD33: 1004015 | CF33: =IF(CE33="","",SUM($CE$4:CE33)) ->  | CG33: 30 | CR33: 0 | CS33: 0 | CT33: 0 | CU33: 0 | CV33: 0 | CW33: 1030 | DH33: =COUNTIF($DG$4:DG33,DG33) -> 30 | DK33: 3年 | DL33: =100000+$AO13*10+AR13 -> 100393 | DM33: =IF(MOD(DL33,10)=0,"",MOD(DL31,10)+MOD(DL32,10)+MOD(DL33,10)*2) -> 9 | DN33: 100399 | DP33: =IF(DO33="","",COUNT($DO$4:DO33)) ->  | DR33: 88 | DT33: =DO91 -> 100399 | DU33: =COUNTIF($DT$4:DT33,DT33) -> 25 | DV33: 10039925 | DW33: 0 | EK33: 0 | EL33: 0 | EM33: 0 | EN33: 0 | EO33: 0 | EP33: 0 | ET33: 0 | EU33: 0 | EV33: 0 | EW33: 0 | EX33: 0 | EY33: 0
B34: 31 | AO34: 431 | AP34: 1 | AQ34: 2 | AR34: 3 | AS34: 共通 | AT34: 共通400mA① | AZ34: 431 | BA34: 1 | BB34: 2 | BC34: 3 | BD34: 共通 | BE34: 共通400mA① | BF34: =EA82 ->  | BL34: 共通400mC補 | BM34: 2436 | BX34: 12 | BY34: 12 | CB34: 104319 | CC34: =COUNTIF($CB$4:CB34,CB34) -> 1 | CD34: 1043191 | CF34: =IF(CE34="","",SUM($CE$4:CE34)) ->  | CG34: 31 | CR34: 0 | CS34: 0 | CT34: 0 | CU34: 0 | CV34: 0 | CW34: 1031 | DH34: =COUNTIF($DG$4:DG34,DG34) -> 31 | DK34: 1年 | DL34: =100000+$AO14*10+AP14 -> 100391 | DM34: =IF(MOD(DL34,10)=0,"",MOD(DL34,10)+MOD(DL35,10)+MOD(DL36,10)*2) -> 9 | DN34: 100399 | DO34: =IF(DN34<>"",DN34,IF(DN35<>"",DN35,IF(DN36<>"",DN36,""))) -> 100399 | DP34: =IF(DO34="","",COUNT($DO$4:DO34)) -> 11 | DR34: 91 | DT34: =DO94 -> 104319 | DU34: =COUNTIF($DT$4:DT34,DT34) -> 1 | DV34: 10431901 | DW34: 0 | EK34: 0 | EL34: 0 | EM34: 0 | EN34: 0 | EO34: 0 | EP34: 0 | ET34: 0 | EU34: 0 | EV34: 0 | EW34: 0 | EX34: 0 | EY34: 0
B35: 32 | AO35: 432 | AP35: 1 | AQ35: 2 | AR35: 3 | AS35: 共通 | AT35: 共通400mA② | AZ35: 432 | BA35: 1 | BB35: 2 | BC35: 3 | BD35: 共通 | BE35: 共通400mA② | BF35: =EA83 ->  | BX35: 13 | BY35: 13 | CB35: 104329 | CC35: =COUNTIF($CB$4:CB35,CB35) -> 1 | CD35: 1043291 | CF35: =IF(CE35="","",SUM($CE$4:CE35)) ->  | CG35: 32 | CR35: 0 | CS35: 0 | CT35: 0 | CU35: 0 | CV35: 0 | CW35: 1032 | DH35: =COUNTIF($DG$4:DG35,DG35) -> 32 | DK35: 2年 | DL35: =100000+$AO14*10+AQ14 -> 100392 | DM35: =IF(MOD(DL35,10)=0,"",MOD(DL34,10)+MOD(DL35,10)+MOD(DL36,10)*2) -> 9 | DN35: 100399 | DP35: =IF(DO35="","",COUNT($DO$4:DO35)) ->  | DR35: 94 | DT35: =DO97 -> 104329 | DU35: =COUNTIF($DT$4:DT35,DT35) -> 1 | DV35: 10432901 | DW35: 0 | EK35: 0 | EL35: 0 | EM35: 0 | EN35: 0 | EO35: 0 | EP35: 0 | ET35: 0 | EU35: 0 | EV35: 0 | EW35: 0 | EX35: 0 | EY35: 0
B36: 33 | AO36: 433 | AP36: 1 | AQ36: 2 | AR36: 3 | AS36: 共通 | AT36: 共通400mA③ | AZ36: 433 | BA36: 1 | BB36: 2 | BC36: 3 | BD36: 共通 | BE36: 共通400mA③ | BF36: =EA84 ->  | BX36: 14 | BY36: 14 | CB36: 104339 | CC36: =COUNTIF($CB$4:CB36,CB36) -> 1 | CD36: 1043391 | CE36: =IF(SUM(I36:M36)=0,"",1) ->  | CF36: =IF(CE36="","",SUM($CE$4:CE36)) ->  | CG36: 33 | CR36: 0 | CS36: 0 | CT36: =COUNTIF($BZ$4:$BZ$100,CS36) -> 0 | CU36: 0 | CV36: 0 | CW36: 1033 | DH36: =COUNTIF($DG$4:DG36,DG36) -> 33 | DK36: 3年 | DL36: =100000+$AO14*10+AR14 -> 100393 | DM36: =IF(MOD(DL36,10)=0,"",MOD(DL34,10)+MOD(DL35,10)+MOD(DL36,10)*2) -> 9 | DN36: 100399 | DP36: =IF(DO36="","",COUNT($DO$4:DO36)) ->  | DR36: =MATCH(B36,$DP$4:$DP$291,0) -> 97 | DT36: =DO100 -> 104339 | DU36: =COUNTIF($DT$4:DT36,DT36) -> 1 | DV36: 10433901 | DW36: 0 | EK36: 0 | EL36: 0 | EM36: 0 | EN36: 0 | EO36: 0 | EP36: 0 | ET36: 0 | EU36: 0 | EV36: 0 | EW36: 0 | EX36: 0 | EY36: 0
B37: 34 | AO37: 434 | AP37: 1 | AQ37: 2 | AR37: 3 | AS37: 共通 | AT37: 共通400mA④ | AZ37: 434 | BA37: 1 | BB37: 2 | BC37: 3 | BD37: 共通 | BE37: 共通400mA④ | BF37: =EA85 ->  | BX37: 15 | BY37: 15 | CB37: 104349 | CC37: =COUNTIF($CB$4:CB37,CB37) -> 1 | CD37: 1043491 | CF37: =IF(CE37="","",SUM($CE$4:CE37)) ->  | CG37: 34 | CR37: 0 | CS37: 0 | CT37: 0 | CU37: 0 | CV37: 0 | CW37: 1034 | DH37: =COUNTIF($DG$4:DG37,DG37) -> 34 | DK37: 1年 | DL37: =100000+$AO15*10+AP15 -> 100391 | DM37: =IF(MOD(DL37,10)=0,"",MOD(DL37,10)+MOD(DL38,10)+MOD(DL39,10)*2) -> 9 | DN37: 100399 | DO37: =IF(DN37<>"",DN37,IF(DN38<>"",DN38,IF(DN39<>"",DN39,""))) -> 100399 | DP37: =IF(DO37="","",COUNT($DO$4:DO37)) -> 12 | DR37: 100 | DT37: =DO103 -> 104349 | DU37: =COUNTIF($DT$4:DT37,DT37) -> 1 | DV37: 10434901 | DW37: 0 | EK37: 0 | EL37: 0 | EM37: 0 | EN37: 0 | EO37: 0 | EP37: 0 | ET37: 0 | EU37: 0 | EV37: 0 | EW37: 0 | EX37: 0 | EY37: 0
B38: 35 | AO38: 435 | AP38: 1 | AQ38: 2 | AR38: 3 | AS38: 共通 | AT38: 共通400mA補 | AZ38: 435 | BA38: 1 | BB38: 2 | BC38: 3 | BD38: 共通 | BE38: 共通400mA補 | BF38: =EA86 ->  | BX38: 16 | BY38: 16 | CB38: 104359 | CC38: =COUNTIF($CB$4:CB38,CB38) -> 1 | CD38: 1043591 | CF38: =IF(CE38="","",SUM($CE$4:CE38)) ->  | CG38: 35 | CR38: 0 | CS38: 0 | CT38: 0 | CU38: 0 | CV38: 0 | CW38: 1035 | DH38: =COUNTIF($DG$4:DG38,DG38) -> 35 | DK38: 2年 | DL38: =100000+$AO15*10+AQ15 -> 100392 | DM38: =IF(MOD(DL38,10)=0,"",MOD(DL37,10)+MOD(DL38,10)+MOD(DL39,10)*2) -> 9 | DN38: 100399 | DP38: =IF(DO38="","",COUNT($DO$4:DO38)) ->  | DR38: 103 | DT38: =DO106 -> 104359 | DU38: =COUNTIF($DT$4:DT38,DT38) -> 1 | DV38: 10435901 | DW38: 0 | EK38: 0 | EL38: 0 | EM38: 0 | EN38: 0 | EO38: 0 | EP38: 0 | ET38: 0 | EU38: 0 | EV38: 0 | EW38: 0 | EX38: 0 | EY38: 0
B39: 36 | AO39: 436 | AP39: 1 | AQ39: 2 | AR39: 3 | AS39: 共通 | AT39: 共通400mA補 | AZ39: 436 | BA39: 1 | BB39: 2 | BC39: 3 | BD39: 共通 | BE39: 共通400mA補 | BF39: =EA87 ->  | BX39: 17 | BY39: 17 | CB39: 104369 | CC39: =COUNTIF($CB$4:CB39,CB39) -> 1 | CD39: 1043691 | CF39: =IF(CE39="","",SUM($CE$4:CE39)) ->  | CG39: 36 | CR39: 0 | CS39: 0 | CT39: 0 | CU39: 0 | CV39: 0 | CW39: 1036 | DH39: =COUNTIF($DG$4:DG39,DG39) -> 36 | DK39: 3年 | DL39: =100000+$AO15*10+AR15 -> 100393 | DM39: =IF(MOD(DL39,10)=0,"",MOD(DL37,10)+MOD(DL38,10)+MOD(DL39,10)*2) -> 9 | DN39: 100399 | DP39: =IF(DO39="","",COUNT($DO$4:DO39)) ->  | DR39: 106 | DT39: =DO109 -> 104369 | DU39: =COUNTIF($DT$4:DT39,DT39) -> 1 | DV39: 10436901 | DW39: 0 | EK39: 0 | EL39: 0 | EM39: 0 | EN39: 0 | EO39: 0 | EP39: 0 | ET39: 0 | EU39: 0 | EV39: 0 | EW39: 0 | EX39: 0 | EY39: 0
B40: 37 | AO40: 1431 | AP40: 1 | AQ40: 2 | AR40: 3 | AS40: 共通 | AT40: 共通400mB① | AZ40: 1431 | BA40: 1 | BB40: 2 | BC40: 3 | BD40: 共通 | BE40: 共通400mB① | BF40: =EA88 ->  | BX40: 19 | BY40: 19 | CB40: 114319 | CC40: =COUNTIF($CB$4:CB40,CB40) -> 1 | CD40: 1143191 | CF40: =IF(CE40="","",SUM($CE$4:CE40)) ->  | CG40: 37 | CR40: 0 | CS40: 0 | CT40: 0 | CU40: 0 | CV40: 0 | CW40: 1037 | DH40: =COUNTIF($DG$4:DG40,DG40) -> 37 | DK40: 1年 | DL40: =100000+$AO16*10+AP16 -> 100391 | DM40: =IF(MOD(DL40,10)=0,"",MOD(DL40,10)+MOD(DL41,10)+MOD(DL42,10)*2) -> 9 | DN40: 100399 | DO40: =IF(DN40<>"",DN40,IF(DN41<>"",DN41,IF(DN42<>"",DN42,""))) -> 100399 | DP40: =IF(DO40="","",COUNT($DO$4:DO40)) -> 13 | DR40: 109 | DT40: =DO112 -> 114319 | DU40: =COUNTIF($DT$4:DT40,DT40) -> 1 | DV40: 11431901 | DW40: 0 | EK40: 0 | EL40: 0 | EM40: 0 | EN40: 0 | EO40: 0 | EP40: 0 | ET40: 0 | EU40: 0 | EV40: 0 | EW40: 0 | EX40: 0 | EY40: 0
B41: 38 | AO41: 1432 | AP41: 1 | AQ41: 2 | AR41: 3 | AS41: 共通 | AT41: 共通400mB② | AZ41: 1432 | BA41: 1 | BB41: 2 | BC41: 3 | BD41: 共通 | BE41: 共通400mB② | BF41: =EA89 ->  | BX41: 20 | BY41: 20 | CB41: 114329 | CC41: =COUNTIF($CB$4:CB41,CB41) -> 1 | CD41: 1143291 | CF41: =IF(CE41="","",SUM($CE$4:CE41)) ->  | CG41: 38 | CR41: 0 | CS41: 0 | CT41: 0 | CU41: 0 | CV41: 0 | CW41: 1038 | DH41: =COUNTIF($DG$4:DG41,DG41) -> 38 | DK41: 2年 | DL41: =100000+$AO16*10+AQ16 -> 100392 | DM41: =IF(MOD(DL41,10)=0,"",MOD(DL40,10)+MOD(DL41,10)+MOD(DL42,10)*2) -> 9 | DN41: 100399 | DP41: =IF(DO41="","",COUNT($DO$4:DO41)) ->  | DR41: 112 | DT41: =DO115 -> 114329 | DU41: =COUNTIF($DT$4:DT41,DT41) -> 1 | DV41: 11432901 | DW41: 0 | EK41: 0 | EL41: 0 | EM41: 0 | EN41: 0 | EO41: 0 | EP41: 0 | ET41: 0 | EU41: 0 | EV41: 0 | EW41: 0 | EX41: 0 | EY41: 0
B42: 39 | AO42: 1433 | AP42: 1 | AQ42: 2 | AR42: 3 | AS42: 共通 | AT42: 共通400mB③ | AZ42: 1433 | BA42: 1 | BB42: 2 | BC42: 3 | BD42: 共通 | BE42: 共通400mB③ | BF42: =EA90 ->  | BL42: 走高跳 | BM42: 501 | BX42: 21 | BY42: 21 | CB42: 114339 | CC42: =COUNTIF($CB$4:CB42,CB42) -> 1 | CD42: 1143391 | CF42: =IF(CE42="","",SUM($CE$4:CE42)) ->  | CG42: 39 | CR42: 0 | CS42: 0 | CT42: 0 | CU42: 0 | CV42: 0 | CW42: 1039 | DH42: =COUNTIF($DG$4:DG42,DG42) -> 39 | DK42: 3年 | DL42: =100000+$AO16*10+AR16 -> 100393 | DM42: =IF(MOD(DL42,10)=0,"",MOD(DL40,10)+MOD(DL41,10)+MOD(DL42,10)*2) -> 9 | DN42: 100399 | DP42: =IF(DO42="","",COUNT($DO$4:DO42)) ->  | DR42: 115 | DT42: =DO118 -> 114339 | DU42: =COUNTIF($DT$4:DT42,DT42) -> 1 | DV42: 11433901 | DW42: 0 | EK42: 0 | EL42: 0 | EM42: 0 | EN42: 0 | EO42: 0 | EP42: 0 | ET42: 0 | EU42: 0 | EV42: 0 | EW42: 0 | EX42: 0 | EY42: 0
B43: 40 | AO43: 1434 | AP43: 1 | AQ43: 2 | AR43: 3 | AS43: 共通 | AT43: 共通400mB④ | AZ43: 1434 | BA43: 1 | BB43: 2 | BC43: 3 | BD43: 共通 | BE43: 共通400mB④ | BF43: =EA91 ->  | BL43: 棒高跳 | BM43: 502 | BX43: 22 | BY43: 22 | CB43: 114349 | CC43: =COUNTIF($CB$4:CB43,CB43) -> 1 | CD43: 1143491 | CF43: =IF(CE43="","",SUM($CE$4:CE43)) ->  | CG43: 40 | CR43: 0 | CS43: 0 | CT43: 0 | CU43: 0 | CV43: 0 | CW43: 1040 | DH43: =COUNTIF($DG$4:DG43,DG43) -> 40 | DK43: 1年 | DL43: =100000+$AO17*10+AP17 -> 100391 | DM43: =IF(MOD(DL43,10)=0,"",MOD(DL43,10)+MOD(DL44,10)+MOD(DL45,10)*2) -> 9 | DN43: 100399 | DO43: =IF(DN43<>"",DN43,IF(DN44<>"",DN44,IF(DN45<>"",DN45,""))) -> 100399 | DP43: =IF(DO43="","",COUNT($DO$4:DO43)) -> 14 | DR43: 118 | DT43: =DO121 -> 114349 | DU43: =COUNTIF($DT$4:DT43,DT43) -> 1 | DV43: 11434901 | DW43: 0 | EK43: 0 | EL43: 0 | EM43: 0 | EN43: 0 | EO43: 0 | EP43: 0 | ET43: 0 | EU43: 0 | EV43: 0 | EW43: 0 | EX43: 0 | EY43: 0
B44: 41 | AO44: 1435 | AP44: 1 | AQ44: 2 | AR44: 3 | AS44: 共通 | AT44: 共通400mB補 | AZ44: 1435 | BA44: 1 | BB44: 2 | BC44: 3 | BD44: 共通 | BE44: 共通400mB補 | BF44: =EA92 ->  | BL44: 走幅跳 | BM44: 503 | BX44: 23 | BY44: 23 | CB44: 114359 | CC44: =COUNTIF($CB$4:CB44,CB44) -> 1 | CD44: 1143591 | CF44: =IF(CE44="","",SUM($CE$4:CE44)) ->  | CG44: 41 | CR44: 0 | CS44: 0 | CT44: 0 | CU44: 0 | CV44: 0 | CW44: 1041 | DH44: =COUNTIF($DG$4:DG44,DG44) -> 41 | DK44: 2年 | DL44: =100000+$AO17*10+AQ17 -> 100392 | DM44: =IF(MOD(DL44,10)=0,"",MOD(DL43,10)+MOD(DL44,10)+MOD(DL45,10)*2) -> 9 | DN44: 100399 | DP44: =IF(DO44="","",COUNT($DO$4:DO44)) ->  | DR44: 121 | DT44: =DO124 -> 114359 | DU44: =COUNTIF($DT$4:DT44,DT44) -> 1 | DV44: 11435901 | DW44: 0 | EA44: =IF($DW44=0,"",INDEX($CH$4:$CQ$1003,$DZ44,EA$1)) ->  | EE44: =IF($DW44=0,"",INDEX($CH$4:$CQ$1003,$DY44,EE$1)) ->  | EK44: 0 | EL44: 0 | EM44: 0 | EN44: 0 | EO44: 0 | EP44: 0 | ET44: 0 | EU44: 0 | EV44: 0 | EW44: 0 | EX44: 0 | EY44: 0
B45: 42 | AO45: 1436 | AP45: 1 | AQ45: 2 | AR45: 3 | AS45: 共通 | AT45: 共通400mB補 | AZ45: 1436 | BA45: 1 | BB45: 2 | BC45: 3 | BD45: 共通 | BE45: 共通400mB補 | BF45: =EA93 ->  | BL45: 三段跳 | BM45: 504 | BX45: 24 | BY45: 24 | CB45: 114369 | CC45: =COUNTIF($CB$4:CB45,CB45) -> 1 | CD45: 1143691 | CF45: =IF(CE45="","",SUM($CE$4:CE45)) ->  | CG45: 42 | CR45: 0 | CS45: 0 | CT45: 0 | CU45: 0 | CV45: 0 | CW45: 1042 | DH45: =COUNTIF($DG$4:DG45,DG45) -> 42 | DK45: 3年 | DL45: =100000+$AO17*10+AR17 -> 100393 | DM45: =IF(MOD(DL45,10)=0,"",MOD(DL43,10)+MOD(DL44,10)+MOD(DL45,10)*2) -> 9 | DN45: 100399 | DP45: =IF(DO45="","",COUNT($DO$4:DO45)) ->  | DR45: 124 | DT45: =DO127 -> 114369 | DU45: =COUNTIF($DT$4:DT45,DT45) -> 1 | DV45: 11436901 | DW45: 0 | EK45: 0 | EL45: 0 | EM45: 0 | EN45: 0 | EO45: 0 | EP45: 0 | ET45: 0 | EU45: 0 | EV45: 0 | EW45: 0 | EX45: 0 | EY45: 0
B46: 43 | AO46: 2431 | AP46: 1 | AQ46: 2 | AR46: 3 | AS46: 共通 | AT46: 共通400mC① | AZ46: 2431 | BA46: 1 | BB46: 2 | BC46: 3 | BD46: 共通 | BE46: 共通400mC① | BF46: =EA94 ->  | BL46: 円盤投1.000kg | BM46: 601 | BX46: 26 | BY46: 26 | CB46: 124319 | CC46: =COUNTIF($CB$4:CB46,CB46) -> 1 | CD46: 1243191 | CF46: =IF(CE46="","",SUM($CE$4:CE46)) ->  | CG46: 43 | CR46: 0 | CS46: 0 | CT46: 0 | CU46: 0 | CV46: 0 | CW46: 1043 | DH46: =COUNTIF($DG$4:DG46,DG46) -> 43 | DK46: 1年 | DL46: =100000+$AO18*10+AP18 -> 100391 | DM46: =IF(MOD(DL46,10)=0,"",MOD(DL46,10)+MOD(DL47,10)+MOD(DL48,10)*2) -> 9 | DN46: 100399 | DO46: =IF(DN46<>"",DN46,IF(DN47<>"",DN47,IF(DN48<>"",DN48,""))) -> 100399 | DP46: =IF(DO46="","",COUNT($DO$4:DO46)) -> 15 | DR46: 127 | DT46: =DO130 -> 124319 | DU46: =COUNTIF($DT$4:DT46,DT46) -> 1 | DV46: 12431901 | DW46: 0 | EK46: 0 | EL46: 0 | EM46: 0 | EN46: 0 | EO46: 0 | EP46: 0 | ET46: 0 | EU46: 0 | EV46: 0 | EW46: 0 | EX46: 0 | EY46: 0
B47: 44 | AO47: 2432 | AP47: 1 | AQ47: 2 | AR47: 3 | AS47: 共通 | AT47: 共通400mC② | AZ47: 2432 | BA47: 1 | BB47: 2 | BC47: 3 | BD47: 共通 | BE47: 共通400mC② | BF47: =EA95 ->  | BL47: 円盤投1.500kg | BM47: 615 | BX47: 27 | BY47: 27 | CB47: 124329 | CC47: =COUNTIF($CB$4:CB47,CB47) -> 1 | CD47: 1243291 | CF47: =IF(CE47="","",SUM($CE$4:CE47)) ->  | CG47: 44 | CR47: 0 | CS47: 0 | CT47: 0 | CU47: 0 | CV47: 0 | CW47: 1044 | DH47: =COUNTIF($DG$4:DG47,DG47) -> 44 | DK47: 2年 | DL47: =100000+$AO18*10+AQ18 -> 100392 | DM47: =IF(MOD(DL47,10)=0,"",MOD(DL46,10)+MOD(DL47,10)+MOD(DL48,10)*2) -> 9 | DN47: 100399 | DP47: =IF(DO47="","",COUNT($DO$4:DO47)) ->  | DR47: 130 | DT47: =DO133 -> 124329 | DU47: =COUNTIF($DT$4:DT47,DT47) -> 1 | DV47: 12432901 | DW47: 0 | EG47: =INDEX($CN$4:$CN$1003,DY47,1) ->  | EK47: 0 | EL47: 0 | EM47: 0 | EN47: 0 | EO47: 0 | EP47: 0 | ET47: 0 | EU47: 0 | EV47: 0 | EW47: 0 | EX47: 0 | EY47: 0
B48: 45 | AO48: 2433 | AP48: 1 | AQ48: 2 | AR48: 3 | AS48: 共通 | AT48: 共通400mC③ | AX48: =IF(OR(AV48="",MOD(AO48,10)<>9),"",INT(AO48/10)&"級") ->  | AZ48: 2433 | BA48: 1 | BB48: 2 | BC48: 3 | BD48: 共通 | BE48: 共通400mC③ | BF48: =EA96 ->  | BI48: =IF(OR(BG48="",MOD(AZ48,10)<>9),"",INT(AZ48/10)&"級") ->  | BL48: 砲丸投2.721kg | BM48: 627 | BX48: 28 | BY48: 28 | CB48: 124339 | CC48: =COUNTIF($CB$4:CB48,CB48) -> 1 | CD48: 1243391 | CF48: =IF(CE48="","",SUM($CE$4:CE48)) ->  | CG48: 45 | CR48: 0 | CS48: 0 | CT48: 0 | CU48: 0 | CV48: 0 | CW48: 1045 | DH48: =COUNTIF($DG$4:DG48,DG48) -> 45 | DK48: 3年 | DL48: =100000+$AO18*10+AR18 -> 100393 | DM48: =IF(MOD(DL48,10)=0,"",MOD(DL46,10)+MOD(DL47,10)+MOD(DL48,10)*2) -> 9 | DN48: 100399 | DP48: =IF(DO48="","",COUNT($DO$4:DO48)) ->  | DR48: 133 | DS48: 女子 | DT48: =DO136 -> 124339 | DU48: =COUNTIF($DT$4:DT48,DT48) -> 1 | DV48: 12433901 | DW48: 0 | EG48: =INDEX($CN$4:$CN$1003,DY48,1) ->  | EK48: 0 | EL48: 0 | EM48: 0 | EN48: 0 | EO48: 0 | EP48: 0 | ET48: 0 | EU48: 0 | EV48: 0 | EW48: 0 | EX48: 0 | EY48: 0
B49: 46 | AO49: 2434 | AP49: 1 | AQ49: 2 | AR49: 3 | AS49: 共通 | AT49: 共通400mC④ | AX49: =IF(OR(AV49="",MOD(AO49,10)<>9),"",INT(AO49/10)&"級") ->  | AZ49: 2434 | BA49: 1 | BB49: 2 | BC49: 3 | BD49: 共通 | BE49: 共通400mC④ | BF49: =EA97 ->  | BI49: =IF(OR(BG49="",MOD(AZ49,10)<>9),"",INT(AZ49/10)&"級") ->  | BL49: 砲丸投4.000kg | BM49: 640 | BX49: 29 | BY49: 29 | CB49: 124349 | CC49: =COUNTIF($CB$4:CB49,CB49) -> 1 | CD49: 1243491 | CF49: =IF(CE49="","",SUM($CE$4:CE49)) ->  | CG49: 46 | CR49: 0 | CS49: 0 | CT49: 0 | CU49: 0 | CV49: 0 | CW49: 1046 | DH49: =COUNTIF($DG$4:DG49,DG49) -> 46 | DK49: 1年 | DL49: =100000+$AO19*10+AP19 -> 100391 | DM49: =IF(MOD(DL49,10)=0,"",MOD(DL49,10)+MOD(DL50,10)+MOD(DL51,10)*2) -> 9 | DN49: 100399 | DO49: =IF(DN49<>"",DN49,IF(DN50<>"",DN50,IF(DN51<>"",DN51,""))) -> 100399 | DP49: =IF(DO49="","",COUNT($DO$4:DO49)) -> 16 | DR49: 136 | DS49: ↓ | DT49: =DO139 -> 124349 | DU49: =COUNTIF($DT$4:DT49,DT49) -> 1 | DV49: 12434901 | DW49: 0 | EK49: 0 | EL49: 0 | EM49: 0 | EN49: 0 | EO49: 0 | EP49: 0 | ET49: 0 | EU49: 0 | EV49: 0 | EW49: 0 | EX49: 0 | EY49: 0
B50: 47 | AO50: 2435 | AP50: 1 | AQ50: 2 | AR50: 3 | AS50: 共通 | AT50: 共通400mC補 | AZ50: 2435 | BA50: 1 | BB50: 2 | BC50: 3 | BD50: 共通 | BE50: 共通400mC補 | BF50: =EA98 ->  | BL50: 砲丸投5.000kg | BM50: 650 | BX50: 30 | BY50: 30 | CB50: 124359 | CC50: =COUNTIF($CB$4:CB50,CB50) -> 1 | CD50: 1243591 | CF50: =IF(CE50="","",SUM($CE$4:CE50)) ->  | CG50: 47 | CR50: 0 | CS50: 0 | CT50: 0 | CU50: 0 | CV50: 0 | CW50: 1047 | DH50: =COUNTIF($DG$4:DG50,DG50) -> 47 | DK50: 2年 | DL50: =100000+$AO19*10+AQ19 -> 100392 | DM50: =IF(MOD(DL50,10)=0,"",MOD(DL49,10)+MOD(DL50,10)+MOD(DL51,10)*2) -> 9 | DN50: 100399 | DP50: =IF(DO50="","",COUNT($DO$4:DO50)) ->  | DR50: 139 | DT50: =DO142 -> 124359 | DU50: =COUNTIF($DT$4:DT50,DT50) -> 1 | DV50: 12435901 | DW50: 0 | EK50: 0 | EL50: 0 | EM50: 0 | EN50: 0 | EO50: 0 | EP50: 0 | ET50: 0 | EU50: 0 | EV50: 0 | EW50: 0 | EX50: 0 | EY50: 0
B51: 48 | AO51: 2436 | AP51: 1 | AQ51: 2 | AR51: 3 | AS51: 共通 | AT51: 共通400mC補 | AZ51: 2436 | BA51: 1 | BB51: 2 | BC51: 3 | BD51: 共通 | BE51: 共通400mC補 | BF51: =EA99 ->  | BL51: 砲丸投5.45kg | BM51: 654 | BX51: 31 | BY51: 31 | CB51: 124369 | CC51: =COUNTIF($CB$4:CB51,CB51) -> 1 | CD51: 1243691 | CF51: =IF(CE51="","",SUM($CE$4:CE51)) ->  | CG51: 48 | CR51: 0 | CS51: 0 | CT51: 0 | CU51: 0 | CV51: 0 | CW51: 1048 | DH51: =COUNTIF($DG$4:DG51,DG51) -> 48 | DK51: 3年 | DL51: =100000+$AO19*10+AR19 -> 100393 | DM51: =IF(MOD(DL51,10)=0,"",MOD(DL49,10)+MOD(DL50,10)+MOD(DL51,10)*2) -> 9 | DN51: 100399 | DP51: =IF(DO51="","",COUNT($DO$4:DO51)) ->  | DR51: 142 | DT51: =DO145 -> 124369 | DU51: =COUNTIF($DT$4:DT51,DT51) -> 1 | DV51: 12436901 | DW51: 0 | EK51: 0 | EL51: 0 | EM51: 0 | EN51: 0 | EO51: 0 | EP51: 0 | ET51: 0 | EU51: 0 | EV51: 0 | EW51: 0 | EX51: 0 | EY51: 0
B52: 49 | AQ52: 以上の選手、保護者の参加承諾を得ましたので申し込みます。 | BL52: 砲丸投6.00kg | BM52: 660 | BZ52: 女子 | CB52: 女子 | CF52: =IF(CE52="","",SUM($CE$4:CE52)) ->  | CG52: 49 | CR52: 0 | CS52: 0 | CT52: 0 | CU52: 0 | CV52: 0 | CW52: 1049 | DH52: =COUNTIF($DG$4:DG52,DG52) -> 49 | DK52: 1年 | DL52: =100000+$AO20*10+AP20 -> 100391 | DM52: =IF(MOD(DL52,10)=0,"",MOD(DL52,10)+MOD(DL53,10)+MOD(DL54,10)*2) -> 9 | DN52: 100399 | DO52: =IF(DN52<>"",DN52,IF(DN53<>"",DN53,IF(DN54<>"",DN54,""))) -> 100399 | DP52: =IF(DO52="","",COUNT($DO$4:DO52)) -> 17 | DR52: 145 | DT52: =DO148 -> 200011 | DU52: =COUNTIF($DT$4:DT52,DT52) -> 1 | DV52: 20001101 | DW52: 0 | EK52: =SUM(EK4:EK51) -> 0 | EL52: =SUM(EL4:EL51) -> 0 | EM52: =SUM(EM4:EM51) -> 0 | EN52: =SUM(EN4:EN51) -> 0 | EO52: =SUM(EO4:EO51) -> 0 | EP52: =SUM(EP4:EP51) -> 0 | ET52: =SUM(ET4:ET51) -> 0 | EU52: =SUM(EU4:EU51) -> 0 | EV52: =SUM(EV4:EV51) -> 0 | EW52: 0 | EX52: 0 | EY52: 0
B53: 50 | AV53: ２０２６年 | AZ53: 月 | BD53: 日 | BL53: ジャベリック | BM53: 607 | BZ53: =IF(BF4="","",20000+BF4) ->  | CB53: =200000+AZ4*10+BA4+BB4+BC4*2 -> 200011 | CC53: =COUNTIF($CB$53:CB53,CB53) -> 1 | CD53: =IF(AZ4="","",CB53*10+CC53) -> 2000111 | CF53: =IF(CE53="","",SUM($CE$4:CE53)) ->  | CG53: 50 | CR53: 0 | CS53: 0 | CT53: 0 | CU53: 0 | CV53: 0 | CW53: 1050 | DH53: =COUNTIF($DG$4:DG53,DG53) -> 50 | DK53: 2年 | DL53: =100000+$AO20*10+AQ20 -> 100392 | DM53: =IF(MOD(DL53,10)=0,"",MOD(DL52,10)+MOD(DL53,10)+MOD(DL54,10)*2) -> 9 | DN53: 100399 | DP53: =IF(DO53="","",COUNT($DO$4:DO53)) ->  | DR53: 148 | DT53: =DO151 -> 200199 | DU53: =COUNTIF($DT$4:DT53,DT53) -> 1 | DV53: 20019901 | DW53: 0
B54: 51 | AP54: 参加料金 | BL54: 四種競技 | BM54: 901 | BX54: =MATCH(#REF!,$BM$4:$BM$58,0) ->  | CB54: 200199 | CC54: =COUNTIF($CB$53:CB54,CB54) -> 1 | CD54: 2001991 | CF54: =IF(CE54="","",SUM($CE$4:CE54)) ->  | CG54: 51 | CR54: 0 | CS54: 0 | CT54: 0 | CU54: 0 | CV54: 0 | CW54: 1051 | DH54: =COUNTIF($DG$4:DG54,DG54) -> 51 | DK54: 3年 | DL54: =100000+$AO20*10+AR20 -> 100393 | DM54: =IF(MOD(DL54,10)=0,"",MOD(DL52,10)+MOD(DL53,10)+MOD(DL54,10)*2) -> 9 | DN54: 100399 | DP54: =IF(DO54="","",COUNT($DO$4:DO54)) ->  | DR54: 151 | DT54: =DO154 -> 200199 | DU54: =COUNTIF($DT$4:DT54,DT54) -> 2 | DV54: 20019902 | DW54: 0
B55: 52 | AS55: 男子個人 | AT55: =BM60&" ×" -> 1000 × | AU55: =EM55 -> 0 | AV55: ="＝ "&EN55 -> ＝ 0 | AW55: 円 | BD55: 女子個人 | BE55: =AT55 -> 1000 × | BF55: =EV55 -> 0 | BG55: ="＝ "&EW55 -> ＝ 0 | BH55: 円 | BX55: =MATCH(AQ55,$BM$4:$BM$58,0) ->  | CB55: 200199 | CC55: =COUNTIF($CB$53:CB55,CB55) -> 2 | CD55: 2001992 | CF55: =IF(CE55="","",SUM($CE$4:CE55)) ->  | CG55: 52 | CR55: 0 | CS55: 0 | CT55: 0 | CU55: 0 | CV55: 0 | CW55: 1052 | DH55: =COUNTIF($DG$4:DG55,DG55) -> 52 | DK55: 1年 | DL55: =100000+$AO21*10+AP21 -> 100391 | DM55: =IF(MOD(DL55,10)=0,"",MOD(DL55,10)+MOD(DL56,10)+MOD(DL57,10)*2) -> 9 | DN55: 100399 | DO55: =IF(DN55<>"",DN55,IF(DN56<>"",DN56,IF(DN57<>"",DN57,""))) -> 100399 | DP55: =IF(DO55="","",COUNT($DO$4:DO55)) -> 18 | DR55: 154 | DT55: =DO157 -> 200299 | DU55: =COUNTIF($DT$4:DT55,DT55) -> 1 | DV55: 20029901 | DW55: 0 | EK55: 個人 | EL55: =BM60 -> 1000 | EM55: =EL52+EO52 -> 0 | EN55: =EL55*EM55 -> 0 | ET55: 個人 | EU55: =EL55 -> 1000 | EV55: =EU52+EX52 -> 0 | EW55: =EU55*EV55 -> 0
B56: 53 | AS56: 四種競技 | AT56: =BM61&" ×" -> 1500 × | AU56: =EM56 -> 0 | AV56: ="＝ "&EN56 -> ＝ 0 | AW56: 円 | BD56: 四種競技 | BE56: =AT56 -> 1500 × | BF56: =EV56 -> 0 | BG56: ="＝ "&EW56 -> ＝ 0 | BH56: 円 | BM56: 19 | BX56: =MATCH(AQ56,$BM$4:$BM$58,0) ->  | CB56: 200299 | CC56: =COUNTIF($CB$53:CB56,CB56) -> 1 | CD56: 2002991 | CF56: =IF(CE56="","",SUM($CE$4:CE56)) ->  | CG56: 53 | CR56: 0 | CS56: 0 | CT56: 0 | CU56: 0 | CV56: 0 | CW56: 1053 | DH56: =COUNTIF($DG$4:DG56,DG56) -> 53 | DK56: 2年 | DL56: =100000+$AO21*10+AQ21 -> 100392 | DM56: =IF(MOD(DL56,10)=0,"",MOD(DL55,10)+MOD(DL56,10)+MOD(DL57,10)*2) -> 9 | DN56: 100399 | DP56: =IF(DO56="","",COUNT($DO$4:DO56)) ->  | DR56: 157 | DT56: =DO160 -> 200299 | DU56: =COUNTIF($DT$4:DT56,DT56) -> 2 | DV56: 20029902 | DW56: 0 | EK56: ４種 | EL56: =BM61 -> 1500 | EM56: =EM52+EP52 -> 0 | EN56: =EL56*EM56 -> 0 | ET56: ４種 | EU56: =EL56 -> 1500 | EV56: =EV52+EY52 -> 0 | EW56: =EU56*EV56 -> 0
B57: 54 | AS57: リレー | AT57: =BM62&" ×" -> 2000 × | AU57: =EM57 -> 0 | AV57: ＝ 0 | AW57: 円 | BD57: リレー | BE57: =AT57 -> 2000 × | BF57: =EV57 -> 0 | BG57: ="＝ "&EW57 -> ＝ 0 | BH57: 円 | BM57: 29 | BX57: =MATCH(AQ57,$BM$4:$BM$58,0) ->  | CB57: 200299 | CC57: =COUNTIF($CB$53:CB57,CB57) -> 2 | CD57: 2002992 | CF57: =IF(CE57="","",SUM($CE$4:CE57)) ->  | CG57: 54 | CR57: 0 | CS57: 0 | CT57: 0 | CU57: 0 | CV57: 0 | CW57: 1054 | DH57: =COUNTIF($DG$4:DG57,DG57) -> 54 | DK57: 3年 | DL57: =100000+$AO21*10+AR21 -> 100393 | DM57: =IF(MOD(DL57,10)=0,"",MOD(DL55,10)+MOD(DL56,10)+MOD(DL57,10)*2) -> 9 | DN57: 100399 | DP57: =IF(DO57="","",COUNT($DO$4:DO57)) ->  | DR57: 160 | DT57: =DO163 -> 200399 | DU57: =COUNTIF($DT$4:DT57,DT57) -> 1 | DV57: 20039901 | DW57: 0 | EK57: リレー | EL57: 2000 | EM57: =EN52 -> 0 | EN57: 0 | ET57: リレー | EU57: 2000 | EV57: =EW52 -> 0 | EW57: 0
B58: 55 | AU58: 男子合計 | AV58: =EN58 -> 0 | AW58: 円 | BF58: 女子合計 | BG58: =EW58 -> 0 | BH58: 円 | BM58: 39 | CB58: 200399 | CC58: =COUNTIF($CB$53:CB58,CB58) -> 1 | CD58: 2003991 | CF58: =IF(CE58="","",SUM($CE$4:CE58)) ->  | CG58: 55 | CR58: 0 | CS58: 0 | CT58: 0 | CU58: 0 | CV58: 0 | CW58: 1055 | DH58: =COUNTIF($DG$4:DG58,DG58) -> 55 | DK58: 1年 | DL58: =100000+$AO22*10+AP22 -> 100391 | DM58: =IF(MOD(DL58,10)=0,"",MOD(DL58,10)+MOD(DL59,10)+MOD(DL60,10)*2) -> 9 | DN58: 100399 | DO58: =IF(DN58<>"",DN58,IF(DN59<>"",DN59,IF(DN60<>"",DN60,""))) -> 100399 | DP58: =IF(DO58="","",COUNT($DO$4:DO58)) -> 19 | DR58: 163 | DT58: =DO166 -> 200399 | DU58: =COUNTIF($DT$4:DT58,DT58) -> 2 | DV58: 20039902 | DW58: 0 | EN58: =SUM(EN55:EN57) -> 0 | EW58: =SUM(EW55:EW57) -> 0
B59: 56 | CB59: 200399 | CC59: =COUNTIF($CB$53:CB59,CB59) -> 2 | CD59: 2003992 | CF59: =IF(CE59="","",SUM($CE$4:CE59)) ->  | CG59: 56 | CR59: 0 | CS59: 0 | CT59: 0 | CU59: 0 | CV59: 0 | CW59: 1056 | DH59: =COUNTIF($DG$4:DG59,DG59) -> 56 | DK59: 2年 | DL59: =100000+$AO22*10+AQ22 -> 100392 | DM59: =IF(MOD(DL59,10)=0,"",MOD(DL58,10)+MOD(DL59,10)+MOD(DL60,10)*2) -> 9 | DN59: 100399 | DP59: =IF(DO59="","",COUNT($DO$4:DO59)) ->  | DR59: 166 | DT59: =DO169 -> 200399 | DU59: =COUNTIF($DT$4:DT59,DT59) -> 3 | DV59: 20039903 | DW59: 0
B60: 57 | BF60: 参加料金総計 | BG60: =AV58+BG58 -> 0 | BH60: 円 | BL60: 個人出場費 | BM60: 1000 | CB60: 200399 | CC60: =COUNTIF($CB$53:CB60,CB60) -> 3 | CD60: 2003993 | CF60: =IF(CE60="","",SUM($CE$4:CE60)) ->  | CG60: 57 | CR60: 0 | CS60: 0 | CT60: 0 | CU60: 0 | CV60: 0 | CW60: 1057 | DH60: =COUNTIF($DG$4:DG60,DG60) -> 57 | DK60: 3年 | DL60: =100000+$AO22*10+AR22 -> 100393 | DM60: =IF(MOD(DL60,10)=0,"",MOD(DL58,10)+MOD(DL59,10)+MOD(DL60,10)*2) -> 9 | DN60: 100399 | DP60: =IF(DO60="","",COUNT($DO$4:DO60)) ->  | DR60: 169 | DT60: =DO172 -> 200399 | DU60: =COUNTIF($DT$4:DT60,DT60) -> 4 | DV60: 20039904 | DW60: 0
B61: 58 | BF61: 支払い方法 | BL61: 四種競技出場費 | BM61: 1500 | CB61: 200399 | CC61: =COUNTIF($CB$53:CB61,CB61) -> 4 | CD61: 2003994 | CF61: =IF(CE61="","",SUM($CE$4:CE61)) ->  | CG61: 58 | CR61: 0 | CS61: 0 | CT61: 0 | CU61: 0 | CV61: 0 | CW61: 1058 | DH61: =COUNTIF($DG$4:DG61,DG61) -> 58 | DK61: 1年 | DL61: =100000+$AO23*10+AP23 -> 100391 | DM61: =IF(MOD(DL61,10)=0,"",MOD(DL61,10)+MOD(DL62,10)+MOD(DL63,10)*2) -> 9 | DN61: 100399 | DO61: =IF(DN61<>"",DN61,IF(DN62<>"",DN62,IF(DN63<>"",DN63,""))) -> 100399 | DP61: =IF(DO61="","",COUNT($DO$4:DO61)) -> 20 | DR61: 172 | DT61: =DO175 -> 200399 | DU61: =COUNTIF($DT$4:DT61,DT61) -> 5 | DV61: 20039905 | DW61: 0
B62: 59 | BF62: ｢振込｣｢持参｣等 | BL62: リレー出場費 | BM62: 2000 | CB62: 200399 | CC62: =COUNTIF($CB$53:CB62,CB62) -> 5 | CD62: 2003995 | CF62: =IF(CE62="","",SUM($CE$4:CE62)) ->  | CG62: 59 | CR62: 0 | CS62: 0 | CT62: 0 | CU62: 0 | CV62: 0 | CW62: 1059 | DH62: =COUNTIF($DG$4:DG62,DG62) -> 59 | DK62: 2年 | DL62: =100000+$AO23*10+AQ23 -> 100392 | DM62: =IF(MOD(DL62,10)=0,"",MOD(DL61,10)+MOD(DL62,10)+MOD(DL63,10)*2) -> 9 | DN62: 100399 | DP62: =IF(DO62="","",COUNT($DO$4:DO62)) ->  | DR62: 175 | DT62: =DO178 -> 200399 | DU62: =COUNTIF($DT$4:DT62,DT62) -> 6 | DV62: 20039906 | DW62: 0
B63: 60 | BI63: =IF(BM1=1,"現金書留、郵便、銀行、持参、等","") ->  | BL63: 出場費ありのときは、「１」を入力する。 | BM63: 1 | CB63: 200399 | CC63: =COUNTIF($CB$53:CB63,CB63) -> 6 | CD63: 2003996 | CF63: =IF(CE63="","",SUM($CE$4:CE63)) ->  | CG63: 60 | CR63: 0 | CS63: 0 | CT63: 0 | CU63: 0 | CV63: 0 | CW63: 1060 | DH63: =COUNTIF($DG$4:DG63,DG63) -> 60 | DK63: 3年 | DL63: =100000+$AO23*10+AR23 -> 100393 | DM63: =IF(MOD(DL63,10)=0,"",MOD(DL61,10)+MOD(DL62,10)+MOD(DL63,10)*2) -> 9 | DN63: 100399 | DP63: =IF(DO63="","",COUNT($DO$4:DO63)) ->  | DR63: 178 | DT63: =DO181 -> 200399 | DU63: =COUNTIF($DT$4:DT63,DT63) -> 7 | DV63: 20039907 | DW63: 0
B64: 61 | CB64: 200399 | CC64: =COUNTIF($CB$53:CB64,CB64) -> 7 | CD64: 2003997 | CF64: =IF(CE64="","",SUM($CE$4:CE64)) ->  | CG64: 61 | CR64: 0 | CS64: 0 | CT64: 0 | CU64: 0 | CV64: 0 | CW64: 1061 | DH64: =COUNTIF($DG$4:DG64,DG64) -> 61 | DK64: 1年 | DL64: =100000+$AO24*10+AP24 -> 100391 | DM64: =IF(MOD(DL64,10)=0,"",MOD(DL64,10)+MOD(DL65,10)+MOD(DL66,10)*2) -> 9 | DN64: 100399 | DO64: =IF(DN64<>"",DN64,IF(DN65<>"",DN65,IF(DN66<>"",DN66,""))) -> 100399 | DP64: =IF(DO64="","",COUNT($DO$4:DO64)) -> 21 | DR64: 181 | DT64: =DO184 -> 200399 | DU64: =COUNTIF($DT$4:DT64,DT64) -> 8 | DV64: 20039908 | DW64: 0 | EA64: =IF($DW64=0,"",INDEX($CH$4:$CQ$1003,$DZ64,EA$1)) ->  | EE64: =IF($DW64=0,"",INDEX($CH$4:$CQ$1003,$DY64,EE$1)) -> 
B65: 62 | BG65: =IF(BD65="","",IF(BK66=1," ○"," ○")) ->  | CB65: 200399 | CC65: =COUNTIF($CB$53:CB65,CB65) -> 8 | CD65: 2003998 | CF65: =IF(CE65="","",SUM($CE$4:CE65)) ->  | CG65: 62 | CR65: 0 | CS65: 0 | CT65: 0 | CU65: 0 | CV65: 0 | CW65: 1062 | DH65: =COUNTIF($DG$4:DG65,DG65) -> 62 | DK65: 2年 | DL65: =100000+$AO24*10+AQ24 -> 100392 | DM65: =IF(MOD(DL65,10)=0,"",MOD(DL64,10)+MOD(DL65,10)+MOD(DL66,10)*2) -> 9 | DN65: 100399 | DP65: =IF(DO65="","",COUNT($DO$4:DO65)) ->  | DR65: 184 | DT65: =DO187 -> 200399 | DU65: =COUNTIF($DT$4:DT65,DT65) -> 9 | DV65: 20039909 | DW65: 0 | EU65: 個人種目 | EV65: ４種競技 | EW65: リレー | EX65: 個人種目 | EY65: ４種競技
B66: 63 | CB66: 200399 | CC66: =COUNTIF($CB$53:CB66,CB66) -> 9 | CD66: 2003999 | CF66: =IF(CE66="","",SUM($CE$4:CE66)) ->  | CG66: 63 | CR66: 0 | CS66: 0 | CT66: 0 | CU66: 0 | CV66: 0 | CW66: 1063 | DH66: =COUNTIF($DG$4:DG66,DG66) -> 63 | DK66: 3年 | DL66: =100000+$AO24*10+AR24 -> 100393 | DM66: =IF(MOD(DL66,10)=0,"",MOD(DL64,10)+MOD(DL65,10)+MOD(DL66,10)*2) -> 9 | DN66: 100399 | DP66: =IF(DO66="","",COUNT($DO$4:DO66)) ->  | DR66: 187 | DT66: =DO190 -> 200399 | DU66: =COUNTIF($DT$4:DT66,DT66) -> 10 | DV66: 20039910 | DW66: 0
B67: 64 | BG67: =IF(BD67="","",IF(BK68=1," ○"," ○")) ->  | CB67: 200399 | CC67: =COUNTIF($CB$53:CB67,CB67) -> 10 | CD67: 2004000 | CF67: =IF(CE67="","",SUM($CE$4:CE67)) ->  | CG67: 64 | CR67: 0 | CS67: 0 | CT67: 0 | CU67: 0 | CV67: 0 | CW67: 1064 | DH67: =COUNTIF($DG$4:DG67,DG67) -> 64 | DK67: 1年 | DL67: =100000+$AO25*10+AP25 -> 100391 | DM67: =IF(MOD(DL67,10)=0,"",MOD(DL67,10)+MOD(DL68,10)+MOD(DL69,10)*2) -> 9 | DN67: 100399 | DO67: =IF(DN67<>"",DN67,IF(DN68<>"",DN68,IF(DN69<>"",DN69,""))) -> 100399 | DP67: =IF(DO67="","",COUNT($DO$4:DO67)) -> 22 | DR67: 190 | DT67: =DO193 -> 200399 | DU67: =COUNTIF($DT$4:DT67,DT67) -> 11 | DV67: 20039911 | DW67: 0
B68: 65 | AW68: 印 | CB68: 200399 | CC68: =COUNTIF($CB$53:CB68,CB68) -> 11 | CD68: 2004001 | CE68: =IF(SUM(I68:M68)=0,"",1) ->  | CF68: =IF(CE68="","",SUM($CE$4:CE68)) ->  | CG68: 65 | CR68: 0 | CS68: 0 | CT68: =COUNTIF($BZ$4:$BZ$100,CS68) -> 0 | CU68: 0 | CV68: 0 | CW68: 1065 | CY68: =INDEX($CH$4:$CH$1003,$CX68,1) ->  | CZ68: =INDEX($CM$4:$CM$1003,$CX68,1) ->  | DB68: =INDEX($CN$4:$CQ$1003,$CX68,2) ->  | DH68: =COUNTIF($DG$4:DG68,DG68) -> 65 | DK68: 2年 | DL68: =100000+$AO25*10+AQ25 -> 100392 | DM68: =IF(MOD(DL68,10)=0,"",MOD(DL67,10)+MOD(DL68,10)+MOD(DL69,10)*2) -> 9 | DN68: 100399 | DP68: =IF(DO68="","",COUNT($DO$4:DO68)) ->  | DR68: =MATCH(B68,$DP$4:$DP$291,0) -> 193 | DT68: =DO196 -> 200399 | DU68: =COUNTIF($DT$4:DT68,DT68) -> 12 | DV68: 20039912 | DW68: 0
B69: 66 | BG69: =IF(BD69="","",IF(BK70=1," ○"," ○")) ->  | BL69: 公認審判の資格をお持ちの先生は、 | CB69: 200399 | CC69: =COUNTIF($CB$53:CB69,CB69) -> 12 | CD69: 2004002 | CF69: =IF(CE69="","",SUM($CE$4:CE69)) ->  | CG69: 66 | CR69: =IF(CN69="",0,IF(CP69="",CN69,CP69*10+9)) -> 0 | CS69: =C69*10000+D69 -> 0 | CT69: 0 | CU69: =COUNT(CN69,CN269,CN469,CN669,CN869) -> 0 | CV69: =IF(CT69=CU69,0,1) -> 0 | CW69: 1066 | CX69: =IF(CG69>$CX$1,"",MATCH(CG69,$CF$4:$CF$203,0)) ->  | DA69: =IF($I$204=1,0,INDEX($CN$4:$CR$1003,$CX69,5)) ->  | DC69: =IF($U$204=1,0,INDEX($CN$4:$CQ$1003,$CX69,3)) ->  | DD69: =IF($U$204=1,0,INDEX($CN$4:$CQ$1003,$CX69,4)) ->  | DE69: =CY69*100000+DA69*10+CZ69 ->  | DF69: =MATCH(DE69,$DL$4:$DL$291,0) ->  | DG69: =INDEX($DN$4:$DN$291,DF69,1) ->  | DH69: =COUNTIF($DG$4:DG69,DG69) -> 66 | DI69: =DG69*100+DH69 ->  | DK69: 3年 | DL69: =100000+$AO25*10+AR25 -> 100393 | DM69: =IF(MOD(DL69,10)=0,"",MOD(DL67,10)+MOD(DL68,10)+MOD(DL69,10)*2) -> 9 | DN69: 100399 | DP69: =IF(DO69="","",COUNT($DO$4:DO69)) ->  | DR69: 196 | DT69: =DO199 -> 200399 | DU69: =COUNTIF($DT$4:DT69,DT69) -> 13 | DV69: =IF(DT69="","",DT69*100+DU69) -> 20039913 | DW69: =COUNTIF($DI$4:$DI$483,DV69) -> 0 | DX69: =MATCH(DV69,$DI$4:$DI$483,0) ->  | DY69: =INDEX($CX$4:$CX$483,DX69,1) ->  | DZ69: =MOD(INDEX($CX$4:$CX$483,DX69,1),200) ->  | EH69: =MATCH(EG69,$BM$4:$BM$55,0) -> 
B70: 67 | AW70: 印 | BL70: の中に「１」を入力してください。 | CB70: 200399 | CC70: =COUNTIF($CB$53:CB70,CB70) -> 13 | CD70: 2004003 | CF70: =IF(CE70="","",SUM($CE$4:CE70)) ->  | CG70: 67 | CR70: 0 | CS70: 0 | CT70: 0 | CU70: 0 | CV70: 0 | CW70: 1067 | DH70: =COUNTIF($DG$4:DG70,DG70) -> 67 | DK70: 1年 | DL70: =100000+$AO26*10+AP26 -> 100391 | DM70: =IF(MOD(DL70,10)=0,"",MOD(DL70,10)+MOD(DL71,10)+MOD(DL72,10)*2) -> 9 | DN70: 100399 | DO70: =IF(DN70<>"",DN70,IF(DN71<>"",DN71,IF(DN72<>"",DN72,""))) -> 100399 | DP70: =IF(DO70="","",COUNT($DO$4:DO70)) -> 23 | DR70: 199 | DT70: =DO202 -> 200399 | DU70: =COUNTIF($DT$4:DT70,DT70) -> 14 | DV70: 20039914 | DW70: 0
B71: 68 | CB71: 200399 | CC71: =COUNTIF($CB$53:CB71,CB71) -> 14 | CD71: 2004004 | CF71: =IF(CE71="","",SUM($CE$4:CE71)) ->  | CG71: 68 | CR71: 0 | CS71: 0 | CT71: 0 | CU71: 0 | CV71: 0 | CW71: 1068 | DH71: =COUNTIF($DG$4:DG71,DG71) -> 68 | DK71: 2年 | DL71: =100000+$AO26*10+AQ26 -> 100392 | DM71: =IF(MOD(DL71,10)=0,"",MOD(DL70,10)+MOD(DL71,10)+MOD(DL72,10)*2) -> 9 | DN71: =IF(DM71="","",ROUNDDOWN(DL71,-1)+DM71) -> 100399 | DP71: =IF(DO71="","",COUNT($DO$4:DO71)) ->  | DR71: 202 | DT71: =DO205 -> 200399 | DU71: =COUNTIF($DT$4:DT71,DT71) -> 15 | DV71: 20039915 | DW71: 0 | EI71: =IF(EB71="","",INDEX($BL$4:$BL$55,EH71)) -> 
B72: 69 | CB72: 200399 | CC72: =COUNTIF($CB$53:CB72,CB72) -> 15 | CD72: 2004005 | CF72: =IF(CE72="","",SUM($CE$4:CE72)) ->  | CG72: 69 | CR72: 0 | CS72: 0 | CT72: 0 | CU72: 0 | CV72: 0 | CW72: 1069 | DH72: =COUNTIF($DG$4:DG72,DG72) -> 69 | DK72: 3年 | DL72: =100000+$AO26*10+AR26 -> 100393 | DM72: =IF(MOD(DL72,10)=0,"",MOD(DL70,10)+MOD(DL71,10)+MOD(DL72,10)*2) -> 9 | DN72: 100399 | DP72: =IF(DO72="","",COUNT($DO$4:DO72)) ->  | DR72: 205 | DT72: =DO208 -> 200399 | DU72: =COUNTIF($DT$4:DT72,DT72) -> 16 | DV72: 20039916 | DW72: 0
B73: 70 | AP73: の中に、必要事項を入力してください。 | CB73: 200399 | CC73: =COUNTIF($CB$53:CB73,CB73) -> 16 | CD73: 2004006 | CF73: =IF(CE73="","",SUM($CE$4:CE73)) ->  | CG73: 70 | CR73: 0 | CS73: 0 | CT73: 0 | CU73: 0 | CV73: 0 | CW73: 1070 | DH73: =COUNTIF($DG$4:DG73,DG73) -> 70 | DK73: 1年 | DL73: =100000+$AO27*10+AP27 -> 100391 | DM73: =IF(MOD(DL73,10)=0,"",MOD(DL73,10)+MOD(DL74,10)+MOD(DL75,10)*2) -> 9 | DN73: 100399 | DO73: =IF(DN73<>"",DN73,IF(DN74<>"",DN74,IF(DN75<>"",DN75,""))) -> 100399 | DP73: =IF(DO73="","",COUNT($DO$4:DO73)) -> 24 | DR73: 208 | DT73: =DO211 -> 200399 | DU73: =COUNTIF($DT$4:DT73,DT73) -> 17 | DV73: 20039917 | DW73: 0
B74: 71 | CB74: 200399 | CC74: =COUNTIF($CB$53:CB74,CB74) -> 17 | CD74: 2004007 | CF74: =IF(CE74="","",SUM($CE$4:CE74)) ->  | CG74: 71 | CR74: 0 | CS74: 0 | CT74: 0 | CU74: 0 | CV74: 0 | CW74: 1071 | DH74: =COUNTIF($DG$4:DG74,DG74) -> 71 | DK74: 2年 | DL74: =100000+$AO27*10+AQ27 -> 100392 | DM74: =IF(MOD(DL74,10)=0,"",MOD(DL73,10)+MOD(DL74,10)+MOD(DL75,10)*2) -> 9 | DN74: 100399 | DP74: =IF(DO74="","",COUNT($DO$4:DO74)) ->  | DR74: 211 | DT74: =DO214 -> 200399 | DU74: =COUNTIF($DT$4:DT74,DT74) -> 18 | DV74: 20039918 | DW74: 0
B75: 72 | AO75: 一覧を印字して、校長・代表者に確認の上、参加料を添えて地区長に提出してください。 | CB75: 200399 | CC75: =COUNTIF($CB$53:CB75,CB75) -> 18 | CD75: 2004008 | CF75: =IF(CE75="","",SUM($CE$4:CE75)) ->  | CG75: 72 | CR75: 0 | CS75: 0 | CT75: 0 | CU75: 0 | CV75: 0 | CW75: 1072 | DH75: =COUNTIF($DG$4:DG75,DG75) -> 72 | DK75: 3年 | DL75: =100000+$AO27*10+AR27 -> 100393 | DM75: =IF(MOD(DL75,10)=0,"",MOD(DL73,10)+MOD(DL74,10)+MOD(DL75,10)*2) -> 9 | DN75: 100399 | DP75: =IF(DO75="","",COUNT($DO$4:DO75)) ->  | DR75: 214 | DT75: =DO217 -> 200399 | DU75: =COUNTIF($DT$4:DT75,DT75) -> 19 | DV75: 20039919 | DW75: 0
B76: 73 | CB76: 200399 | CC76: =COUNTIF($CB$53:CB76,CB76) -> 19 | CD76: 2004009 | CF76: =IF(CE76="","",SUM($CE$4:CE76)) ->  | CG76: 73 | CR76: 0 | CS76: 0 | CT76: 0 | CU76: 0 | CV76: 0 | CW76: 1073 | DH76: =COUNTIF($DG$4:DG76,DG76) -> 73 | DK76: 1年 | DL76: =100000+$AO28*10+AP28 -> 100391 | DM76: =IF(MOD(DL76,10)=0,"",MOD(DL76,10)+MOD(DL77,10)+MOD(DL78,10)*2) -> 9 | DN76: 100399 | DO76: =IF(DN76<>"",DN76,IF(DN77<>"",DN77,IF(DN78<>"",DN78,""))) -> 100399 | DP76: =IF(DO76="","",COUNT($DO$4:DO76)) -> 25 | DR76: 217 | DT76: =DO220 -> 200399 | DU76: =COUNTIF($DT$4:DT76,DT76) -> 20 | DV76: 20039920 | DW76: 0
B77: 74 | CB77: 200399 | CC77: =COUNTIF($CB$53:CB77,CB77) -> 20 | CD77: 2004010 | CF77: =IF(CE77="","",SUM($CE$4:CE77)) ->  | CG77: 74 | CR77: 0 | CS77: 0 | CT77: 0 | CU77: 0 | CV77: 0 | CW77: 1074 | DH77: =COUNTIF($DG$4:DG77,DG77) -> 74 | DK77: 2年 | DL77: =100000+$AO28*10+AQ28 -> 100392 | DM77: =IF(MOD(DL77,10)=0,"",MOD(DL76,10)+MOD(DL77,10)+MOD(DL78,10)*2) -> 9 | DN77: 100399 | DP77: =IF(DO77="","",COUNT($DO$4:DO77)) ->  | DR77: 220 | DT77: =DO223 -> 200399 | DU77: =COUNTIF($DT$4:DT77,DT77) -> 21 | DV77: 20039921 | DW77: 0
B78: 75 | CB78: 200399 | CC78: =COUNTIF($CB$53:CB78,CB78) -> 21 | CD78: 2004011 | CF78: =IF(CE78="","",SUM($CE$4:CE78)) ->  | CG78: 75 | CR78: 0 | CS78: 0 | CT78: 0 | CU78: 0 | CV78: 0 | CW78: 1075 | DH78: =COUNTIF($DG$4:DG78,DG78) -> 75 | DK78: 3年 | DL78: =100000+$AO28*10+AR28 -> 100393 | DM78: =IF(MOD(DL78,10)=0,"",MOD(DL76,10)+MOD(DL77,10)+MOD(DL78,10)*2) -> 9 | DN78: 100399 | DP78: =IF(DO78="","",COUNT($DO$4:DO78)) ->  | DR78: 223 | DT78: =DO226 -> 200399 | DU78: =COUNTIF($DT$4:DT78,DT78) -> 22 | DV78: 20039922 | DW78: 0
B79: 76 | CB79: 200399 | CC79: =COUNTIF($CB$53:CB79,CB79) -> 22 | CD79: 2004012 | CF79: =IF(CE79="","",SUM($CE$4:CE79)) ->  | CG79: 76 | CR79: 0 | CS79: 0 | CT79: 0 | CU79: 0 | CV79: 0 | CW79: 1076 | DH79: =COUNTIF($DG$4:DG79,DG79) -> 76 | DK79: 1年 | DL79: =100000+$AO29*10+AP29 -> 100391 | DM79: =IF(MOD(DL79,10)=0,"",MOD(DL79,10)+MOD(DL80,10)+MOD(DL81,10)*2) -> 9 | DN79: 100399 | DO79: =IF(DN79<>"",DN79,IF(DN80<>"",DN80,IF(DN81<>"",DN81,""))) -> 100399 | DP79: =IF(DO79="","",COUNT($DO$4:DO79)) -> 26 | DR79: 226 | DT79: =DO229 -> 200399 | DU79: =COUNTIF($DT$4:DT79,DT79) -> 23 | DV79: 20039923 | DW79: 0
B80: 77 | CB80: 200399 | CC80: =COUNTIF($CB$53:CB80,CB80) -> 23 | CD80: 2004013 | CF80: =IF(CE80="","",SUM($CE$4:CE80)) ->  | CG80: 77 | CR80: 0 | CS80: 0 | CT80: 0 | CU80: 0 | CV80: 0 | CW80: 1077 | DH80: =COUNTIF($DG$4:DG80,DG80) -> 77 | DK80: 2年 | DL80: =100000+$AO29*10+AQ29 -> 100392 | DM80: =IF(MOD(DL80,10)=0,"",MOD(DL79,10)+MOD(DL80,10)+MOD(DL81,10)*2) -> 9 | DN80: 100399 | DP80: =IF(DO80="","",COUNT($DO$4:DO80)) ->  | DR80: 229 | DT80: =DO232 -> 200399 | DU80: =COUNTIF($DT$4:DT80,DT80) -> 24 | DV80: 20039924 | DW80: 0
B81: 78 | CB81: 200399 | CC81: =COUNTIF($CB$53:CB81,CB81) -> 24 | CD81: 2004014 | CF81: =IF(CE81="","",SUM($CE$4:CE81)) ->  | CG81: 78 | CR81: 0 | CS81: 0 | CT81: 0 | CU81: 0 | CV81: 0 | CW81: 1078 | DH81: =COUNTIF($DG$4:DG81,DG81) -> 78 | DK81: 3年 | DL81: =100000+$AO29*10+AR29 -> 100393 | DM81: =IF(MOD(DL81,10)=0,"",MOD(DL79,10)+MOD(DL80,10)+MOD(DL81,10)*2) -> 9 | DN81: 100399 | DP81: =IF(DO81="","",COUNT($DO$4:DO81)) ->  | DR81: 232 | DT81: =DO235 -> 200399 | DU81: =COUNTIF($DT$4:DT81,DT81) -> 25 | DV81: 20039925 | DW81: 0
B82: 79 | CB82: 200399 | CC82: =COUNTIF($CB$53:CB82,CB82) -> 25 | CD82: 2004015 | CF82: =IF(CE82="","",SUM($CE$4:CE82)) ->  | CG82: 79 | CR82: 0 | CS82: 0 | CT82: 0 | CU82: 0 | CV82: 0 | CW82: 1079 | DH82: =COUNTIF($DG$4:DG82,DG82) -> 79 | DK82: 1年 | DL82: =100000+$AO30*10+AP30 -> 100391 | DM82: =IF(MOD(DL82,10)=0,"",MOD(DL82,10)+MOD(DL83,10)+MOD(DL84,10)*2) -> 9 | DN82: 100399 | DO82: =IF(DN82<>"",DN82,IF(DN83<>"",DN83,IF(DN84<>"",DN84,""))) -> 100399 | DP82: =IF(DO82="","",COUNT($DO$4:DO82)) -> 27 | DR82: 235 | DT82: =DO238 -> 204319 | DU82: =COUNTIF($DT$4:DT82,DT82) -> 1 | DV82: 20431901 | DW82: 0
B83: 80 | CB83: 204319 | CC83: =COUNTIF($CB$53:CB83,CB83) -> 1 | CD83: 2043191 | CF83: =IF(CE83="","",SUM($CE$4:CE83)) ->  | CG83: 80 | CR83: 0 | CS83: 0 | CT83: 0 | CU83: 0 | CV83: 0 | CW83: 1080 | DH83: =COUNTIF($DG$4:DG83,DG83) -> 80 | DK83: 2年 | DL83: =100000+$AO30*10+AQ30 -> 100392 | DM83: =IF(MOD(DL83,10)=0,"",MOD(DL82,10)+MOD(DL83,10)+MOD(DL84,10)*2) -> 9 | DN83: 100399 | DP83: =IF(DO83="","",COUNT($DO$4:DO83)) ->  | DR83: 238 | DT83: =DO241 -> 204329 | DU83: =COUNTIF($DT$4:DT83,DT83) -> 1 | DV83: 20432901 | DW83: 0
B84: 81 | CB84: 204329 | CC84: =COUNTIF($CB$53:CB84,CB84) -> 1 | CD84: 2043291 | CF84: =IF(CE84="","",SUM($CE$4:CE84)) ->  | CG84: 81 | CR84: 0 | CS84: 0 | CT84: 0 | CU84: 0 | CV84: 0 | CW84: 1081 | DH84: =COUNTIF($DG$4:DG84,DG84) -> 81 | DK84: 3年 | DL84: =100000+$AO30*10+AR30 -> 100393 | DM84: =IF(MOD(DL84,10)=0,"",MOD(DL82,10)+MOD(DL83,10)+MOD(DL84,10)*2) -> 9 | DN84: 100399 | DP84: =IF(DO84="","",COUNT($DO$4:DO84)) ->  | DR84: 241 | DT84: =DO244 -> 204339 | DU84: =COUNTIF($DT$4:DT84,DT84) -> 1 | DV84: 20433901 | DW84: 0 | EA84: =IF($DW84=0,"",INDEX($CH$4:$CQ$1003,$DZ84,EA$1)) ->  | EE84: =IF($DW84=0,"",INDEX($CH$4:$CQ$1003,$DY84,EE$1)) -> 
B85: 82 | BE85: 1 | CB85: 204339 | CC85: =COUNTIF($CB$53:CB85,CB85) -> 1 | CD85: 2043391 | CF85: =IF(CE85="","",SUM($CE$4:CE85)) ->  | CG85: 82 | CR85: 0 | CS85: 0 | CT85: 0 | CU85: 0 | CV85: 0 | CW85: 1082 | DH85: =COUNTIF($DG$4:DG85,DG85) -> 82 | DK85: 1年 | DL85: =100000+$AO31*10+AP31 -> 100391 | DM85: =IF(MOD(DL85,10)=0,"",MOD(DL85,10)+MOD(DL86,10)+MOD(DL87,10)*2) -> 9 | DN85: 100399 | DO85: =IF(DN85<>"",DN85,IF(DN86<>"",DN86,IF(DN87<>"",DN87,""))) -> 100399 | DP85: =IF(DO85="","",COUNT($DO$4:DO85)) -> 28 | DR85: 244 | DT85: =DO247 -> 204349 | DU85: =COUNTIF($DT$4:DT85,DT85) -> 1 | DV85: 20434901 | DW85: 0
B86: 83 | CB86: 204349 | CC86: =COUNTIF($CB$53:CB86,CB86) -> 1 | CD86: 2043491 | CF86: =IF(CE86="","",SUM($CE$4:CE86)) ->  | CG86: 83 | CR86: 0 | CS86: 0 | CT86: 0 | CU86: 0 | CV86: 0 | CW86: 1083 | DH86: =COUNTIF($DG$4:DG86,DG86) -> 83 | DK86: 2年 | DL86: =100000+$AO31*10+AQ31 -> 100392 | DM86: =IF(MOD(DL86,10)=0,"",MOD(DL85,10)+MOD(DL86,10)+MOD(DL87,10)*2) -> 9 | DN86: 100399 | DP86: =IF(DO86="","",COUNT($DO$4:DO86)) ->  | DR86: 247 | DT86: =DO250 -> 204359 | DU86: =COUNTIF($DT$4:DT86,DT86) -> 1 | DV86: 20435901 | DW86: 0
B87: 84 | CB87: 204359 | CC87: =COUNTIF($CB$53:CB87,CB87) -> 1 | CD87: 2043591 | CF87: =IF(CE87="","",SUM($CE$4:CE87)) ->  | CG87: 84 | CR87: 0 | CS87: 0 | CT87: 0 | CU87: 0 | CV87: 0 | CW87: 1084 | DH87: =COUNTIF($DG$4:DG87,DG87) -> 84 | DK87: 3年 | DL87: =100000+$AO31*10+AR31 -> 100393 | DM87: =IF(MOD(DL87,10)=0,"",MOD(DL85,10)+MOD(DL86,10)+MOD(DL87,10)*2) -> 9 | DN87: 100399 | DP87: =IF(DO87="","",COUNT($DO$4:DO87)) ->  | DR87: 250 | DT87: =DO253 -> 204369 | DU87: =COUNTIF($DT$4:DT87,DT87) -> 1 | DV87: 20436901 | DW87: 0
B88: 85 | CB88: 204369 | CC88: =COUNTIF($CB$53:CB88,CB88) -> 1 | CD88: 2043691 | CF88: =IF(CE88="","",SUM($CE$4:CE88)) ->  | CG88: 85 | CR88: 0 | CS88: 0 | CT88: 0 | CU88: 0 | CV88: 0 | CW88: 1085 | DH88: =COUNTIF($DG$4:DG88,DG88) -> 85 | DK88: 1年 | DL88: =100000+$AO32*10+AP32 -> 100391 | DM88: =IF(MOD(DL88,10)=0,"",MOD(DL88,10)+MOD(DL89,10)+MOD(DL90,10)*2) -> 9 | DN88: 100399 | DO88: =IF(DN88<>"",DN88,IF(DN89<>"",DN89,IF(DN90<>"",DN90,""))) -> 100399 | DP88: =IF(DO88="","",COUNT($DO$4:DO88)) -> 29 | DR88: 253 | DT88: =DO256 -> 214319 | DU88: =COUNTIF($DT$4:DT88,DT88) -> 1 | DV88: 21431901 | DW88: 0
B89: 86 | CB89: 214319 | CC89: =COUNTIF($CB$53:CB89,CB89) -> 1 | CD89: 2143191 | CF89: =IF(CE89="","",SUM($CE$4:CE89)) ->  | CG89: 86 | CR89: 0 | CS89: 0 | CT89: 0 | CU89: 0 | CV89: 0 | CW89: 1086 | DH89: =COUNTIF($DG$4:DG89,DG89) -> 86 | DK89: 2年 | DL89: =100000+$AO32*10+AQ32 -> 100392 | DM89: =IF(MOD(DL89,10)=0,"",MOD(DL88,10)+MOD(DL89,10)+MOD(DL90,10)*2) -> 9 | DN89: 100399 | DP89: =IF(DO89="","",COUNT($DO$4:DO89)) ->  | DR89: 256 | DT89: =DO259 -> 214329 | DU89: =COUNTIF($DT$4:DT89,DT89) -> 1 | DV89: 21432901 | DW89: 0
B90: 87 | CB90: 214329 | CC90: =COUNTIF($CB$53:CB90,CB90) -> 1 | CD90: 2143291 | CF90: =IF(CE90="","",SUM($CE$4:CE90)) ->  | CG90: 87 | CR90: 0 | CS90: 0 | CT90: 0 | CU90: 0 | CV90: 0 | CW90: 1087 | DH90: =COUNTIF($DG$4:DG90,DG90) -> 87 | DK90: 3年 | DL90: =100000+$AO32*10+AR32 -> 100393 | DM90: =IF(MOD(DL90,10)=0,"",MOD(DL88,10)+MOD(DL89,10)+MOD(DL90,10)*2) -> 9 | DN90: 100399 | DP90: =IF(DO90="","",COUNT($DO$4:DO90)) ->  | DR90: 259 | DT90: =DO262 -> 214339 | DU90: =COUNTIF($DT$4:DT90,DT90) -> 1 | DV90: 21433901 | DW90: 0
B91: 88 | CB91: 214339 | CC91: =COUNTIF($CB$53:CB91,CB91) -> 1 | CD91: 2143391 | CF91: =IF(CE91="","",SUM($CE$4:CE91)) ->  | CG91: 88 | CR91: 0 | CS91: 0 | CT91: 0 | CU91: 0 | CV91: 0 | CW91: 1088 | DH91: =COUNTIF($DG$4:DG91,DG91) -> 88 | DK91: 1年 | DL91: =100000+$AO33*10+AP33 -> 100391 | DM91: =IF(MOD(DL91,10)=0,"",MOD(DL91,10)+MOD(DL92,10)+MOD(DL93,10)*2) -> 9 | DN91: 100399 | DO91: =IF(DN91<>"",DN91,IF(DN92<>"",DN92,IF(DN93<>"",DN93,""))) -> 100399 | DP91: =IF(DO91="","",COUNT($DO$4:DO91)) -> 30 | DR91: 262 | DT91: =DO265 -> 214349 | DU91: =COUNTIF($DT$4:DT91,DT91) -> 1 | DV91: 21434901 | DW91: 0
B92: 89 | CB92: 214349 | CC92: =COUNTIF($CB$53:CB92,CB92) -> 1 | CD92: 2143491 | CF92: =IF(CE92="","",SUM($CE$4:CE92)) ->  | CG92: 89 | CR92: 0 | CS92: 0 | CT92: 0 | CU92: 0 | CV92: 0 | CW92: 1089 | DH92: =COUNTIF($DG$4:DG92,DG92) -> 89 | DK92: 2年 | DL92: =100000+$AO33*10+AQ33 -> 100392 | DM92: =IF(MOD(DL92,10)=0,"",MOD(DL91,10)+MOD(DL92,10)+MOD(DL93,10)*2) -> 9 | DN92: 100399 | DP92: =IF(DO92="","",COUNT($DO$4:DO92)) ->  | DR92: 265 | DT92: =DO268 -> 214359 | DU92: =COUNTIF($DT$4:DT92,DT92) -> 1 | DV92: 21435901 | DW92: 0
B93: 90 | CB93: 214359 | CC93: =COUNTIF($CB$53:CB93,CB93) -> 1 | CD93: 2143591 | CF93: =IF(CE93="","",SUM($CE$4:CE93)) ->  | CG93: 90 | CR93: 0 | CS93: 0 | CT93: 0 | CU93: 0 | CV93: 0 | CW93: 1090 | DH93: =COUNTIF($DG$4:DG93,DG93) -> 90 | DK93: 3年 | DL93: =100000+$AO33*10+AR33 -> 100393 | DM93: =IF(MOD(DL93,10)=0,"",MOD(DL91,10)+MOD(DL92,10)+MOD(DL93,10)*2) -> 9 | DN93: 100399 | DP93: =IF(DO93="","",COUNT($DO$4:DO93)) ->  | DR93: 268 | DT93: =DO271 -> 214369 | DU93: =COUNTIF($DT$4:DT93,DT93) -> 1 | DV93: 21436901 | DW93: 0
B94: 91 | CB94: 214369 | CC94: =COUNTIF($CB$53:CB94,CB94) -> 1 | CD94: 2143691 | CF94: =IF(CE94="","",SUM($CE$4:CE94)) ->  | CG94: 91 | CR94: 0 | CS94: 0 | CT94: 0 | CU94: 0 | CV94: 0 | CW94: 1091 | DH94: =COUNTIF($DG$4:DG94,DG94) -> 91 | DK94: 1年 | DL94: =100000+$AO34*10+AP34 -> 104311 | DM94: =IF(MOD(DL94,10)=0,"",MOD(DL94,10)+MOD(DL95,10)+MOD(DL96,10)*2) -> 9 | DN94: 104319 | DO94: =IF(DN94<>"",DN94,IF(DN95<>"",DN95,IF(DN96<>"",DN96,""))) -> 104319 | DP94: =IF(DO94="","",COUNT($DO$4:DO94)) -> 31 | DR94: 271 | DT94: =DO274 -> 224319 | DU94: =COUNTIF($DT$4:DT94,DT94) -> 1 | DV94: 22431901 | DW94: 0
B95: 92 | CB95: 224319 | CC95: =COUNTIF($CB$53:CB95,CB95) -> 1 | CD95: 2243191 | CF95: =IF(CE95="","",SUM($CE$4:CE95)) ->  | CG95: 92 | CR95: 0 | CS95: 0 | CT95: 0 | CU95: 0 | CV95: 0 | CW95: 1092 | DH95: =COUNTIF($DG$4:DG95,DG95) -> 92 | DK95: 2年 | DL95: =100000+$AO34*10+AQ34 -> 104312 | DM95: =IF(MOD(DL95,10)=0,"",MOD(DL94,10)+MOD(DL95,10)+MOD(DL96,10)*2) -> 9 | DN95: 104319 | DP95: =IF(DO95="","",COUNT($DO$4:DO95)) ->  | DR95: 274 | DT95: =DO277 -> 224329 | DU95: =COUNTIF($DT$4:DT95,DT95) -> 1 | DV95: 22432901 | DW95: 0
B96: 93 | CB96: 224329 | CC96: =COUNTIF($CB$53:CB96,CB96) -> 1 | CD96: 2243291 | CF96: =IF(CE96="","",SUM($CE$4:CE96)) ->  | CG96: 93 | CR96: 0 | CS96: 0 | CT96: 0 | CU96: 0 | CV96: 0 | CW96: 1093 | DH96: =COUNTIF($DG$4:DG96,DG96) -> 93 | DK96: 3年 | DL96: =100000+$AO34*10+AR34 -> 104313 | DM96: =IF(MOD(DL96,10)=0,"",MOD(DL94,10)+MOD(DL95,10)+MOD(DL96,10)*2) -> 9 | DN96: 104319 | DP96: =IF(DO96="","",COUNT($DO$4:DO96)) ->  | DR96: 277 | DT96: =DO280 -> 224339 | DU96: =COUNTIF($DT$4:DT96,DT96) -> 1 | DV96: 22433901 | DW96: 0
B97: 94 | CB97: 224339 | CC97: =COUNTIF($CB$53:CB97,CB97) -> 1 | CD97: 2243391 | CF97: =IF(CE97="","",SUM($CE$4:CE97)) ->  | CG97: 94 | CR97: 0 | CS97: 0 | CT97: 0 | CU97: 0 | CV97: 0 | CW97: 1094 | DH97: =COUNTIF($DG$4:DG97,DG97) -> 94 | DK97: 1年 | DL97: =100000+$AO35*10+AP35 -> 104321 | DM97: =IF(MOD(DL97,10)=0,"",MOD(DL97,10)+MOD(DL98,10)+MOD(DL99,10)*2) -> 9 | DN97: 104329 | DO97: =IF(DN97<>"",DN97,IF(DN98<>"",DN98,IF(DN99<>"",DN99,""))) -> 104329 | DP97: =IF(DO97="","",COUNT($DO$4:DO97)) -> 32 | DR97: 280 | DT97: =DO283 -> 224349 | DU97: =COUNTIF($DT$4:DT97,DT97) -> 1 | DV97: 22434901 | DW97: 0
B98: 95 | CB98: 224349 | CC98: =COUNTIF($CB$53:CB98,CB98) -> 1 | CD98: 2243491 | CF98: =IF(CE98="","",SUM($CE$4:CE98)) ->  | CG98: 95 | CR98: 0 | CS98: 0 | CT98: 0 | CU98: 0 | CV98: 0 | CW98: 1095 | DH98: =COUNTIF($DG$4:DG98,DG98) -> 95 | DK98: 2年 | DL98: =100000+$AO35*10+AQ35 -> 104322 | DM98: =IF(MOD(DL98,10)=0,"",MOD(DL97,10)+MOD(DL98,10)+MOD(DL99,10)*2) -> 9 | DN98: 104329 | DP98: =IF(DO98="","",COUNT($DO$4:DO98)) ->  | DR98: 283 | DT98: =DO286 -> 224359 | DU98: =COUNTIF($DT$4:DT98,DT98) -> 1 | DV98: 22435901 | DW98: 0
B99: 96 | CB99: 224359 | CC99: =COUNTIF($CB$53:CB99,CB99) -> 1 | CD99: 2243591 | CF99: =IF(CE99="","",SUM($CE$4:CE99)) ->  | CG99: 96 | CR99: 0 | CS99: 0 | CT99: 0 | CU99: 0 | CV99: 0 | CW99: 1096 | DH99: =COUNTIF($DG$4:DG99,DG99) -> 96 | DK99: 3年 | DL99: =100000+$AO35*10+AR35 -> 104323 | DM99: =IF(MOD(DL99,10)=0,"",MOD(DL97,10)+MOD(DL98,10)+MOD(DL99,10)*2) -> 9 | DN99: 104329 | DP99: =IF(DO99="","",COUNT($DO$4:DO99)) ->  | DR99: 286 | DT99: =DO289 -> 224369 | DU99: =COUNTIF($DT$4:DT99,DT99) -> 1 | DV99: 22436901 | DW99: 0
B100: 97 | CB100: 224369 | CC100: =COUNTIF($CB$53:CB100,CB100) -> 1 | CD100: 2243691 | CE100: =IF(SUM(I100:M100)=0,"",1) ->  | CF100: =IF(CE100="","",SUM($CE$4:CE100)) ->  | CG100: 97 | CR100: 0 | CS100: 0 | CT100: =COUNTIF($BZ$4:$BZ$100,CS100) -> 0 | CU100: 0 | CV100: 0 | CW100: 2001 | CX100: =IF(CX4="","",CX4+200) ->  | CY100: =CY4 ->  | CZ100: =CZ4 ->  | DA100: =IF($J$204=1,0,INDEX($CN$4:$CR$1003,$CX100,5)) ->  | DC100: =IF($Y$204=1,0,INDEX($CN$4:$CQ$1003,$CX100,3)) ->  | DD100: =IF($Y$204=1,0,INDEX($CN$4:$CQ$1003,$CX100,4)) ->  | DH100: =COUNTIF($DG$4:DG100,DG100) -> 97 | DK100: 1年 | DL100: =100000+$AO36*10+AP36 -> 104331 | DM100: =IF(MOD(DL100,10)=0,"",MOD(DL100,10)+MOD(DL101,10)+MOD(DL102,10)*2) -> 9 | DN100: 104339 | DO100: =IF(DN100<>"",DN100,IF(DN101<>"",DN101,IF(DN102<>"",DN102,""))) -> 104339 | DP100: =IF(DO100="","",COUNT($DO$4:DO100)) -> 33
B101: 98 | CF101: =IF(CE101="","",SUM($CE$4:CE101)) ->  | CG101: 98 | CR101: 0 | CS101: 0 | CT101: 0 | CU101: 0 | CV101: 0 | CW101: 2002 | CX101: =IF(CX5="","",CX5+200) ->  | CY101: =CY5 ->  | DA101: =IF($J$204=1,0,INDEX($CN$4:$CR$1003,$CX101,5)) ->  | DC101: =IF($Y$204=1,0,INDEX($CN$4:$CQ$1003,$CX101,3)) ->  | DD101: =IF($Y$204=1,0,INDEX($CN$4:$CQ$1003,$CX101,4)) ->  | DH101: =COUNTIF($DG$4:DG101,DG101) -> 98 | DK101: 2年 | DL101: =100000+$AO36*10+AQ36 -> 104332 | DM101: =IF(MOD(DL101,10)=0,"",MOD(DL100,10)+MOD(DL101,10)+MOD(DL102,10)*2) -> 9 | DN101: 104339 | DP101: =IF(DO101="","",COUNT($DO$4:DO101)) -> 
B102: 99 | CF102: =IF(CE102="","",SUM($CE$4:CE102)) ->  | CG102: 99 | CR102: 0 | CS102: 0 | CT102: 0 | CU102: 0 | CV102: 0 | CW102: 2003 | DH102: =COUNTIF($DG$4:DG102,DG102) -> 99 | DK102: 3年 | DL102: =100000+$AO36*10+AR36 -> 104333 | DM102: =IF(MOD(DL102,10)=0,"",MOD(DL100,10)+MOD(DL101,10)+MOD(DL102,10)*2) -> 9 | DN102: 104339 | DP102: =IF(DO102="","",COUNT($DO$4:DO102)) -> 
B103: 100 | CF103: =IF(CE103="","",SUM($CE$4:CE103)) ->  | CG103: 100 | CR103: 0 | CS103: 0 | CT103: 0 | CU103: 0 | CV103: 0 | CW103: 2004 | DH103: =COUNTIF($DG$4:DG103,DG103) -> 100 | DK103: 1年 | DL103: =100000+$AO37*10+AP37 -> 104341 | DM103: =IF(MOD(DL103,10)=0,"",MOD(DL103,10)+MOD(DL104,10)+MOD(DL105,10)*2) -> 9 | DN103: 104349 | DO103: =IF(DN103<>"",DN103,IF(DN104<>"",DN104,IF(DN105<>"",DN105,""))) -> 104349 | DP103: =IF(DO103="","",COUNT($DO$4:DO103)) -> 34
B104: 101 | CF104: =IF(CE104="","",SUM($CE$4:CE104)) ->  | CG104: 101 | CR104: 0 | CS104: 0 | CT104: 0 | CU104: 0 | CV104: 0 | CW104: 2005 | DH104: =COUNTIF($DG$4:DG104,DG104) -> 101 | DK104: 2年 | DL104: =100000+$AO37*10+AQ37 -> 104342 | DM104: =IF(MOD(DL104,10)=0,"",MOD(DL103,10)+MOD(DL104,10)+MOD(DL105,10)*2) -> 9 | DN104: 104349 | DP104: =IF(DO104="","",COUNT($DO$4:DO104)) -> 
B105: 102 | CF105: =IF(CE105="","",SUM($CE$4:CE105)) ->  | CG105: 102 | CR105: 0 | CS105: 0 | CT105: 0 | CU105: 0 | CV105: 0 | CW105: 2006 | DH105: =COUNTIF($DG$4:DG105,DG105) -> 102 | DK105: 3年 | DL105: =100000+$AO37*10+AR37 -> 104343 | DM105: =IF(MOD(DL105,10)=0,"",MOD(DL103,10)+MOD(DL104,10)+MOD(DL105,10)*2) -> 9 | DN105: 104349 | DP105: =IF(DO105="","",COUNT($DO$4:DO105)) -> 
B106: 103 | CF106: =IF(CE106="","",SUM($CE$4:CE106)) ->  | CG106: 103 | CR106: 0 | CS106: 0 | CT106: 0 | CU106: 0 | CV106: 0 | CW106: 2007 | DH106: =COUNTIF($DG$4:DG106,DG106) -> 103 | DK106: 1年 | DL106: =100000+$AO38*10+AP38 -> 104351 | DM106: =IF(MOD(DL106,10)=0,"",MOD(DL106,10)+MOD(DL107,10)+MOD(DL108,10)*2) -> 9 | DN106: 104359 | DO106: =IF(DN106<>"",DN106,IF(DN107<>"",DN107,IF(DN108<>"",DN108,""))) -> 104359 | DP106: =IF(DO106="","",COUNT($DO$4:DO106)) -> 35
B107: 104 | CF107: =IF(CE107="","",SUM($CE$4:CE107)) ->  | CG107: 104 | CR107: 0 | CS107: 0 | CT107: 0 | CU107: 0 | CV107: 0 | CW107: 2008 | DH107: =COUNTIF($DG$4:DG107,DG107) -> 104 | DK107: 2年 | DL107: =100000+$AO38*10+AQ38 -> 104352 | DM107: =IF(MOD(DL107,10)=0,"",MOD(DL106,10)+MOD(DL107,10)+MOD(DL108,10)*2) -> 9 | DN107: 104359 | DP107: =IF(DO107="","",COUNT($DO$4:DO107)) -> 
B108: 105 | CF108: =IF(CE108="","",SUM($CE$4:CE108)) ->  | CG108: 105 | CR108: 0 | CS108: 0 | CT108: 0 | CU108: 0 | CV108: 0 | CW108: 2009 | DH108: =COUNTIF($DG$4:DG108,DG108) -> 105 | DK108: 3年 | DL108: =100000+$AO38*10+AR38 -> 104353 | DM108: =IF(MOD(DL108,10)=0,"",MOD(DL106,10)+MOD(DL107,10)+MOD(DL108,10)*2) -> 9 | DN108: 104359 | DP108: =IF(DO108="","",COUNT($DO$4:DO108)) -> 
B109: 106 | CF109: =IF(CE109="","",SUM($CE$4:CE109)) ->  | CG109: 106 | CR109: 0 | CS109: 0 | CT109: 0 | CU109: 0 | CV109: 0 | CW109: 2010 | DH109: =COUNTIF($DG$4:DG109,DG109) -> 106 | DK109: 1年 | DL109: =100000+$AO39*10+AP39 -> 104361 | DM109: =IF(MOD(DL109,10)=0,"",MOD(DL109,10)+MOD(DL110,10)+MOD(DL111,10)*2) -> 9 | DN109: 104369 | DO109: =IF(DN109<>"",DN109,IF(DN110<>"",DN110,IF(DN111<>"",DN111,""))) -> 104369 | DP109: =IF(DO109="","",COUNT($DO$4:DO109)) -> 36
B110: 107 | CF110: =IF(CE110="","",SUM($CE$4:CE110)) ->  | CG110: 107 | CR110: 0 | CS110: 0 | CT110: 0 | CU110: 0 | CV110: 0 | CW110: 2011 | DH110: =COUNTIF($DG$4:DG110,DG110) -> 107 | DK110: 2年 | DL110: =100000+$AO39*10+AQ39 -> 104362 | DM110: =IF(MOD(DL110,10)=0,"",MOD(DL109,10)+MOD(DL110,10)+MOD(DL111,10)*2) -> 9 | DN110: 104369 | DP110: =IF(DO110="","",COUNT($DO$4:DO110)) -> 
B111: 108 | CF111: =IF(CE111="","",SUM($CE$4:CE111)) ->  | CG111: 108 | CR111: 0 | CS111: 0 | CT111: 0 | CU111: 0 | CV111: 0 | CW111: 2012 | DH111: =COUNTIF($DG$4:DG111,DG111) -> 108 | DK111: 3年 | DL111: =100000+$AO39*10+AR39 -> 104363 | DM111: =IF(MOD(DL111,10)=0,"",MOD(DL109,10)+MOD(DL110,10)+MOD(DL111,10)*2) -> 9 | DN111: 104369 | DP111: =IF(DO111="","",COUNT($DO$4:DO111)) -> 
B112: 109 | CF112: =IF(CE112="","",SUM($CE$4:CE112)) ->  | CG112: 109 | CR112: 0 | CS112: 0 | CT112: 0 | CU112: 0 | CV112: 0 | CW112: 2013 | DH112: =COUNTIF($DG$4:DG112,DG112) -> 109 | DK112: 1年 | DL112: =100000+$AO40*10+AP40 -> 114311 | DM112: =IF(MOD(DL112,10)=0,"",MOD(DL112,10)+MOD(DL113,10)+MOD(DL114,10)*2) -> 9 | DN112: 114319 | DO112: =IF(DN112<>"",DN112,IF(DN113<>"",DN113,IF(DN114<>"",DN114,""))) -> 114319 | DP112: =IF(DO112="","",COUNT($DO$4:DO112)) -> 37
B113: 110 | CF113: =IF(CE113="","",SUM($CE$4:CE113)) ->  | CG113: 110 | CR113: 0 | CS113: 0 | CT113: 0 | CU113: 0 | CV113: 0 | CW113: 2014 | DH113: =COUNTIF($DG$4:DG113,DG113) -> 110 | DK113: 2年 | DL113: =100000+$AO40*10+AQ40 -> 114312 | DM113: =IF(MOD(DL113,10)=0,"",MOD(DL112,10)+MOD(DL113,10)+MOD(DL114,10)*2) -> 9 | DN113: 114319 | DP113: =IF(DO113="","",COUNT($DO$4:DO113)) -> 
B114: 111 | CF114: =IF(CE114="","",SUM($CE$4:CE114)) ->  | CG114: 111 | CR114: 0 | CS114: 0 | CT114: 0 | CU114: 0 | CV114: 0 | CW114: 2015 | DH114: =COUNTIF($DG$4:DG114,DG114) -> 111 | DK114: 3年 | DL114: =100000+$AO40*10+AR40 -> 114313 | DM114: =IF(MOD(DL114,10)=0,"",MOD(DL112,10)+MOD(DL113,10)+MOD(DL114,10)*2) -> 9 | DN114: 114319 | DP114: =IF(DO114="","",COUNT($DO$4:DO114)) -> 
B115: 112 | CF115: =IF(CE115="","",SUM($CE$4:CE115)) ->  | CG115: 112 | CR115: 0 | CS115: 0 | CT115: 0 | CU115: 0 | CV115: 0 | CW115: 2016 | DH115: =COUNTIF($DG$4:DG115,DG115) -> 112 | DK115: 1年 | DL115: =100000+$AO41*10+AP41 -> 114321 | DM115: =IF(MOD(DL115,10)=0,"",MOD(DL115,10)+MOD(DL116,10)+MOD(DL117,10)*2) -> 9 | DN115: 114329 | DO115: =IF(DN115<>"",DN115,IF(DN116<>"",DN116,IF(DN117<>"",DN117,""))) -> 114329 | DP115: =IF(DO115="","",COUNT($DO$4:DO115)) -> 38
B116: 113 | CF116: =IF(CE116="","",SUM($CE$4:CE116)) ->  | CG116: 113 | CR116: 0 | CS116: 0 | CT116: 0 | CU116: 0 | CV116: 0 | CW116: 2017 | DH116: =COUNTIF($DG$4:DG116,DG116) -> 113 | DK116: 2年 | DL116: =100000+$AO41*10+AQ41 -> 114322 | DM116: =IF(MOD(DL116,10)=0,"",MOD(DL115,10)+MOD(DL116,10)+MOD(DL117,10)*2) -> 9 | DN116: 114329 | DP116: =IF(DO116="","",COUNT($DO$4:DO116)) -> 
B117: 114 | CF117: =IF(CE117="","",SUM($CE$4:CE117)) ->  | CG117: 114 | CR117: 0 | CS117: 0 | CT117: 0 | CU117: 0 | CV117: 0 | CW117: 2018 | CY117: =CY21 ->  | DH117: =COUNTIF($DG$4:DG117,DG117) -> 114 | DK117: 3年 | DL117: =100000+$AO41*10+AR41 -> 114323 | DM117: =IF(MOD(DL117,10)=0,"",MOD(DL115,10)+MOD(DL116,10)+MOD(DL117,10)*2) -> 9 | DN117: 114329 | DP117: =IF(DO117="","",COUNT($DO$4:DO117)) -> 
B118: 115 | CF118: =IF(CE118="","",SUM($CE$4:CE118)) ->  | CG118: 115 | CR118: 0 | CS118: 0 | CT118: 0 | CU118: 0 | CV118: 0 | CW118: 2019 | DH118: =COUNTIF($DG$4:DG118,DG118) -> 115 | DK118: 1年 | DL118: =100000+$AO42*10+AP42 -> 114331 | DM118: =IF(MOD(DL118,10)=0,"",MOD(DL118,10)+MOD(DL119,10)+MOD(DL120,10)*2) -> 9 | DN118: 114339 | DO118: =IF(DN118<>"",DN118,IF(DN119<>"",DN119,IF(DN120<>"",DN120,""))) -> 114339 | DP118: =IF(DO118="","",COUNT($DO$4:DO118)) -> 39
B119: 116 | CF119: =IF(CE119="","",SUM($CE$4:CE119)) ->  | CG119: 116 | CR119: 0 | CS119: 0 | CT119: 0 | CU119: 0 | CV119: 0 | CW119: 2020 | DH119: =COUNTIF($DG$4:DG119,DG119) -> 116 | DK119: 2年 | DL119: =100000+$AO42*10+AQ42 -> 114332 | DM119: =IF(MOD(DL119,10)=0,"",MOD(DL118,10)+MOD(DL119,10)+MOD(DL120,10)*2) -> 9 | DN119: 114339 | DP119: =IF(DO119="","",COUNT($DO$4:DO119)) -> 
B120: 117 | CF120: =IF(CE120="","",SUM($CE$4:CE120)) ->  | CG120: 117 | CR120: 0 | CS120: 0 | CT120: 0 | CU120: 0 | CV120: 0 | CW120: 2021 | DH120: =COUNTIF($DG$4:DG120,DG120) -> 117 | DK120: 3年 | DL120: =100000+$AO42*10+AR42 -> 114333 | DM120: =IF(MOD(DL120,10)=0,"",MOD(DL118,10)+MOD(DL119,10)+MOD(DL120,10)*2) -> 9 | DN120: 114339 | DP120: =IF(DO120="","",COUNT($DO$4:DO120)) -> 
B121: 118 | CF121: =IF(CE121="","",SUM($CE$4:CE121)) ->  | CG121: 118 | CR121: 0 | CS121: 0 | CT121: 0 | CU121: 0 | CV121: 0 | CW121: 2022 | DH121: =COUNTIF($DG$4:DG121,DG121) -> 118 | DK121: 1年 | DL121: =100000+$AO43*10+AP43 -> 114341 | DM121: =IF(MOD(DL121,10)=0,"",MOD(DL121,10)+MOD(DL122,10)+MOD(DL123,10)*2) -> 9 | DN121: 114349 | DO121: =IF(DN121<>"",DN121,IF(DN122<>"",DN122,IF(DN123<>"",DN123,""))) -> 114349 | DP121: =IF(DO121="","",COUNT($DO$4:DO121)) -> 40
B122: 119 | CF122: =IF(CE122="","",SUM($CE$4:CE122)) ->  | CG122: 119 | CR122: 0 | CS122: 0 | CT122: 0 | CU122: 0 | CV122: 0 | CW122: 2023 | DH122: =COUNTIF($DG$4:DG122,DG122) -> 119 | DK122: 2年 | DL122: =100000+$AO43*10+AQ43 -> 114342 | DM122: =IF(MOD(DL122,10)=0,"",MOD(DL121,10)+MOD(DL122,10)+MOD(DL123,10)*2) -> 9 | DN122: 114349 | DP122: =IF(DO122="","",COUNT($DO$4:DO122)) -> 
B123: 120 | CF123: =IF(CE123="","",SUM($CE$4:CE123)) ->  | CG123: 120 | CR123: 0 | CS123: 0 | CT123: 0 | CU123: 0 | CV123: 0 | CW123: 2024 | DH123: =COUNTIF($DG$4:DG123,DG123) -> 120 | DK123: 3年 | DL123: =100000+$AO43*10+AR43 -> 114343 | DM123: =IF(MOD(DL123,10)=0,"",MOD(DL121,10)+MOD(DL122,10)+MOD(DL123,10)*2) -> 9 | DN123: 114349 | DP123: =IF(DO123="","",COUNT($DO$4:DO123)) -> 
B124: 121 | CF124: =IF(CE124="","",SUM($CE$4:CE124)) ->  | CG124: 121 | CR124: 0 | CS124: 0 | CT124: 0 | CU124: 0 | CV124: 0 | CW124: 2025 | DH124: =COUNTIF($DG$4:DG124,DG124) -> 121 | DK124: 1年 | DL124: =100000+$AO44*10+AP44 -> 114351 | DM124: =IF(MOD(DL124,10)=0,"",MOD(DL124,10)+MOD(DL125,10)+MOD(DL126,10)*2) -> 9 | DN124: 114359 | DO124: =IF(DN124<>"",DN124,IF(DN125<>"",DN125,IF(DN126<>"",DN126,""))) -> 114359 | DP124: =IF(DO124="","",COUNT($DO$4:DO124)) -> 41
B125: 122 | CF125: =IF(CE125="","",SUM($CE$4:CE125)) ->  | CG125: 122 | CR125: 0 | CS125: 0 | CT125: 0 | CU125: 0 | CV125: 0 | CW125: 2026 | DH125: =COUNTIF($DG$4:DG125,DG125) -> 122 | DK125: 2年 | DL125: =100000+$AO44*10+AQ44 -> 114352 | DM125: =IF(MOD(DL125,10)=0,"",MOD(DL124,10)+MOD(DL125,10)+MOD(DL126,10)*2) -> 9 | DN125: 114359 | DP125: =IF(DO125="","",COUNT($DO$4:DO125)) -> 
B126: 123 | CF126: =IF(CE126="","",SUM($CE$4:CE126)) ->  | CG126: 123 | CR126: 0 | CS126: 0 | CT126: 0 | CU126: 0 | CV126: 0 | CW126: 2027 | DH126: =COUNTIF($DG$4:DG126,DG126) -> 123 | DK126: 3年 | DL126: =100000+$AO44*10+AR44 -> 114353 | DM126: =IF(MOD(DL126,10)=0,"",MOD(DL124,10)+MOD(DL125,10)+MOD(DL126,10)*2) -> 9 | DN126: 114359 | DP126: =IF(DO126="","",COUNT($DO$4:DO126)) -> 
B127: 124 | CF127: =IF(CE127="","",SUM($CE$4:CE127)) ->  | CG127: 124 | CR127: 0 | CS127: 0 | CT127: 0 | CU127: 0 | CV127: 0 | CW127: 2028 | DH127: =COUNTIF($DG$4:DG127,DG127) -> 124 | DK127: 1年 | DL127: =100000+$AO45*10+AP45 -> 114361 | DM127: =IF(MOD(DL127,10)=0,"",MOD(DL127,10)+MOD(DL128,10)+MOD(DL129,10)*2) -> 9 | DN127: 114369 | DO127: =IF(DN127<>"",DN127,IF(DN128<>"",DN128,IF(DN129<>"",DN129,""))) -> 114369 | DP127: =IF(DO127="","",COUNT($DO$4:DO127)) -> 42
B128: 125 | CF128: =IF(CE128="","",SUM($CE$4:CE128)) ->  | CG128: 125 | CR128: 0 | CS128: 0 | CT128: 0 | CU128: 0 | CV128: 0 | CW128: 2029 | DH128: =COUNTIF($DG$4:DG128,DG128) -> 125 | DK128: 2年 | DL128: =100000+$AO45*10+AQ45 -> 114362 | DM128: =IF(MOD(DL128,10)=0,"",MOD(DL127,10)+MOD(DL128,10)+MOD(DL129,10)*2) -> 9 | DN128: 114369 | DP128: =IF(DO128="","",COUNT($DO$4:DO128)) -> 
B129: 126 | CF129: =IF(CE129="","",SUM($CE$4:CE129)) ->  | CG129: 126 | CR129: 0 | CS129: 0 | CT129: 0 | CU129: 0 | CV129: 0 | CW129: 2030 | DH129: =COUNTIF($DG$4:DG129,DG129) -> 126 | DK129: 3年 | DL129: =100000+$AO45*10+AR45 -> 114363 | DM129: =IF(MOD(DL129,10)=0,"",MOD(DL127,10)+MOD(DL128,10)+MOD(DL129,10)*2) -> 9 | DN129: 114369 | DP129: =IF(DO129="","",COUNT($DO$4:DO129)) -> 
B130: 127 | CF130: =IF(CE130="","",SUM($CE$4:CE130)) ->  | CG130: 127 | CR130: 0 | CS130: 0 | CT130: 0 | CU130: 0 | CV130: 0 | CW130: 2031 | DH130: =COUNTIF($DG$4:DG130,DG130) -> 127 | DK130: 1年 | DL130: =100000+$AO46*10+AP46 -> 124311 | DM130: =IF(MOD(DL130,10)=0,"",MOD(DL130,10)+MOD(DL131,10)+MOD(DL132,10)*2) -> 9 | DN130: 124319 | DO130: =IF(DN130<>"",DN130,IF(DN131<>"",DN131,IF(DN132<>"",DN132,""))) -> 124319 | DP130: =IF(DO130="","",COUNT($DO$4:DO130)) -> 43
B131: 128 | CF131: =IF(CE131="","",SUM($CE$4:CE131)) ->  | CG131: 128 | CR131: 0 | CS131: 0 | CT131: 0 | CU131: 0 | CV131: 0 | CW131: 2032 | DH131: =COUNTIF($DG$4:DG131,DG131) -> 128 | DK131: 2年 | DL131: =100000+$AO46*10+AQ46 -> 124312 | DM131: =IF(MOD(DL131,10)=0,"",MOD(DL130,10)+MOD(DL131,10)+MOD(DL132,10)*2) -> 9 | DN131: 124319 | DP131: =IF(DO131="","",COUNT($DO$4:DO131)) -> 
B132: 129 | CE132: =IF(SUM(I132:M132)=0,"",1) ->  | CF132: =IF(CE132="","",SUM($CE$4:CE132)) ->  | CG132: 129 | CR132: 0 | CS132: 0 | CT132: =COUNTIF($BZ$4:$BZ$100,CS132) -> 0 | CU132: 0 | CV132: 0 | CW132: 2033 | DB132: =INDEX($CN$4:$CQ$1003,$CX132,2) ->  | DH132: =COUNTIF($DG$4:DG132,DG132) -> 129 | DK132: 3年 | DL132: =100000+$AO46*10+AR46 -> 124313 | DM132: =IF(MOD(DL132,10)=0,"",MOD(DL130,10)+MOD(DL131,10)+MOD(DL132,10)*2) -> 9 | DN132: 124319 | DP132: =IF(DO132="","",COUNT($DO$4:DO132)) -> 
B133: 130 | CF133: =IF(CE133="","",SUM($CE$4:CE133)) ->  | CG133: 130 | CR133: =IF(CN133="",0,IF(CP133="",CN133,CP133*10+9)) -> 0 | CS133: =C133*10000+D133 -> 0 | CT133: 0 | CU133: =COUNT(CN133,CN333,CN533,CN733,CN933) -> 0 | CV133: =IF(CT133=CU133,0,1) -> 0 | CW133: 2034 | CY133: =CY37 ->  | DE133: =CY133*100000+DA133*10+CZ133 ->  | DF133: =MATCH(DE133,$DL$4:$DL$291,0) ->  | DG133: =INDEX($DN$4:$DN$291,DF133,1) ->  | DH133: =COUNTIF($DG$4:DG133,DG133) -> 130 | DI133: =DG133*100+DH133 ->  | DK133: 1年 | DL133: =100000+$AO47*10+AP47 -> 124321 | DM133: =IF(MOD(DL133,10)=0,"",MOD(DL133,10)+MOD(DL134,10)+MOD(DL135,10)*2) -> 9 | DN133: 124329 | DO133: =IF(DN133<>"",DN133,IF(DN134<>"",DN134,IF(DN135<>"",DN135,""))) -> 124329 | DP133: =IF(DO133="","",COUNT($DO$4:DO133)) -> 44
B134: 131 | CF134: =IF(CE134="","",SUM($CE$4:CE134)) ->  | CG134: 131 | CR134: 0 | CS134: 0 | CT134: 0 | CU134: 0 | CV134: 0 | CW134: 2035 | DH134: =COUNTIF($DG$4:DG134,DG134) -> 131 | DK134: 2年 | DL134: =100000+$AO47*10+AQ47 -> 124322 | DM134: =IF(MOD(DL134,10)=0,"",MOD(DL133,10)+MOD(DL134,10)+MOD(DL135,10)*2) -> 9 | DN134: 124329 | DP134: =IF(DO134="","",COUNT($DO$4:DO134)) -> 
B135: 132 | CF135: =IF(CE135="","",SUM($CE$4:CE135)) ->  | CG135: 132 | CR135: 0 | CS135: 0 | CT135: 0 | CU135: 0 | CV135: 0 | CW135: 2036 | DH135: =COUNTIF($DG$4:DG135,DG135) -> 132 | DK135: 3年 | DL135: =100000+$AO47*10+AR47 -> 124323 | DM135: =IF(MOD(DL135,10)=0,"",MOD(DL133,10)+MOD(DL134,10)+MOD(DL135,10)*2) -> 9 | DN135: =IF(DM135="","",ROUNDDOWN(DL135,-1)+DM135) -> 124329 | DP135: =IF(DO135="","",COUNT($DO$4:DO135)) -> 
B136: 133 | CF136: =IF(CE136="","",SUM($CE$4:CE136)) ->  | CG136: 133 | CR136: 0 | CS136: 0 | CT136: 0 | CU136: 0 | CV136: 0 | CW136: 2037 | DH136: =COUNTIF($DG$4:DG136,DG136) -> 133 | DK136: 1年 | DL136: =100000+$AO48*10+AP48 -> 124331 | DM136: =IF(MOD(DL136,10)=0,"",MOD(DL136,10)+MOD(DL137,10)+MOD(DL138,10)*2) -> 9 | DN136: 124339 | DO136: =IF(DN136<>"",DN136,IF(DN137<>"",DN137,IF(DN138<>"",DN138,""))) -> 124339 | DP136: =IF(DO136="","",COUNT($DO$4:DO136)) -> 45
B137: 134 | CF137: =IF(CE137="","",SUM($CE$4:CE137)) ->  | CG137: 134 | CR137: 0 | CS137: 0 | CT137: 0 | CU137: 0 | CV137: 0 | CW137: 2038 | DH137: =COUNTIF($DG$4:DG137,DG137) -> 134 | DK137: 2年 | DL137: =100000+$AO48*10+AQ48 -> 124332 | DM137: =IF(MOD(DL137,10)=0,"",MOD(DL136,10)+MOD(DL137,10)+MOD(DL138,10)*2) -> 9 | DN137: 124339 | DP137: =IF(DO137="","",COUNT($DO$4:DO137)) -> 
B138: 135 | CF138: =IF(CE138="","",SUM($CE$4:CE138)) ->  | CG138: 135 | CR138: 0 | CS138: 0 | CT138: 0 | CU138: 0 | CV138: 0 | CW138: 2039 | DH138: =COUNTIF($DG$4:DG138,DG138) -> 135 | DK138: 3年 | DL138: =100000+$AO48*10+AR48 -> 124333 | DM138: =IF(MOD(DL138,10)=0,"",MOD(DL136,10)+MOD(DL137,10)+MOD(DL138,10)*2) -> 9 | DN138: 124339 | DP138: =IF(DO138="","",COUNT($DO$4:DO138)) -> 
B139: 136 | CF139: =IF(CE139="","",SUM($CE$4:CE139)) ->  | CG139: 136 | CR139: 0 | CS139: 0 | CT139: 0 | CU139: 0 | CV139: 0 | CW139: 2040 | DH139: =COUNTIF($DG$4:DG139,DG139) -> 136 | DK139: 1年 | DL139: =100000+$AO49*10+AP49 -> 124341 | DM139: =IF(MOD(DL139,10)=0,"",MOD(DL139,10)+MOD(DL140,10)+MOD(DL141,10)*2) -> 9 | DN139: 124349 | DO139: =IF(DN139<>"",DN139,IF(DN140<>"",DN140,IF(DN141<>"",DN141,""))) -> 124349 | DP139: =IF(DO139="","",COUNT($DO$4:DO139)) -> 46
B140: 137 | CF140: =IF(CE140="","",SUM($CE$4:CE140)) ->  | CG140: 137 | CR140: 0 | CS140: 0 | CT140: 0 | CU140: 0 | CV140: 0 | CW140: 2041 | DH140: =COUNTIF($DG$4:DG140,DG140) -> 137 | DK140: 2年 | DL140: =100000+$AO49*10+AQ49 -> 124342 | DM140: =IF(MOD(DL140,10)=0,"",MOD(DL139,10)+MOD(DL140,10)+MOD(DL141,10)*2) -> 9 | DN140: 124349 | DP140: =IF(DO140="","",COUNT($DO$4:DO140)) -> 
B141: 138 | CF141: =IF(CE141="","",SUM($CE$4:CE141)) ->  | CG141: 138 | CR141: 0 | CS141: 0 | CT141: 0 | CU141: 0 | CV141: 0 | CW141: 2042 | DH141: =COUNTIF($DG$4:DG141,DG141) -> 138 | DK141: 3年 | DL141: =100000+$AO49*10+AR49 -> 124343 | DM141: =IF(MOD(DL141,10)=0,"",MOD(DL139,10)+MOD(DL140,10)+MOD(DL141,10)*2) -> 9 | DN141: 124349 | DP141: =IF(DO141="","",COUNT($DO$4:DO141)) -> 
B142: 139 | CF142: =IF(CE142="","",SUM($CE$4:CE142)) ->  | CG142: 139 | CR142: 0 | CS142: 0 | CT142: 0 | CU142: 0 | CV142: 0 | CW142: 2043 | DH142: =COUNTIF($DG$4:DG142,DG142) -> 139 | DK142: 1年 | DL142: =100000+$AO50*10+AP50 -> 124351 | DM142: =IF(MOD(DL142,10)=0,"",MOD(DL142,10)+MOD(DL143,10)+MOD(DL144,10)*2) -> 9 | DN142: 124359 | DO142: =IF(DN142<>"",DN142,IF(DN143<>"",DN143,IF(DN144<>"",DN144,""))) -> 124359 | DP142: =IF(DO142="","",COUNT($DO$4:DO142)) -> 47
B143: 140 | CF143: =IF(CE143="","",SUM($CE$4:CE143)) ->  | CG143: 140 | CR143: 0 | CS143: 0 | CT143: 0 | CU143: 0 | CV143: 0 | CW143: 2044 | DH143: =COUNTIF($DG$4:DG143,DG143) -> 140 | DK143: 2年 | DL143: =100000+$AO50*10+AQ50 -> 124352 | DM143: =IF(MOD(DL143,10)=0,"",MOD(DL142,10)+MOD(DL143,10)+MOD(DL144,10)*2) -> 9 | DN143: 124359 | DP143: =IF(DO143="","",COUNT($DO$4:DO143)) -> 
B144: 141 | CF144: =IF(CE144="","",SUM($CE$4:CE144)) ->  | CG144: 141 | CR144: 0 | CS144: 0 | CT144: 0 | CU144: 0 | CV144: 0 | CW144: 2045 | DH144: =COUNTIF($DG$4:DG144,DG144) -> 141 | DK144: 3年 | DL144: =100000+$AO50*10+AR50 -> 124353 | DM144: =IF(MOD(DL144,10)=0,"",MOD(DL142,10)+MOD(DL143,10)+MOD(DL144,10)*2) -> 9 | DN144: 124359 | DP144: =IF(DO144="","",COUNT($DO$4:DO144)) -> 
B145: 142 | CF145: =IF(CE145="","",SUM($CE$4:CE145)) ->  | CG145: 142 | CR145: 0 | CS145: 0 | CT145: 0 | CU145: 0 | CV145: 0 | CW145: 2046 | DH145: =COUNTIF($DG$4:DG145,DG145) -> 142 | DK145: 1年 | DL145: =100000+$AO51*10+AP51 -> 124361 | DM145: =IF(MOD(DL145,10)=0,"",MOD(DL145,10)+MOD(DL146,10)+MOD(DL147,10)*2) -> 9 | DN145: 124369 | DO145: =IF(DN145<>"",DN145,IF(DN146<>"",DN146,IF(DN147<>"",DN147,""))) -> 124369 | DP145: =IF(DO145="","",COUNT($DO$4:DO145)) -> 48
B146: 143 | CF146: =IF(CE146="","",SUM($CE$4:CE146)) ->  | CG146: 143 | CR146: 0 | CS146: 0 | CT146: 0 | CU146: 0 | CV146: 0 | CW146: 2047 | DH146: =COUNTIF($DG$4:DG146,DG146) -> 143 | DK146: 2年 | DL146: =100000+$AO51*10+AQ51 -> 124362 | DM146: =IF(MOD(DL146,10)=0,"",MOD(DL145,10)+MOD(DL146,10)+MOD(DL147,10)*2) -> 9 | DN146: 124369 | DP146: =IF(DO146="","",COUNT($DO$4:DO146)) -> 
B147: 144 | CF147: =IF(CE147="","",SUM($CE$4:CE147)) ->  | CG147: 144 | CR147: 0 | CS147: 0 | CT147: 0 | CU147: 0 | CV147: 0 | CW147: 2048 | DH147: =COUNTIF($DG$4:DG147,DG147) -> 144 | DK147: 3年 | DL147: =100000+$AO51*10+AR51 -> 124363 | DM147: =IF(MOD(DL147,10)=0,"",MOD(DL145,10)+MOD(DL146,10)+MOD(DL147,10)*2) -> 9 | DN147: 124369 | DP147: =IF(DO147="","",COUNT($DO$4:DO147)) -> 
B148: 145 | CF148: =IF(CE148="","",SUM($CE$4:CE148)) ->  | CG148: 145 | CR148: 0 | CS148: 0 | CT148: 0 | CU148: 0 | CV148: 0 | CW148: 2049 | DH148: =COUNTIF($DG$4:DG148,DG148) -> 145 | DK148: 1年 | DL148: =200000+$AZ4*10+BA4 -> 200011 | DM148: =IF(MOD(DL148,10)=0,"",MOD(DL148,10)+MOD(DL149,10)+MOD(DL150,10)*2) -> 1 | DN148: 200011 | DO148: =IF(DN148<>"",DN148,IF(DN149<>"",DN149,IF(DN150<>"",DN150,""))) -> 200011 | DP148: =IF(DO148="","",COUNT($DO$4:DO148)) -> 49
B149: 146 | CF149: =IF(CE149="","",SUM($CE$4:CE149)) ->  | CG149: 146 | CR149: 0 | CS149: 0 | CT149: 0 | CU149: 0 | CV149: 0 | CW149: 2050 | CY149: =CY53 ->  | DH149: =COUNTIF($DG$4:DG149,DG149) -> 146 | DK149: 2年 | DL149: =200000+$AZ4*10+BB4 -> 200010 | DM149: =IF(MOD(DL149,10)=0,"",MOD(DL148,10)+MOD(DL149,10)+MOD(DL150,10)*2) ->  | DP149: =IF(DO149="","",COUNT($DO$4:DO149)) -> 
B150: 147 | CF150: =IF(CE150="","",SUM($CE$4:CE150)) ->  | CG150: 147 | CR150: 0 | CS150: 0 | CT150: 0 | CU150: 0 | CV150: 0 | CW150: 2051 | DH150: =COUNTIF($DG$4:DG150,DG150) -> 147 | DK150: 3年 | DL150: =200000+$AZ4*10+BC4 -> 200010 | DM150: =IF(MOD(DL150,10)=0,"",MOD(DL148,10)+MOD(DL149,10)+MOD(DL150,10)*2) ->  | DP150: =IF(DO150="","",COUNT($DO$4:DO150)) -> 
B151: 148 | CF151: =IF(CE151="","",SUM($CE$4:CE151)) ->  | CG151: 148 | CR151: 0 | CS151: 0 | CT151: 0 | CU151: 0 | CV151: 0 | CW151: 2052 | DH151: =COUNTIF($DG$4:DG151,DG151) -> 148 | DK151: 1年 | DL151: =200000+$AZ5*10+BA5 -> 200191 | DM151: =IF(MOD(DL151,10)=0,"",MOD(DL151,10)+MOD(DL152,10)+MOD(DL153,10)*2) -> 9 | DN151: 200199 | DO151: =IF(DN151<>"",DN151,IF(DN152<>"",DN152,IF(DN153<>"",DN153,""))) -> 200199 | DP151: =IF(DO151="","",COUNT($DO$4:DO151)) -> 50
B152: 149 | CF152: =IF(CE152="","",SUM($CE$4:CE152)) ->  | CG152: 149 | CR152: 0 | CS152: 0 | CT152: 0 | CU152: 0 | CV152: 0 | CW152: 2053 | DH152: =COUNTIF($DG$4:DG152,DG152) -> 149 | DK152: 2年 | DL152: =200000+$AZ5*10+BB5 -> 200192 | DM152: =IF(MOD(DL152,10)=0,"",MOD(DL151,10)+MOD(DL152,10)+MOD(DL153,10)*2) -> 9 | DN152: 200199 | DP152: =IF(DO152="","",COUNT($DO$4:DO152)) -> 
B153: 150 | CF153: =IF(CE153="","",SUM($CE$4:CE153)) ->  | CG153: 150 | CR153: 0 | CS153: 0 | CT153: 0 | CU153: 0 | CV153: 0 | CW153: 2054 | DH153: =COUNTIF($DG$4:DG153,DG153) -> 150 | DK153: 3年 | DL153: =200000+$AZ5*10+BC5 -> 200193 | DM153: =IF(MOD(DL153,10)=0,"",MOD(DL151,10)+MOD(DL152,10)+MOD(DL153,10)*2) -> 9 | DN153: 200199 | DP153: =IF(DO153="","",COUNT($DO$4:DO153)) -> 
B154: 151 | CF154: =IF(CE154="","",SUM($CE$4:CE154)) ->  | CG154: 151 | CR154: 0 | CS154: 0 | CT154: 0 | CU154: 0 | CV154: 0 | CW154: 2055 | DH154: =COUNTIF($DG$4:DG154,DG154) -> 151 | DK154: 1年 | DL154: =200000+$AZ6*10+BA6 -> 200191 | DM154: =IF(MOD(DL154,10)=0,"",MOD(DL154,10)+MOD(DL155,10)+MOD(DL156,10)*2) -> 9 | DN154: 200199 | DO154: =IF(DN154<>"",DN154,IF(DN155<>"",DN155,IF(DN156<>"",DN156,""))) -> 200199 | DP154: =IF(DO154="","",COUNT($DO$4:DO154)) -> 51
B155: 152 | CF155: =IF(CE155="","",SUM($CE$4:CE155)) ->  | CG155: 152 | CR155: 0 | CS155: 0 | CT155: 0 | CU155: 0 | CV155: 0 | CW155: 2056 | DH155: =COUNTIF($DG$4:DG155,DG155) -> 152 | DK155: 2年 | DL155: =200000+$AZ6*10+BB6 -> 200192 | DM155: =IF(MOD(DL155,10)=0,"",MOD(DL154,10)+MOD(DL155,10)+MOD(DL156,10)*2) -> 9 | DN155: 200199 | DP155: =IF(DO155="","",COUNT($DO$4:DO155)) -> 
B156: 153 | CF156: =IF(CE156="","",SUM($CE$4:CE156)) ->  | CG156: 153 | CR156: 0 | CS156: 0 | CT156: 0 | CU156: 0 | CV156: 0 | CW156: 2057 | DH156: =COUNTIF($DG$4:DG156,DG156) -> 153 | DK156: 3年 | DL156: =200000+$AZ6*10+BC6 -> 200193 | DM156: =IF(MOD(DL156,10)=0,"",MOD(DL154,10)+MOD(DL155,10)+MOD(DL156,10)*2) -> 9 | DN156: 200199 | DP156: =IF(DO156="","",COUNT($DO$4:DO156)) -> 
B157: 154 | CF157: =IF(CE157="","",SUM($CE$4:CE157)) ->  | CG157: 154 | CR157: 0 | CS157: 0 | CT157: 0 | CU157: 0 | CV157: 0 | CW157: 2058 | DH157: =COUNTIF($DG$4:DG157,DG157) -> 154 | DK157: 1年 | DL157: =200000+$AZ7*10+BA7 -> 200291 | DM157: =IF(MOD(DL157,10)=0,"",MOD(DL157,10)+MOD(DL158,10)+MOD(DL159,10)*2) -> 9 | DN157: 200299 | DO157: =IF(DN157<>"",DN157,IF(DN158<>"",DN158,IF(DN159<>"",DN159,""))) -> 200299 | DP157: =IF(DO157="","",COUNT($DO$4:DO157)) -> 52
B158: 155 | CF158: =IF(CE158="","",SUM($CE$4:CE158)) ->  | CG158: 155 | CR158: 0 | CS158: 0 | CT158: 0 | CU158: 0 | CV158: 0 | CW158: 2059 | DH158: =COUNTIF($DG$4:DG158,DG158) -> 155 | DK158: 2年 | DL158: =200000+$AZ7*10+BB7 -> 200292 | DM158: =IF(MOD(DL158,10)=0,"",MOD(DL157,10)+MOD(DL158,10)+MOD(DL159,10)*2) -> 9 | DN158: 200299 | DP158: =IF(DO158="","",COUNT($DO$4:DO158)) -> 
B159: 156 | CF159: =IF(CE159="","",SUM($CE$4:CE159)) ->  | CG159: 156 | CR159: 0 | CS159: 0 | CT159: 0 | CU159: 0 | CV159: 0 | CW159: 2060 | DH159: =COUNTIF($DG$4:DG159,DG159) -> 156 | DK159: 3年 | DL159: =200000+$AZ7*10+BC7 -> 200293 | DM159: =IF(MOD(DL159,10)=0,"",MOD(DL157,10)+MOD(DL158,10)+MOD(DL159,10)*2) -> 9 | DN159: 200299 | DP159: =IF(DO159="","",COUNT($DO$4:DO159)) -> 
B160: 157 | CF160: =IF(CE160="","",SUM($CE$4:CE160)) ->  | CG160: 157 | CR160: 0 | CS160: 0 | CT160: 0 | CU160: 0 | CV160: 0 | CW160: 2061 | DH160: =COUNTIF($DG$4:DG160,DG160) -> 157 | DK160: 1年 | DL160: =200000+$AZ8*10+BA8 -> 200291 | DM160: =IF(MOD(DL160,10)=0,"",MOD(DL160,10)+MOD(DL161,10)+MOD(DL162,10)*2) -> 9 | DN160: 200299 | DO160: =IF(DN160<>"",DN160,IF(DN161<>"",DN161,IF(DN162<>"",DN162,""))) -> 200299 | DP160: =IF(DO160="","",COUNT($DO$4:DO160)) -> 53
B161: 158 | CF161: =IF(CE161="","",SUM($CE$4:CE161)) ->  | CG161: 158 | CR161: 0 | CS161: 0 | CT161: 0 | CU161: 0 | CV161: 0 | CW161: 2062 | DH161: =COUNTIF($DG$4:DG161,DG161) -> 158 | DK161: 2年 | DL161: =200000+$AZ8*10+BB8 -> 200292 | DM161: =IF(MOD(DL161,10)=0,"",MOD(DL160,10)+MOD(DL161,10)+MOD(DL162,10)*2) -> 9 | DN161: 200299 | DP161: =IF(DO161="","",COUNT($DO$4:DO161)) -> 
B162: 159 | CF162: =IF(CE162="","",SUM($CE$4:CE162)) ->  | CG162: 159 | CR162: 0 | CS162: 0 | CT162: 0 | CU162: 0 | CV162: 0 | CW162: 2063 | DH162: =COUNTIF($DG$4:DG162,DG162) -> 159 | DK162: 3年 | DL162: =200000+$AZ8*10+BC8 -> 200293 | DM162: =IF(MOD(DL162,10)=0,"",MOD(DL160,10)+MOD(DL161,10)+MOD(DL162,10)*2) -> 9 | DN162: 200299 | DP162: =IF(DO162="","",COUNT($DO$4:DO162)) -> 
B163: 160 | CF163: =IF(CE163="","",SUM($CE$4:CE163)) ->  | CG163: 160 | CR163: 0 | CS163: 0 | CT163: 0 | CU163: 0 | CV163: 0 | CW163: 2064 | DH163: =COUNTIF($DG$4:DG163,DG163) -> 160 | DK163: 1年 | DL163: =200000+$AZ9*10+BA9 -> 200391 | DM163: =IF(MOD(DL163,10)=0,"",MOD(DL163,10)+MOD(DL164,10)+MOD(DL165,10)*2) -> 9 | DN163: 200399 | DO163: =IF(DN163<>"",DN163,IF(DN164<>"",DN164,IF(DN165<>"",DN165,""))) -> 200399 | DP163: =IF(DO163="","",COUNT($DO$4:DO163)) -> 54
B164: 161 | CE164: =IF(SUM(I164:M164)=0,"",1) ->  | CF164: =IF(CE164="","",SUM($CE$4:CE164)) ->  | CG164: 161 | CR164: 0 | CS164: 0 | CT164: =COUNTIF($BZ$4:$BZ$100,CS164) -> 0 | CU164: 0 | CV164: 0 | CW164: 2065 | DH164: =COUNTIF($DG$4:DG164,DG164) -> 161 | DK164: 2年 | DL164: =200000+$AZ9*10+BB9 -> 200392 | DM164: =IF(MOD(DL164,10)=0,"",MOD(DL163,10)+MOD(DL164,10)+MOD(DL165,10)*2) -> 9 | DN164: 200399 | DP164: =IF(DO164="","",COUNT($DO$4:DO164)) -> 
B165: 162 | CF165: =IF(CE165="","",SUM($CE$4:CE165)) ->  | CG165: 162 | CR165: 0 | CS165: 0 | CT165: 0 | CU165: 0 | CV165: 0 | CW165: 2066 | CX165: =IF(CX69="","",CX69+200) ->  | CY165: =CY69 ->  | DA165: =IF($J$204=1,0,INDEX($CN$4:$CR$1003,$CX165,5)) ->  | DC165: =IF($Y$204=1,0,INDEX($CN$4:$CQ$1003,$CX165,3)) ->  | DD165: =IF($Y$204=1,0,INDEX($CN$4:$CQ$1003,$CX165,4)) ->  | DH165: =COUNTIF($DG$4:DG165,DG165) -> 162 | DK165: 3年 | DL165: =200000+$AZ9*10+BC9 -> 200393 | DM165: =IF(MOD(DL165,10)=0,"",MOD(DL163,10)+MOD(DL164,10)+MOD(DL165,10)*2) -> 9 | DN165: 200399 | DP165: =IF(DO165="","",COUNT($DO$4:DO165)) -> 
B166: 163 | CF166: =IF(CE166="","",SUM($CE$4:CE166)) ->  | CG166: 163 | CR166: 0 | CS166: 0 | CT166: 0 | CU166: 0 | CV166: 0 | CW166: 2067 | DH166: =COUNTIF($DG$4:DG166,DG166) -> 163 | DK166: 1年 | DL166: =200000+$AZ10*10+BA10 -> 200391 | DM166: =IF(MOD(DL166,10)=0,"",MOD(DL166,10)+MOD(DL167,10)+MOD(DL168,10)*2) -> 9 | DN166: 200399 | DO166: =IF(DN166<>"",DN166,IF(DN167<>"",DN167,IF(DN168<>"",DN168,""))) -> 200399 | DP166: =IF(DO166="","",COUNT($DO$4:DO166)) -> 55
B167: 164 | CF167: =IF(CE167="","",SUM($CE$4:CE167)) ->  | CG167: 164 | CR167: 0 | CS167: 0 | CT167: 0 | CU167: 0 | CV167: 0 | CW167: 2068 | DH167: =COUNTIF($DG$4:DG167,DG167) -> 164 | DK167: 2年 | DL167: =200000+$AZ10*10+BB10 -> 200392 | DM167: =IF(MOD(DL167,10)=0,"",MOD(DL166,10)+MOD(DL167,10)+MOD(DL168,10)*2) -> 9 | DN167: 200399 | DP167: =IF(DO167="","",COUNT($DO$4:DO167)) -> 
B168: 165 | CF168: =IF(CE168="","",SUM($CE$4:CE168)) ->  | CG168: 165 | CR168: 0 | CS168: 0 | CT168: 0 | CU168: 0 | CV168: 0 | CW168: 2069 | DH168: =COUNTIF($DG$4:DG168,DG168) -> 165 | DK168: 3年 | DL168: =200000+$AZ10*10+BC10 -> 200393 | DM168: =IF(MOD(DL168,10)=0,"",MOD(DL166,10)+MOD(DL167,10)+MOD(DL168,10)*2) -> 9 | DN168: 200399 | DP168: =IF(DO168="","",COUNT($DO$4:DO168)) -> 
B169: 166 | CF169: =IF(CE169="","",SUM($CE$4:CE169)) ->  | CG169: 166 | CR169: 0 | CS169: 0 | CT169: 0 | CU169: 0 | CV169: 0 | CW169: 2070 | DH169: =COUNTIF($DG$4:DG169,DG169) -> 166 | DK169: 1年 | DL169: =200000+$AZ11*10+BA11 -> 200391 | DM169: =IF(MOD(DL169,10)=0,"",MOD(DL169,10)+MOD(DL170,10)+MOD(DL171,10)*2) -> 9 | DN169: 200399 | DO169: =IF(DN169<>"",DN169,IF(DN170<>"",DN170,IF(DN171<>"",DN171,""))) -> 200399 | DP169: =IF(DO169="","",COUNT($DO$4:DO169)) -> 56
B170: 167 | CF170: =IF(CE170="","",SUM($CE$4:CE170)) ->  | CG170: 167 | CR170: 0 | CS170: 0 | CT170: 0 | CU170: 0 | CV170: 0 | CW170: 2071 | DH170: =COUNTIF($DG$4:DG170,DG170) -> 167 | DK170: 2年 | DL170: =200000+$AZ11*10+BB11 -> 200392 | DM170: =IF(MOD(DL170,10)=0,"",MOD(DL169,10)+MOD(DL170,10)+MOD(DL171,10)*2) -> 9 | DN170: 200399 | DP170: =IF(DO170="","",COUNT($DO$4:DO170)) -> 
B171: 168 | CF171: =IF(CE171="","",SUM($CE$4:CE171)) ->  | CG171: 168 | CR171: 0 | CS171: 0 | CT171: 0 | CU171: 0 | CV171: 0 | CW171: 2072 | DH171: =COUNTIF($DG$4:DG171,DG171) -> 168 | DK171: 3年 | DL171: =200000+$AZ11*10+BC11 -> 200393 | DM171: =IF(MOD(DL171,10)=0,"",MOD(DL169,10)+MOD(DL170,10)+MOD(DL171,10)*2) -> 9 | DN171: 200399 | DP171: =IF(DO171="","",COUNT($DO$4:DO171)) -> 
B172: 169 | CF172: =IF(CE172="","",SUM($CE$4:CE172)) ->  | CG172: 169 | CR172: 0 | CS172: 0 | CT172: 0 | CU172: 0 | CV172: 0 | CW172: 2073 | DH172: =COUNTIF($DG$4:DG172,DG172) -> 169 | DK172: 1年 | DL172: =200000+$AZ12*10+BA12 -> 200391 | DM172: =IF(MOD(DL172,10)=0,"",MOD(DL172,10)+MOD(DL173,10)+MOD(DL174,10)*2) -> 9 | DN172: 200399 | DO172: =IF(DN172<>"",DN172,IF(DN173<>"",DN173,IF(DN174<>"",DN174,""))) -> 200399 | DP172: =IF(DO172="","",COUNT($DO$4:DO172)) -> 57
B173: 170 | CF173: =IF(CE173="","",SUM($CE$4:CE173)) ->  | CG173: 170 | CR173: 0 | CS173: 0 | CT173: 0 | CU173: 0 | CV173: 0 | CW173: 2074 | DH173: =COUNTIF($DG$4:DG173,DG173) -> 170 | DK173: 2年 | DL173: =200000+$AZ12*10+BB12 -> 200392 | DM173: =IF(MOD(DL173,10)=0,"",MOD(DL172,10)+MOD(DL173,10)+MOD(DL174,10)*2) -> 9 | DN173: 200399 | DP173: =IF(DO173="","",COUNT($DO$4:DO173)) -> 
B174: 171 | CF174: =IF(CE174="","",SUM($CE$4:CE174)) ->  | CG174: 171 | CR174: 0 | CS174: 0 | CT174: 0 | CU174: 0 | CV174: 0 | CW174: 2075 | DH174: =COUNTIF($DG$4:DG174,DG174) -> 171 | DK174: 3年 | DL174: =200000+$AZ12*10+BC12 -> 200393 | DM174: =IF(MOD(DL174,10)=0,"",MOD(DL172,10)+MOD(DL173,10)+MOD(DL174,10)*2) -> 9 | DN174: 200399 | DP174: =IF(DO174="","",COUNT($DO$4:DO174)) -> 
B175: 172 | CF175: =IF(CE175="","",SUM($CE$4:CE175)) ->  | CG175: 172 | CR175: 0 | CS175: 0 | CT175: 0 | CU175: 0 | CV175: 0 | CW175: 2076 | DH175: =COUNTIF($DG$4:DG175,DG175) -> 172 | DK175: 1年 | DL175: =200000+$AZ13*10+BA13 -> 200391 | DM175: =IF(MOD(DL175,10)=0,"",MOD(DL175,10)+MOD(DL176,10)+MOD(DL177,10)*2) -> 9 | DN175: 200399 | DO175: =IF(DN175<>"",DN175,IF(DN176<>"",DN176,IF(DN177<>"",DN177,""))) -> 200399 | DP175: =IF(DO175="","",COUNT($DO$4:DO175)) -> 58
B176: 173 | CF176: =IF(CE176="","",SUM($CE$4:CE176)) ->  | CG176: 173 | CR176: 0 | CS176: 0 | CT176: 0 | CU176: 0 | CV176: 0 | CW176: 2077 | DH176: =COUNTIF($DG$4:DG176,DG176) -> 173 | DK176: 2年 | DL176: =200000+$AZ13*10+BB13 -> 200392 | DM176: =IF(MOD(DL176,10)=0,"",MOD(DL175,10)+MOD(DL176,10)+MOD(DL177,10)*2) -> 9 | DN176: 200399 | DP176: =IF(DO176="","",COUNT($DO$4:DO176)) -> 
B177: 174 | CF177: =IF(CE177="","",SUM($CE$4:CE177)) ->  | CG177: 174 | CR177: 0 | CS177: 0 | CT177: 0 | CU177: 0 | CV177: 0 | CW177: 2078 | DH177: =COUNTIF($DG$4:DG177,DG177) -> 174 | DK177: 3年 | DL177: =200000+$AZ13*10+BC13 -> 200393 | DM177: =IF(MOD(DL177,10)=0,"",MOD(DL175,10)+MOD(DL176,10)+MOD(DL177,10)*2) -> 9 | DN177: 200399 | DP177: =IF(DO177="","",COUNT($DO$4:DO177)) -> 
B178: 175 | CF178: =IF(CE178="","",SUM($CE$4:CE178)) ->  | CG178: 175 | CR178: 0 | CS178: 0 | CT178: 0 | CU178: 0 | CV178: 0 | CW178: 2079 | DH178: =COUNTIF($DG$4:DG178,DG178) -> 175 | DK178: 1年 | DL178: =200000+$AZ14*10+BA14 -> 200391 | DM178: =IF(MOD(DL178,10)=0,"",MOD(DL178,10)+MOD(DL179,10)+MOD(DL180,10)*2) -> 9 | DN178: 200399 | DO178: =IF(DN178<>"",DN178,IF(DN179<>"",DN179,IF(DN180<>"",DN180,""))) -> 200399 | DP178: =IF(DO178="","",COUNT($DO$4:DO178)) -> 59
B179: 176 | CF179: =IF(CE179="","",SUM($CE$4:CE179)) ->  | CG179: 176 | CR179: 0 | CS179: 0 | CT179: 0 | CU179: 0 | CV179: 0 | CW179: 2080 | DH179: =COUNTIF($DG$4:DG179,DG179) -> 176 | DK179: 2年 | DL179: =200000+$AZ14*10+BB14 -> 200392 | DM179: =IF(MOD(DL179,10)=0,"",MOD(DL178,10)+MOD(DL179,10)+MOD(DL180,10)*2) -> 9 | DN179: 200399 | DP179: =IF(DO179="","",COUNT($DO$4:DO179)) -> 
B180: 177 | CF180: =IF(CE180="","",SUM($CE$4:CE180)) ->  | CG180: 177 | CR180: 0 | CS180: 0 | CT180: 0 | CU180: 0 | CV180: 0 | CW180: 2081 | DH180: =COUNTIF($DG$4:DG180,DG180) -> 177 | DK180: 3年 | DL180: =200000+$AZ14*10+BC14 -> 200393 | DM180: =IF(MOD(DL180,10)=0,"",MOD(DL178,10)+MOD(DL179,10)+MOD(DL180,10)*2) -> 9 | DN180: 200399 | DP180: =IF(DO180="","",COUNT($DO$4:DO180)) -> 
B181: 178 | CF181: =IF(CE181="","",SUM($CE$4:CE181)) ->  | CG181: 178 | CR181: 0 | CS181: 0 | CT181: 0 | CU181: 0 | CV181: 0 | CW181: 2082 | CY181: =CY85 ->  | DH181: =COUNTIF($DG$4:DG181,DG181) -> 178 | DK181: 1年 | DL181: =200000+$AZ15*10+BA15 -> 200391 | DM181: =IF(MOD(DL181,10)=0,"",MOD(DL181,10)+MOD(DL182,10)+MOD(DL183,10)*2) -> 9 | DN181: 200399 | DO181: =IF(DN181<>"",DN181,IF(DN182<>"",DN182,IF(DN183<>"",DN183,""))) -> 200399 | DP181: =IF(DO181="","",COUNT($DO$4:DO181)) -> 60
B182: 179 | CF182: =IF(CE182="","",SUM($CE$4:CE182)) ->  | CG182: 179 | CR182: 0 | CS182: 0 | CT182: 0 | CU182: 0 | CV182: 0 | CW182: 2083 | DH182: =COUNTIF($DG$4:DG182,DG182) -> 179 | DK182: 2年 | DL182: =200000+$AZ15*10+BB15 -> 200392 | DM182: =IF(MOD(DL182,10)=0,"",MOD(DL181,10)+MOD(DL182,10)+MOD(DL183,10)*2) -> 9 | DN182: 200399 | DP182: =IF(DO182="","",COUNT($DO$4:DO182)) -> 
B183: 180 | CF183: =IF(CE183="","",SUM($CE$4:CE183)) ->  | CG183: 180 | CR183: 0 | CS183: 0 | CT183: 0 | CU183: 0 | CV183: 0 | CW183: 2084 | DH183: =COUNTIF($DG$4:DG183,DG183) -> 180 | DK183: 3年 | DL183: =200000+$AZ15*10+BC15 -> 200393 | DM183: =IF(MOD(DL183,10)=0,"",MOD(DL181,10)+MOD(DL182,10)+MOD(DL183,10)*2) -> 9 | DN183: 200399 | DP183: =IF(DO183="","",COUNT($DO$4:DO183)) -> 
B184: 181 | CF184: =IF(CE184="","",SUM($CE$4:CE184)) ->  | CG184: 181 | CR184: 0 | CS184: 0 | CT184: 0 | CU184: 0 | CV184: 0 | CW184: 2085 | DH184: =COUNTIF($DG$4:DG184,DG184) -> 181 | DK184: 1年 | DL184: =200000+$AZ16*10+BA16 -> 200391 | DM184: =IF(MOD(DL184,10)=0,"",MOD(DL184,10)+MOD(DL185,10)+MOD(DL186,10)*2) -> 9 | DN184: 200399 | DO184: =IF(DN184<>"",DN184,IF(DN185<>"",DN185,IF(DN186<>"",DN186,""))) -> 200399 | DP184: =IF(DO184="","",COUNT($DO$4:DO184)) -> 61
B185: 182 | CF185: =IF(CE185="","",SUM($CE$4:CE185)) ->  | CG185: 182 | CR185: 0 | CS185: 0 | CT185: 0 | CU185: 0 | CV185: 0 | CW185: 2086 | DH185: =COUNTIF($DG$4:DG185,DG185) -> 182 | DK185: 2年 | DL185: =200000+$AZ16*10+BB16 -> 200392 | DM185: =IF(MOD(DL185,10)=0,"",MOD(DL184,10)+MOD(DL185,10)+MOD(DL186,10)*2) -> 9 | DN185: 200399 | DP185: =IF(DO185="","",COUNT($DO$4:DO185)) -> 
B186: 183 | CF186: =IF(CE186="","",SUM($CE$4:CE186)) ->  | CG186: 183 | CR186: 0 | CS186: 0 | CT186: 0 | CU186: 0 | CV186: 0 | CW186: 2087 | DH186: =COUNTIF($DG$4:DG186,DG186) -> 183 | DK186: 3年 | DL186: =200000+$AZ16*10+BC16 -> 200393 | DM186: =IF(MOD(DL186,10)=0,"",MOD(DL184,10)+MOD(DL185,10)+MOD(DL186,10)*2) -> 9 | DN186: 200399 | DP186: =IF(DO186="","",COUNT($DO$4:DO186)) -> 
B187: 184 | CF187: =IF(CE187="","",SUM($CE$4:CE187)) ->  | CG187: 184 | CR187: 0 | CS187: 0 | CT187: 0 | CU187: 0 | CV187: 0 | CW187: 2088 | DH187: =COUNTIF($DG$4:DG187,DG187) -> 184 | DK187: 1年 | DL187: =200000+$AZ17*10+BA17 -> 200391 | DM187: =IF(MOD(DL187,10)=0,"",MOD(DL187,10)+MOD(DL188,10)+MOD(DL189,10)*2) -> 9 | DN187: 200399 | DO187: =IF(DN187<>"",DN187,IF(DN188<>"",DN188,IF(DN189<>"",DN189,""))) -> 200399 | DP187: =IF(DO187="","",COUNT($DO$4:DO187)) -> 62
B188: 185 | CF188: =IF(CE188="","",SUM($CE$4:CE188)) ->  | CG188: 185 | CR188: 0 | CS188: 0 | CT188: 0 | CU188: 0 | CV188: 0 | CW188: 2089 | DH188: =COUNTIF($DG$4:DG188,DG188) -> 185 | DK188: 2年 | DL188: =200000+$AZ17*10+BB17 -> 200392 | DM188: =IF(MOD(DL188,10)=0,"",MOD(DL187,10)+MOD(DL188,10)+MOD(DL189,10)*2) -> 9 | DN188: 200399 | DP188: =IF(DO188="","",COUNT($DO$4:DO188)) -> 
B189: 186 | CF189: =IF(CE189="","",SUM($CE$4:CE189)) ->  | CG189: 186 | CR189: 0 | CS189: 0 | CT189: 0 | CU189: 0 | CV189: 0 | CW189: 2090 | DH189: =COUNTIF($DG$4:DG189,DG189) -> 186 | DK189: 3年 | DL189: =200000+$AZ17*10+BC17 -> 200393 | DM189: =IF(MOD(DL189,10)=0,"",MOD(DL187,10)+MOD(DL188,10)+MOD(DL189,10)*2) -> 9 | DN189: 200399 | DP189: =IF(DO189="","",COUNT($DO$4:DO189)) -> 
B190: 187 | CF190: =IF(CE190="","",SUM($CE$4:CE190)) ->  | CG190: 187 | CR190: 0 | CS190: 0 | CT190: 0 | CU190: 0 | CV190: 0 | CW190: 2091 | DH190: =COUNTIF($DG$4:DG190,DG190) -> 187 | DK190: 1年 | DL190: =200000+$AZ18*10+BA18 -> 200391 | DM190: =IF(MOD(DL190,10)=0,"",MOD(DL190,10)+MOD(DL191,10)+MOD(DL192,10)*2) -> 9 | DN190: 200399 | DO190: =IF(DN190<>"",DN190,IF(DN191<>"",DN191,IF(DN192<>"",DN192,""))) -> 200399 | DP190: =IF(DO190="","",COUNT($DO$4:DO190)) -> 63
B191: 188 | CF191: =IF(CE191="","",SUM($CE$4:CE191)) ->  | CG191: 188 | CR191: 0 | CS191: 0 | CT191: 0 | CU191: 0 | CV191: 0 | CW191: 2092 | DH191: =COUNTIF($DG$4:DG191,DG191) -> 188 | DK191: 2年 | DL191: =200000+$AZ18*10+BB18 -> 200392 | DM191: =IF(MOD(DL191,10)=0,"",MOD(DL190,10)+MOD(DL191,10)+MOD(DL192,10)*2) -> 9 | DN191: 200399 | DP191: =IF(DO191="","",COUNT($DO$4:DO191)) -> 
B192: 189 | CF192: =IF(CE192="","",SUM($CE$4:CE192)) ->  | CG192: 189 | CR192: 0 | CS192: 0 | CT192: 0 | CU192: 0 | CV192: 0 | CW192: 2093 | DH192: =COUNTIF($DG$4:DG192,DG192) -> 189 | DK192: 3年 | DL192: =200000+$AZ18*10+BC18 -> 200393 | DM192: =IF(MOD(DL192,10)=0,"",MOD(DL190,10)+MOD(DL191,10)+MOD(DL192,10)*2) -> 9 | DN192: 200399 | DP192: =IF(DO192="","",COUNT($DO$4:DO192)) -> 
B193: 190 | CF193: =IF(CE193="","",SUM($CE$4:CE193)) ->  | CG193: 190 | CR193: 0 | CS193: 0 | CT193: 0 | CU193: 0 | CV193: 0 | CW193: 2094 | DH193: =COUNTIF($DG$4:DG193,DG193) -> 190 | DK193: 1年 | DL193: =200000+$AZ19*10+BA19 -> 200391 | DM193: =IF(MOD(DL193,10)=0,"",MOD(DL193,10)+MOD(DL194,10)+MOD(DL195,10)*2) -> 9 | DN193: 200399 | DO193: =IF(DN193<>"",DN193,IF(DN194<>"",DN194,IF(DN195<>"",DN195,""))) -> 200399 | DP193: =IF(DO193="","",COUNT($DO$4:DO193)) -> 64
B194: 191 | CF194: =IF(CE194="","",SUM($CE$4:CE194)) ->  | CG194: 191 | CR194: 0 | CS194: 0 | CT194: 0 | CU194: 0 | CV194: 0 | CW194: 2095 | DH194: =COUNTIF($DG$4:DG194,DG194) -> 191 | DK194: 2年 | DL194: =200000+$AZ19*10+BB19 -> 200392 | DM194: =IF(MOD(DL194,10)=0,"",MOD(DL193,10)+MOD(DL194,10)+MOD(DL195,10)*2) -> 9 | DN194: 200399 | DP194: =IF(DO194="","",COUNT($DO$4:DO194)) -> 
B195: 192 | CF195: =IF(CE195="","",SUM($CE$4:CE195)) ->  | CG195: 192 | CR195: 0 | CS195: 0 | CT195: 0 | CU195: 0 | CV195: 0 | CW195: 2096 | DH195: =COUNTIF($DG$4:DG195,DG195) -> 192 | DK195: 3年 | DL195: =200000+$AZ19*10+BC19 -> 200393 | DM195: =IF(MOD(DL195,10)=0,"",MOD(DL193,10)+MOD(DL194,10)+MOD(DL195,10)*2) -> 9 | DN195: 200399 | DP195: =IF(DO195="","",COUNT($DO$4:DO195)) -> 
B196: 193 | CE196: =IF(SUM(I196:M196)=0,"",1) ->  | CF196: =IF(CE196="","",SUM($CE$4:CE196)) ->  | CG196: 193 | CR196: 0 | CS196: 0 | CT196: =COUNTIF($BZ$4:$BZ$100,CS196) -> 0 | CU196: 0 | CV196: 0 | CW196: 3001 | DA196: =IF($K$204=1,0,INDEX($CN$4:$CR$1003,$CX196,5)) ->  | DB196: =INDEX($CN$4:$CQ$1003,$CX196,2) ->  | DC196: =IF($AC$204=1,0,INDEX($CN$4:$CQ$1003,$CX196,3)) ->  | DD196: =IF($AC$204=1,0,INDEX($CN$4:$CQ$1003,$CX196,4)) ->  | DH196: =COUNTIF($DG$4:DG196,DG196) -> 193 | DK196: 1年 | DL196: =200000+$AZ20*10+BA20 -> 200391 | DM196: =IF(MOD(DL196,10)=0,"",MOD(DL196,10)+MOD(DL197,10)+MOD(DL198,10)*2) -> 9 | DN196: 200399 | DO196: =IF(DN196<>"",DN196,IF(DN197<>"",DN197,IF(DN198<>"",DN198,""))) -> 200399 | DP196: =IF(DO196="","",COUNT($DO$4:DO196)) -> 65
B197: 194 | CF197: =IF(CE197="","",SUM($CE$4:CE197)) ->  | CG197: 194 | CR197: =IF(CN197="",0,IF(CP197="",CN197,CP197*10+9)) -> 0 | CS197: =C197*10000+D197 -> 0 | CT197: 0 | CU197: =COUNT(CN197,CN397,CN597,CN797,CN997) -> 0 | CV197: =IF(CT197=CU197,0,1) -> 0 | CW197: 3002 | CY197: =CY101 ->  | DA197: =IF($K$204=1,0,INDEX($CN$4:$CR$1003,$CX197,5)) ->  | DC197: =IF($AC$204=1,0,INDEX($CN$4:$CQ$1003,$CX197,3)) ->  | DD197: =IF($AC$204=1,0,INDEX($CN$4:$CQ$1003,$CX197,4)) ->  | DE197: =CY197*100000+DA197*10+CZ197 ->  | DF197: =MATCH(DE197,$DL$4:$DL$291,0) ->  | DG197: =INDEX($DN$4:$DN$291,DF197,1) ->  | DH197: =COUNTIF($DG$4:DG197,DG197) -> 194 | DI197: =DG197*100+DH197 ->  | DK197: 2年 | DL197: =200000+$AZ20*10+BB20 -> 200392 | DM197: =IF(MOD(DL197,10)=0,"",MOD(DL196,10)+MOD(DL197,10)+MOD(DL198,10)*2) -> 9 | DN197: 200399 | DP197: =IF(DO197="","",COUNT($DO$4:DO197)) -> 
B198: 195 | CE198: =IF(SUM(I198:M198)=0,"",1) ->  | CF198: =IF(CE198="","",SUM($CE$4:CE198)) ->  | CG198: 195 | CR198: 0 | CS198: 0 | CT198: 0 | CU198: 0 | CV198: 0 | CW198: 3003 | DH198: =COUNTIF($DG$4:DG198,DG198) -> 195 | DK198: 3年 | DL198: =200000+$AZ20*10+BC20 -> 200393 | DM198: =IF(MOD(DL198,10)=0,"",MOD(DL196,10)+MOD(DL197,10)+MOD(DL198,10)*2) -> 9 | DN198: 200399 | DP198: =IF(DO198="","",COUNT($DO$4:DO198)) -> 
B199: 196 | CF199: =IF(CE199="","",SUM($CE$4:CE199)) ->  | CG199: 196 | CR199: 0 | CS199: 0 | CT199: 0 | CU199: 0 | CV199: 0 | CW199: 3004 | DH199: =COUNTIF($DG$4:DG199,DG199) -> 196 | DK199: 1年 | DL199: =200000+$AZ21*10+BA21 -> 200391 | DM199: =IF(MOD(DL199,10)=0,"",MOD(DL199,10)+MOD(DL200,10)+MOD(DL201,10)*2) -> 9 | DN199: =IF(DM199="","",ROUNDDOWN(DL199,-1)+DM199) -> 200399 | DO199: =IF(DN199<>"",DN199,IF(DN200<>"",DN200,IF(DN201<>"",DN201,""))) -> 200399 | DP199: =IF(DO199="","",COUNT($DO$4:DO199)) -> 66
B200: 197 | CF200: =IF(CE200="","",SUM($CE$4:CE200)) ->  | CG200: 197 | CR200: 0 | CS200: 0 | CT200: 0 | CU200: 0 | CV200: 0 | CW200: 3005 | DH200: =COUNTIF($DG$4:DG200,DG200) -> 197 | DK200: 2年 | DL200: =200000+$AZ21*10+BB21 -> 200392 | DM200: =IF(MOD(DL200,10)=0,"",MOD(DL199,10)+MOD(DL200,10)+MOD(DL201,10)*2) -> 9 | DN200: 200399 | DP200: =IF(DO200="","",COUNT($DO$4:DO200)) -> 
... 362 more rows
